{"text_format":"3","workbook":"xlsx","n_sheets":8,"sheets":["Instrukcija","Informacija apie pareiškėją","Skaičiuoklė","Socialinis poveikis","Papildomi_Duomenų šaltiniai","Sąvokos","Skaičiuoklė_išskleistas sąrašas","Papildomas_klasifikatoriai"],"not_rendered":{"external_links":3,"defined_names":30},"read":"row_number_cap","date_system":"1900"}

{"sheet":"Instrukcija","index":0,"n_rows":32,"n_cols":8,"rows_kept":32,"merged":[[0,0,3,6],[0,7,3,9],[4,0,4,9],[5,0,5,11],[6,0,6,9],[7,0,7,9],[8,0,8,9],[9,0,9,9],[10,0,10,9],[11,0,12,0],[11,1,12,9],[13,1,13,9],[14,1,14,9],[15,1,15,9],[16,1,16,9],[17,1,17,9],[18,1,18,9],[19,1,19,9],[20,1,20,9],[21,1,21,9],[22,1,22,9],[23,0,24,0],[23,1,24,9],[25,0,26,0],[25,1,26,9],[27,1,27,9],[28,1,28,9],[29,1,29,9],[30,0,30,9],[31,1,31,9],[32,0,32,9],[33,0,33,9]]}
[{"$nulls":7},"Socialinio verslo vykdymo pagal Lietuvos kaimo plėtros 2014-2020 metų programos priemones gairių 1 priedas"]
[]
[]
[]
["SOCIALINIO VERSLO POVEIKIO MATAVIMO SKAIČIUOKLĖ (EXCEL FORMATU), TAIKOMA PAREIŠKĖJŲ, TEIKIANČIŲ PARAIŠKAS PAGAL LIETUVOS KAIMO PLĖTROS 2014–2020 METŲ PROGRAMOS PRIEMONĖS „ŪKIO IR VERSLO PLĖTRA“ VEIKLOS SRITĮ „PARAMA EKONOMINĖS VEIKLOS PRADŽIAI KAIMO VIETOVĖSE“, PROJEKTAMS"]
["Socialinio verslo poveikio vertinimo skaičiuoklės pildymo instrukcija"]
[]
["Socialinio verslo poveikio vertinimo skaičiuoklė (toliau – skaičiuoklė) yra skirta potencialių paramos gavėjų – socialinio verslo vykdytojų (toliau – pareiškėjas) – pagal Lietuvos kaimo plėtros 2014–2020 m. programos priemonę „Ūkio ir verslo plėtra“ vykdomos veiklos poveikiui (tam tikrai tikslinei grupei, tam tikrame pasirinktame teritoriniame vienete) apskaičiuoti."]
[]
["Socialinio verslo poveikio vertinimo skaičiuoklėje visi skaičiavimai turi būti atliekami naudojant patikimus / pagrindžiamus statistinius duomenis (pvz.: Lietuvos statistikos departamento, Lietuvos socialinio žemėlapio, Lietuvos Respublikos ministerijų ar kt. viešai prieinamų ir patikimų šaltinių duomenis) iš nurodytų duomenų šaltinių, oficialių duomenų šaltinių nuorodos yra pateikiamos papildomame skaičiuoklės skirtuke „Papildomi_duomenų šaltiniai“. Tais atvejais, kai informacija apie pasirinktą tikslinę grupę / veiksmą pateikiama remiantis kitais šaltiniais, negu nurodyti lape „Papildomi_duomenų šaltiniai“, pareiškėjas kartu su skaičiuokle turi pateikti informaciją apie duomenų šaltinį, aprašytą duomenų surinkimo metodą ir kitą duomenų patikimumą pagrindžiančią informaciją.  "]
[]
["Žingsnis","Apskaičiuojant socialinio verslo poveikį, atsižvelgiant į pasirinktą tikslą, potikslius, rodiklius bei pasirinktą tikslinę grupę, yra atliekami šie skaičiuoklės pildymo žingsniai:"]
[]
["1.","1-asis žingsnis – šio dokumento lapo „Informacija apie pareiškėją“ užpildymas, įrašant informaciją aktyviuose lapo laukeliuose."]
["2.","Įvykdęs 1-ajį žingsnį, pareiškėjas turi atidaryti lapą „Skaičiuoklė“, kurio B stulpelyje  „1. Veiklos sritis“ iš klasifikatoriaus pasirenkama sritis, kurioje jis planuoja vykdyti socialinį verslą (galimi pasirinkimai: Užimtumas, Sveikata, Prevencija, Švietimas). \nJei planuojama veikla kitoje, negu nurodytosios, srityje, pasirenkama artimiausia pagal planuojamus pasiekti rezultatus (pvz., įdarbinti asmenis). \nTam, kad pareiškėjui būtų palengvintas veiklos srities, potikslio ir rodiklių pasirinkimas, skaičiuoklės lape „Skaičiuoklė_išskleista“ pateiktas visas veiklų, potikslių ir rodiklių sąrašas, kurį siūlytina perskaityti tais atvejais, kai pareiškėjui bus sudėtinga pasirinkti veiklos tikslą ar potikslį, ar rodiklį, siekiant suprasti visus galimus ir iš jų pasirinkti labiausiai tinkantį.\nJeigu pareiškėjui yra aktualios kelios, o ne viena sritis, jis jas papildomai gali pasirinkti pakartojęs 2 žingsnį (t. y. pakartojęs jį žemiau esančioje eilutėje ir pasirinkdamas kitą papildomą sritį)."]
["3.","Įvykdžius antrąjį žingsnį, C stulpelyje „2. Sritis, kurioje vykdoma veikla“ automatiškai atsiranda platesnis srities aprašymas."]
["4.","Įvykdžius 3-ajį žingsnį, D stulpelyje „2.1. Veiklos tikslas“ automatiškai atsiranda detalių veiklos tikslų sąrašas. Pareiškėjas, įvertinęs ir nuodugniai apsvarstęs savo vykdomą socialinio verslo veiklą bei jos siekiamus veiklos rezultatus, D stulpelyje  „2.1. Veiklos tikslas“ pasirenka veiklos tikslą (-us), kuris labiausiai atitinka jo vykdomą veiklą.\nPvz.: Jeigu socialinio verslo veikla yra susijusi tam tikros tikslinės grupės (pvz., neįgaliųjų) įdarbinimu, jo pasirinktas tikslas galėtų būti „1.2. Skatinti užimtumą“).\nJeigu pareiškėjui yra aktualūs keli, o ne vienas veiklos tikslas, jis juos papildomai gali pasirinkti pakartojęs 2–4 žingsnius (t. y. atlikdamas prieš tai įvykdytus žingsnius žemiau esančioje eilutėje ir pasirinkdamas kitą papildomą veiklos tikslą)."]
["5.","Įvykdžius 4-ajį žingsnį, E stulpelyje „2.2. Potiksliai“ automatiškai atsiranda detalių veiklos potikslių (detalizuojančių veiklos tikslą) sąrašas, iš kurio pareiškėjas pasirenka su jo vykdoma / planuojama vykdyti veikla ir pasirinktu tikslu susijusius potikslius. \n(Pastaba. Potikslis turi būti tiesiogiai susijęs su planuojamais pasiekti rezultatais ir juos atspindėti. Todėl tam, kad pasirinktų teisingą potikslį, pareiškėjas turi atsakyti į klausimą „Kokį konkretų, pamatuojamą, pasiekiamą rezultatą planuojama pasiekti?“).\nJeigu pareiškėjui yra aktualūs keli, o ne vienas potikslis, jis juos papildomai gali pasirinkti pakartojęs 2–5 žingsnius (t. y. atlikdamas prieš tai įvykdytus žingsnius žemiau esančioje skaičiuoklės eilutėje ir pasirinkdamas kitą papildomą potikslį)."]
["6.","Įvykdęs 5-ajį žingsnį, pareiškėjas F stulpelyje „3. Tikslinės grupės arba tam tikra liga (sutrikimu) sergančių asmenų grupės pasirinkimas“ iš klasifikatoriaus pasirenka tikslinę asmenų grupę, į kurios padėties pokytį jis planuoja orientuoti savo veiklą / su kuria jis planuoja vykdyti veiklą / kuriai planuoja daryti poveikį. \nJeigu yra planuojama dirbti su keliomis skirtingomis tikslinėmis grupėmis, jos papildomai yra pasirenkamos pakartojus 2–6 žingsnius (t. y. atliekant prieš tai įvykdytus žingsnius žemiau esančioje skaičiuoklės eilutėje ir pasirenkant kitą papildomą tikslinę grupę)."]
["7.","Įvykdžius 6-ąjį žingsnį (pasirinkus tikslinę grupę), G stulpelyje „4. Rodiklis tikslo pasiekimui įvertinti“ yra pasirenkamas potikslio rodiklis, kuris yra labiausiai susijęs su pareiškėjo vykdoma / planuojama vykdyti veikla. Rodiklis skirtas potikslio pasiekimo vertinimui, todėl turi būti tiesiogiai su juo susijęs. Rodikliai yra skirstomi į pagrindinius ir papildomus, šis rodiklių  skirstymas skaičiuoklėje yra atliekamas automatiškai (t. y. jų pasirinkti pareiškėjui nereikia) ir matomas H stulpelyje „4.1. Rodiklio tipas“. Pareiškėjas privalo pasirinkti nors vieną pasirinkto potikslio pagrindinį rodiklį. Pareiškėjas stulpeliuose „I-AK“ privalo užpildyti informaciją tiek apie pagrindinius, tiek apie papildomus rodiklius, tačiau visų rodiklių poveikio suma bus paskaičiuota tik iš pagrindinių rodiklių sumos. Papildomų rodiklių apskaičiavimas ir aprašymas yra tam, kad pareiškėjas galėtų parodyti ir atskleisti ir sunkiai pamatuojamų rodiklių poveikį bei sukuriamą pridėtinę vertę visuomenei. Jeigu pareiškėjas nori pasirinkti kelis to pačio potikslio rodiklius, jie papildomai yra pasirenkami pakartojus 2–7 žingsnius (t. y. atliekant prieš tai įvykdytus žingsnius žemiau esančioje eilutėje ir pasirenkant kitą papildomą to potikslio rodiklį)."]
["8.","Jei vykdant 2-ąjį žingsnį „Stulpelyje „B“ pasirinkite veiklos sritį“ pasirenkama sritis „Sveikata“ ir jos rodikliai, pareiškėjas turi pasirinkti reikšmę I stulpelyje „4.2. Informacijos temos / paslaugos“, jei „Švietimas“ ir jos rodikliai, pareiškėjas turi pasirinkti reikšmę J stulpelyje „4.3. Gebėjimai / kompetencijos“.\nPastaba. Šis žingsnis aktualus tik 2.1.1; 2.3.1.ir 4.1.1–4.1.4 potikslių rodikliams.\nPastaba. Šis žingsnis aktualus tik 2.1.1; 2.3.1.ir 4.1.1-4.1.4 potikslių rodikliams."]
["9.","Įvykdęs 7-ajį (ir 8-ajį, jeigu jis buvo privalomas pagal rodiklio pasirinkimą) žingsnį, K stulpelyje „4.4.Papildomo rodiklio pagrindimas / pildymo tvarka“, tais atvejais, kai pareiškėjas pasirenka papildomą rodiklį, tačiau jo skaičiavimui taiko kitokį negu skaičiuoklėje pasirinkto papildomo rodiklio nustatytą skaičiavimo metodą (L stulpelis  „5. Skaičiavimo metodas“), pareiškėjas aprašo ir pagrindžia, kaip apskaičiuoja papildomo rodiklio planuojamas reikšmes, ir pateikia detalius skaičiavimus (pvz., (x+y)/100) bei jų paaiškinimą (pvz., paaiškindamas, kad „x“ –  tam tikra tikslinė grupė), taip pat pateikia informaciją apie duomenų šaltinius ir duomenų patikimumą. Ši skiltis yra pildoma tik tuo atveju, jeigu buvo pasirinktas „Papildomas\" rodiklis, kurio identifikavimas yra matomas 4.1 skiltyje „Rodiklio tipas“."]
["10.","Įvykdžius 7-ajį (ir 8-ajį ir / ar 9-ajį, jeigu jie buvo privalomi pagal rodiklio pasirinkimą) žingsnį, L stulpelyje „5. Skaičiavimo metodas“ yra automatiškai priskiriamas rodiklio apskaičiavimo metodo aprašymas, t. y. pareiškėjas neatlieka jokių veiksmų, pareiškėjui tai yra pagalbinė informacija, pagal kurią jis atlikdamas vėlesnius žingsnius stulpeliuose „O-AT“ turės įvesti duomenis. Analogiškai skaičiuoklės M stulpelyje „5.1. Skaičiavimo periodiškumas“ pasirinkus rodiklį automatiškai yra priskiriama rodiklio skaičiavimo periodiškumo reikšmė, t. y. parodoma, kaip dažnai rodiklis turi būti skaičiuojamas."]
["11.","Šiame žingsnyje pareiškėjas N stulpelyje „6. Pasirinktos tikslinės grupės dydis (skaičius, vnt.) veiklą vykdomoje vietoje (gyvenvietėje, rajone ar kt.)“ turi į skilties laukelį įrašyti tikslinės grupės trumpą aprašymą ir dydį (skaičių), su kuria jis dirbs / darys jai įtaką vykdydamas socialinio verslo veiklą (pvz., neįgaliųjų asmenų grupė Raseinių rajone – 500). \nTais atvejais, kai pasirenkama viena iš šių tikslinių grupių, tikslinės grupės dydis turi būti nurodytas iš lape „Papildomi duomenų šaltiniai“ B stulpelyje nurodyto duomenų šaltinio:\n• Lietuvos gyventojai (pagal rajonus)\n• Mokyklinio amžiaus vaikai\n• Jaunimas\n• Darbingo amžiaus gyventojai\n• Pensininkai\n• Neįgalieji\n• Vienišos motinos ar tėvai\n• Daugiavaikės šeimos\n• Socialinės rizikos šeimų skaičius 1000-iui gyventojų\n• Pabėgėliai\n• Nedirbantieji (bedarbiai)\n• 18–24 metų jaunimo, neįgijusio vidutinio išsilavinimo ir nesimokančio, dalis\n• 15–29 metų jaunimas pagal išsilavinimo grupes\n• Mokyklinio amžiaus vaikai, nesimokantys mokykloje\n• Nedirbantis, nesimokantis ir mokymuose nedalyvaujantis jaunimas\n• Nutraukusių mokymąsi bendrojo lavinimo mokyklose 16-mečių jaunuolių skaičius\n• Asmenų, įtariamų (kaltinamų) padarius nusikalstamas veikas, skaičius\n• Asmenys, susiję su nusikalstama veika (disponavimu narkotinėmis medžiagomis ir jų kontrabanda)\n• Asmenų, įtariamų (kaltinamų) padarius nusikalstamas veikas, skaičius\n• Nepilnamečiai, įtariami (kaltinami ) padarę nusikalstamas veikas\n• Asmenų, nukentėjusių nuo nusikalstamų veikų, skaičius\n•  Asmenys, nukentėję dėl smurto artimoje aplinkoje (policijoje užregistruoti pranešimai dėl smurto artimoje aplinkoje)\n• Narkomanija sergantys asmenys\n• Alkoholizmu sergantys asmenys\n• Tuberkulioze sergantys asmenys\n• ŽIV sergantys asmenys\n• Depresija sergantys asmenys\n• Nuotaikų sutrikimų turintys asmenys\n• Valgymo sutrikimai (bulimija, nervinė anoreksija)\n• Pedikulioze ir ftiriaze (utėlėtumu) sergantys asmenys\n• Dantų ligomis sergantys asmenys\n• Sužalojimus dėl nelaimingų įvykių darbe patyrę asmenys\n• Sužalojimus dėl transporto įvykių darbe patyrę asmenys\n• Kitos pasirinktos ligos iš klasifikatoriaus\n• Savižudybių skaičius\nTai atvejais, kai informacija apie pasirinktą tikslinę grupę / veiksmą pateikiama remiantis kitais šaltiniais, negu nurodyti lape „Papildomi_duomenų šaltiniai“, pareiškėjas kartu su skaičiuokle turi pateikti informaciją apie duomenų šaltinį, aprašytą duomenų surinkimo metodą ir kitą duomenų patikimumą pagrindžiančią informaciją. Ši informacija pateikiama lape „Papildomi_duomenų šaltiniai“ esančioje lentelėje „Kitos pasirinktos informacijos pagrindimas“.\nPastaba. Visais atvejais tikslinės grupės dydis (skaičius) turi būti pagrįstas ir patikrinamas.\n"]
[]
["12.","Įvykdęs 11-ajį žingsnį, pareiškėjas O–AT stulpeliuose „7. Planuojamas poveikis“ užpildo pasirinkto rodiklio formulėse identifikuotų dėmenų reikšmes (pvz.: a, b, a(t-1)) kiekvienais metais. Skilčių „Poveikis, %“ reikšmės (parodančios socialinio verslo poveikį procentais) yra apskaičiuojamos automatiškai, todėl jų pildyti nereikia.\nEsant tam tikriems rodikliams rodiklio skaičiavimo formulės dėmuo „a(t-1)“ yra neaktualus, todėl šio dėmens stulpelis turi likti tuščias. \nTais atvejais, kai pasirenkama viena iš šių tikslinių grupių,  tikslinės grupės dydis turi būti nurodytas iš lape „Papildomi_duomenų šaltiniai“ B stulpelyje nurodyto duomenų šaltinio:\n• Lietuvos gyventojai (pagal rajonus)\n• Mokyklinio amžiaus vaikai\n• Jaunimas\n• Darbingo amžiaus gyventojai\n• Pensininkai\n• Neįgalieji\n• Vienišos motinos ar tėvai\n• Daugiavaikės šeimos\n• Socialinės rizikos šeimų skaičius 1000-iui gyventojų\n• Pabėgėliai\n• Nedirbantieji (bedarbiai)\n• 18–24 metų jaunimo, neįgijusio vidutinio išsilavinimo ir nesimokančio, dalis\n• 15–29 metų jaunimas pagal išsilavinimo grupes\n• Mokyklinio amžiaus vaikai, nesimokantys mokykloje\n• Nedirbantis, nesimokantis ir mokymuose nedalyvaujantis jaunimas\n•  Nutraukusių mokymąsi bendrojo lavinimo mokyklose 16-mečių jaunuolių skaičius\n• Asmenų, įtariamų (kaltinamų) padarius nusikalstamas veikas, skaičius\n• Asmenys, susiję su nusikalstama veika (disponavimu narkotinėmis medžiagomis ir jų kontrabanda)\n• Asmenų, įtariamų (kaltinamų) padarius nusikalstamas veikas, skaičius\n• Nepilnamečiai, įtariami (kaltinami ) padarę nusikalstamas veikas\n• Asmenų, nukentėjusių nuo nusikalstamų veikų, skaičius\n• Asmenys, nukentėję dėl smurto artimoje aplinkoje (policijoje užregistruoti pranešimai dėl smurto artimoje aplinkoje)\n• Narkomanija sergantys asmenys\n• Alkoholizmu sergantys asmenys\n• Tuberkulioze sergantys asmenys\n• ŽIV sergantys asmenys\n• Depresija sergantys asmenys\n• Nuotaikų sutrikimų turintys asmenys\n• Valgymo sutrikimai (bulimija, nervinė anoreksija)\n• Pedikulioze ir ftiriaze (utėlėtumu) sergantys asmenys\n• Dantų ligomis sergantys asmenys\n• Sužalojimus dėl nelaimingų įvykių darbe patyrę asmenys\n• Sužalojimus dėl transporto įvykių darbe patyrę asmenys\n• Kitos pasirinktos ligos iš klasifikatoriaus\n• Savižudybių skaičius\nTais atvejais, kai informacija apie pasirinktą tikslinę grupę / veiksmą pateikiama remiantis kitais šaltiniais, negu nurodyti lape „Papildomi_duomenų šaltiniai“, pareiškėjas kartu su skaičiuokle turi pateikti informaciją apie duomenų šaltinį, aprašytą duomenų surinkimo metodą ir kitą duomenų patikimumą pagrindžiančią informaciją. Ši informacija pateikiama lape „Papildomi_duomenų šaltiniai“ esančioje lentelėje „Kitos pasirinktos informacijos pagrindimas“.\nPastaba. Visais atvejais tikslinės grupės dydis (skaičius) turi būti pagrįstas ir patikrinamas.\n"]
[]
["13.","Įvykdžius 12-ąjį žingsnį, BG stulpelyje „8. Planuojamas poveikio vidurkis (2018–2021 m.), proc.“ automatiškai yra apskaičiuojamas visų metų socialinio verslo poveikio vidurkis (šio stulpelio eilučių pildyti nereikia). Atitinkamai skiltyje „Pasirinktų rodiklių poveikio suma, %“, kuri yra skaičiuoklės apatinėje eilutėje, automatiškai yra apskaičiuojama visų pasirinktų rodiklių poveikių suma pamečiui (šio stulpelio eilučių taip pat pildyti nereikia). \nŠios suminės eilutės duomenys bus reikalingi pildant duomenis paraiškoje, kurioje bus įrašomas socialinio verslo poveikis. Suminės eilutės duomenys taip pat persikelia į skaičiuoklės lapą „Suminė soc. poveikio reikšmė“."]
["14.","Tuo atveju, jeigu pareiškėjo užpildyti duomenys rodo, kad socialinio verslo poveikis (bent vienais metais) yra lygus „0 %“, jis BF stulpelyje „9. Rodiklio reikšmės „0%“ pagrindimas“ turi pagrįsti ir paaiškinti, kodėl jis toks yra (pvz., dirbama su itin specifine tiksline grupe (privaloma nurodyti tikslinę grupę), kuriai padaryti poveikį trunka ilgiau nei 1-us metus)."]
["15.","Skaičiuoklės BI stulpelyje „10. Pastabos, komentarai“ pareiškėjas gali įrašyti papildomą informaciją ar komentarus, tačiau tik tuo atveju, jeigu jie yra esminiai ir būtini skaičiuoklės (poveikio rezultato) vertinimui.\nKai pareiškėjas yra įvykdęs visus prieš tai buvusius privalomus žingsnius, šią užpildytą skaičiuoklę kartu su paraiška jis turi pateikti paraišką priimančiai institucijai, kuri ją analizuos ir vertins kartu su pateikta paraiška.\nSkaičiuoklės BI stulpelyje „Pastabos, komentarai“ pareiškėjas gali įrašyti papildomą informaciją ar komentarus, tačiau tik tuo atveju, jeigu jie yra esminiai ir būtini skaičiuoklės (poveikio rezultato) vertinimui.\nKai pareiškėjas yra įvykdęs visus prieš tai buvusius privalomus žingsnius, šią užpildytą skaičiuoklę kartu su paraiška jis turi pateikti paraišką priimančiai institucijai, kuri ją analizuos ir vertins kartu su pateikta paraiška.\n"]
[]
[null,"Pastaba. Atkreiptinas dėmesys, kad socialinio verslo vykdytojai (pareiškėjai) skaičiuoklėje gali pasirinkti daugiau negu vieną tikslą / potikslius / tikslines grupes / rodiklius, tačiau jų apskaičiavimas turi būti pagrįstas (patikimais ir patikrinamais duomenimis) ir realus (įgyvendinamas)."]

{"sheet":"Informacija apie pareiškėją","index":1,"n_rows":31,"n_cols":5,"rows_kept":31,"merged":[[1,4,1,8],[2,0,3,8],[5,3,5,5],[8,3,8,5],[12,0,13,8],[15,3,15,5],[19,0,19,3],[22,0,22,5],[25,0,25,5],[28,0,28,5],[31,0,31,5]]}
[]
[]
["Socialinio verslo poveikio vertinimo skaičiuoklės pagal Lietuvos kaimo plėtros 2014–2020 metų programos priemonės ,,Ūkio ir verslo plėtra“ \nveiklos sritį ,,Parama ekonominės veiklos pradžiai kaimo vietovėse“ forma"]
[]
[]
[]
[{"$nulls":4}," (dokumento sudarytojo pavadinimas)"]
[]
[]
[{"$nulls":4},"(sudarymo vieta)"]
[]
[]
["SOCIALINIO VERSLO POVEIKIO MATAVIMO SKAIČIUOKLĖ PAGAL LIETUVOS KAIMO PLĖTROS 2014–2020 METŲ PROGRAMOS PRIEMONĖS „ŪKIO IR VERSLO PLĖTRA“ VEIKLOS SRITĮ „PARAMA EKONOMINĖS VEIKLOS PRADŽIAI KAIMO VIETOVĖSE“ "]
[]
[]
[]
[{"$nulls":4}," (data)"]
[]
[]
["INFORMACIJA APIE PAREIŠKĖJĄ"]
[]
["Pareiškėjo juridinio asmens pavadinimas"]
[]
[]
["Juridinio asmens kodas "]
[]
[]
["Pareiškėjo veiklos sritis"]
[]
[]
["Pareiškėjo kontaktai (telefonas, el. paštas)"]

{"sheet":"Skaičiuoklė","index":2,"n_rows":23,"n_cols":60,"rows_kept":23,"merged":[[0,14,0,45],[0,49,0,56],[0,57,1,57],[0,58,1,58],[0,59,1,59],[1,14,1,17],[1,18,1,21],[1,22,1,25],[1,26,1,29],[1,30,1,33],[1,34,1,37],[1,38,1,41],[1,42,1,45],[22,12,22,13],[22,14,22,17],[22,18,22,21],[22,22,22,25],[22,26,22,29],[22,30,22,33],[22,34,22,37],[22,38,22,41],[22,42,22,45],[22,47,22,48]],"read":"row_number_cap"}
["Socialinio verslo poveikio vertinimo rodikliai ir jų skaičiavimo metodų aprašymas",{"$nulls":13},"7. Planuojamas poveikis\n(supildomos planuojamos rodiklio dedamųjų reikšmės pagal viešai prieinamus ar kitus pagrįstus patikimus duomenis) \nViešų duomenų sąrašas pateikiamas papildomame skaičiuoklės skirtuke \"Papildomas_Duomenų šaltiniai\"",{"$nulls":42},"8. Rodiklio reikšmės „0%“ pagrindimas (pvz.: dirbama su itin specifine tiksline rizika, kurią paveikti trunka ilgiau nei 1-erius metus)","9. Planuojamas poveikio vidurkis \n(2018-2021 m.), proc.","10. Pastabos, komentarai"]
["Kriterijus","1. Veiklos sritis","2. Sritis, kurioje vykdoma veikla","2.1. Veiklos tikslas","2.2. Potikslis ","3. Tikslinė grupė arba tam tikra liga (sutrikimu) sergančių asmenų grupė","4. Rodiklis tikslo pasiekimui įvertinti ","4.1. Rodiklio tipas "," Papildomas klasifikatorius\n\n4.2. Informacijos temos / paslaugos"," Papildomas klasifikatorius\n\n4.3. Gebėjimai / kompetencijos","4.4. Papildomo rodiklio atskira skaičiavimo metodika","5. Skaičiavimo metodas\n(gerai, kai rodiklio reikšmė didėja pamečiui ir >0)","5.1.Skaičiavimo periodiškumas","6. Pasirinktos tikslinės grupės dydis (skaičius, vnt.) veiklą vykdomoje vietoje (gyvenvietėje, rajone ar kt.)","2018\n\nPoveikis apskaičiuojamas automatiškai. Pareiškėjas turi įvesti formulėje nurodytas reikšmes (a; b; a(t-1))",{"$nulls":3},"2019\n\nPoveikis apskaičiuojamas automatiškai. Pareiškėjas turi įvesti formulėje nurodytas reikšmes (a; b; a(t-1))",{"$nulls":3},"2020\n\nPoveikis apskaičiuojamas automatiškai. Pareiškėjas turi įvesti formulėje nurodytas reikšmes (a; b; a(t-1))",{"$nulls":3},"2021\n\nPoveikis apskaičiuojamas automatiškai. Pareiškėjas turi įvesti formulėje nurodytas reikšmes (a; b; a(t-1))",{"$nulls":3},"2022\n\nPoveikis apskaičiuojamas automatiškai. Pareiškėjas turi įvesti formulėje nurodytas reikšmes (a; b; a(t-1))",{"$nulls":3},"2023\n\nPoveikis apskaičiuojamas automatiškai. Pareiškėjas turi įvesti formulėje nurodytas reikšmes (a; b; a(t-1))",{"$nulls":3},"2024\n\nPoveikis apskaičiuojamas automatiškai. Pareiškėjas turi įvesti formulėje nurodytas reikšmes (a; b; a(t-1))",{"$nulls":3},"2025\n\nPoveikis apskaičiuojamas automatiškai. Pareiškėjas turi įvesti formulėje nurodytas reikšmes (a; b; a(t-1))",{"$nulls":3},"5. Skaičiavimo metodas\n(Gerai, kai rodiklio reikšmė didėja pamečiui ir >0)","5.1.Skaičiavimo periodiškumas","6. Pasirinktos tikslinės grupės dydis (skaičius, vnt.) veiklą vykdomoje vietoje (gyvenvietėje, rajone ar kt.)","2018\n\nPoveikis apskaičiuojamas pareiškėjo, langelyje įrašoma gauta poveikio reikšmė","2019\n\nPoveikis apskaičiuojamas pareiškėjo, langelyje įrašoma gauta poveikio reikšmė","2020\n\nPoveikis apskaičiuojamas pareiškėjo, langelyje įrašoma gauta poveikio reikšmė","2021\n\nPoveikis apskaičiuojamas pareiškėjo, langelyje įrašoma gauta poveikio reikšmė","2022\n\nPoveikis apskaičiuojamas pareiškėjo, langelyje įrašoma gauta poveikio reikšmė","2023\n\nPoveikis apskaičiuojamas pareiškėjo, langelyje įrašoma gauta poveikio reikšmė","2024\n\nPoveikis apskaičiuojamas pareiškėjo, langelyje įrašoma gauta poveikio reikšmė","2025\n\nPoveikis apskaičiuojamas pareiškėjo, langelyje įrašoma gauta poveikio reikšmė"]
["Eil. Nr. / Pastabos","Pasirenkama iš klasifikatoriaus","Pasirenkama iš klasifikatoriaus","Pasirenkama iš klasifikatoriaus","Pasirenkama iš klasifikatoriaus","Pasirenkama iš klasifikatoriaus","Pasirenkama iš klasifikatoriaus","Priskiriamas automatiškai, pasirinkus rodiklį","Pasirenkama iš klasifikatoriaus, jei veikla vykdoma pagal \"Sveikata\" veiklos sritį ","Pasirenkama iš klasifikatoriaus, jei veikla vykdoma pagal \"Švietimas\" veiklos sritį ","Pildoma tuo atveju, kai pareiškėjas taiko kitokį negu skaičiuoklėje nustatytas pasirinkto papildomo rodiklio skaičiavimo metodą","Metodas parenkamas automatiškai","Metodas parenkamas automatiškai","Reikšmė įrašoma pareiškėjo\n(įrašomas sveikas skaičius be vienetų pav.)","a \narba a(t)","b","a(t-1) arba c","Poveikis, %","a \narba a(t)","b","a(t-1) arba c","Poveikis, %","a \narba a(t)","b","a(t-1) arba c","Poveikis, %","a \narba a(t)","b","a(t-1) arba c","Poveikis, %","a \narba a(t)","b","a(t-1) arba c","Poveikis, %","a \narba a(t)","b","a(t-1) arba c","Poveikis, %","a \narba a(t)","b","a(t-1) arba c","Poveikis, %","a \narba a(t)","b","a(t-1) arba c","Poveikis, %","Metodas aprašomas pareiškėjo, nurodant poveikio apskaičiavimui naudojamą formulę, kintamuosius bei kintamųjų reikšmes","Metodas aprašomas pareiškėjo","Reikšmė įrašoma pareiškėjo\n(įrašomas sveikas skaičius be vienetų pav.)","Poveikis, %","Poveikis, %","Poveikis, %","Poveikis, %","Poveikis, %","Poveikis, %","Poveikis, %","Poveikis, %","Reikšmė įrašoma pareiškėjo","Apskaičiuojama automatiškai","Reikšmė įrašoma pareiškėjo"]
[1,null,{"$f":"IF(B4=Papildomas_klasifikatoriai!$C$5,Papildomas_klasifikatoriai!$D$5,IF(B4=Papildomas_klasifikatoriai!$C$6,Papildomas_klasifikatoriai!$D$6,IF(B4=Papildomas_klasifikatoriai!$C$7,Papildomas_klasifikatoriai!$D$7,IF(B4=Papildomas_klasifikatoriai!$C$8,Papildomas_klasifikatoriai!$D$8,IF(B4=Papildomas_klasifikatoriai!$C$9,Papildomas_klasifikatoriai!$D$9,\"\")))))","v":""},{"$nulls":4},{"$f":"IFERROR(INDEX(Papildomas_klasifikatoriai!$AR$4:$AR$90,MATCH(TRUE,INDEX(Papildomas_klasifikatoriai!$AQ$4:$AQ$90=G4,0),0)),\"\")","v":0},{"$f":"IF(OR(G4=Papildomas_klasifikatoriai!$AQ$27,G4=Papildomas_klasifikatoriai!$AQ$32,G4=\"\"),\"\",\"N/A\")","v":""},{"$f":"IF(OR(B4=\"Švietimas\",B4=\"\"),\"\",\"N/A\")","v":""},{"$f":"IF(H4=\"Pagrindinis\",\"N/A\",\"\")","v":""},{"$f":"IFERROR(INDEX(Papildomas_klasifikatoriai!$AS$4:$AS$90,MATCH(TRUE,INDEX(Papildomas_klasifikatoriai!$AQ$4:$AQ$90=G4,0),0)),\"\")","v":0},{"$f":"IFERROR(INDEX(Papildomas_klasifikatoriai!$AT$4:$AT$90,MATCH(TRUE,INDEX(Papildomas_klasifikatoriai!$AQ$4:$AQ$90=G4,0),0)),\"\")","v":0},{"$nulls":4},{"$f":"IFERROR(IF(OR($L4=Papildomas_klasifikatoriai!$AS$22,$L4=Papildomas_klasifikatoriai!$AS$23,$L4=Papildomas_klasifikatoriai!$AS$39,$L4=Papildomas_klasifikatoriai!$AS$41,$L4=Papildomas_klasifikatoriai!$AS$42),(O4-Q4)/P4*100,O4/P4*100),\"\")","v":""},{"$nulls":3},{"$f":"IFERROR(IF(OR($L4=Papildomas_klasifikatoriai!$AS$22,$L4=Papildomas_klasifikatoriai!$AS$23,$L4=Papildomas_klasifikatoriai!$AS$39,$L4=Papildomas_klasifikatoriai!$AS$41,$L4=Papildomas_klasifikatoriai!$AS$42),(S4-U4)/T4*100,S4/T4*100),\"\")","v":""},{"$nulls":3},{"$f":"IFERROR(IF(OR($L4=Papildomas_klasifikatoriai!$AS$22,$L4=Papildomas_klasifikatoriai!$AS$23,$L4=Papildomas_klasifikatoriai!$AS$39,$L4=Papildomas_klasifikatoriai!$AS$41,$L4=Papildomas_klasifikatoriai!$AS$42),(W4-Y4)/X4*100,W4/X4*100),\"\")","v":""},{"$nulls":3},{"$f":"IFERROR(IF(OR($L4=Papildomas_klasifikatoriai!$AS$22,$L4=Papildomas_klasifikatoriai!$AS$23,$L4=Papildomas_klasifikatoriai!$AS$39,$L4=Papildomas_klasifikatoriai!$AS$41,$L4=Papildomas_klasifikatoriai!$AS$42),(AA4-AC4)/AB4*100,AA4/AB4*100),\"\")","v":""},{"$nulls":3},{"$f":"IFERROR(IF(OR($L4=Papildomas_klasifikatoriai!$AS$22,$L4=Papildomas_klasifikatoriai!$AS$23,$L4=Papildomas_klasifikatoriai!$AS$39,$L4=Papildomas_klasifikatoriai!$AS$41,$L4=Papildomas_klasifikatoriai!$AS$42),(AE4-AG4)/AF4*100,AE4/AF4*100),\"\")","v":""},{"$nulls":3},{"$f":"IFERROR(IF(OR($L4=Papildomas_klasifikatoriai!$AS$22,$L4=Papildomas_klasifikatoriai!$AS$23,$L4=Papildomas_klasifikatoriai!$AS$39,$L4=Papildomas_klasifikatoriai!$AS$41,$L4=Papildomas_klasifikatoriai!$AS$42),(AI4-AK4)/AJ4*100,AI4/AJ4*100),\"\")","v":""},{"$nulls":3},{"$f":"IFERROR(IF(OR($L4=Papildomas_klasifikatoriai!$AS$22,$L4=Papildomas_klasifikatoriai!$AS$23,$L4=Papildomas_klasifikatoriai!$AS$39,$L4=Papildomas_klasifikatoriai!$AS$41,$L4=Papildomas_klasifikatoriai!$AS$42),(AM4-AO4)/AN4*100,AM4/AN4*100),\"\")","v":""},{"$nulls":3},{"$f":"IFERROR(IF(OR($L4=Papildomas_klasifikatoriai!$AS$22,$L4=Papildomas_klasifikatoriai!$AS$23,$L4=Papildomas_klasifikatoriai!$AS$39,$L4=Papildomas_klasifikatoriai!$AS$41,$L4=Papildomas_klasifikatoriai!$AS$42),(AQ4-AS4)/AR4*100,AQ4/AR4*100),\"\")","v":""},{"$nulls":12},{"$f":"IFERROR(IF(SUM(R4,V4,Z4,AD4,AH4,AL4,AP4,AT4)/8>0,SUM(R4,V4,Z4,AD4,AH4,AL4,AP4,AT4)/8,SUM(AX4,AY4,AZ4,BA4,BB4,BC4,BD4,BE4)/8),\"\")","v":{"v":0,"d":"0.00"}}]
[2,null,{"$f":"IF(B5=Papildomas_klasifikatoriai!$C$5,Papildomas_klasifikatoriai!$D$5,IF(B5=Papildomas_klasifikatoriai!$C$6,Papildomas_klasifikatoriai!$D$6,IF(B5=Papildomas_klasifikatoriai!$C$7,Papildomas_klasifikatoriai!$D$7,IF(B5=Papildomas_klasifikatoriai!$C$8,Papildomas_klasifikatoriai!$D$8,IF(B5=Papildomas_klasifikatoriai!$C$9,Papildomas_klasifikatoriai!$D$9,\"\")))))","v":""},{"$nulls":4},{"$f":"IFERROR(INDEX(Papildomas_klasifikatoriai!$AR$4:$AR$90,MATCH(TRUE,INDEX(Papildomas_klasifikatoriai!$AQ$4:$AQ$90=G5,0),0)),\"\")","v":0},{"$f":"IF(OR(G5=Papildomas_klasifikatoriai!$AQ$27,G5=Papildomas_klasifikatoriai!$AQ$32,G5=\"\"),\"\",\"N/A\")","v":""},{"$f":"IF(OR(B5=\"Švietimas\",B5=\"\"),\"\",\"N/A\")","v":""},{"$f":"IF(H5=\"Pagrindinis\",\"N/A\",\"\")","v":""},{"$f":"IFERROR(INDEX(Papildomas_klasifikatoriai!$AS$4:$AS$90,MATCH(TRUE,INDEX(Papildomas_klasifikatoriai!$AQ$4:$AQ$90=G5,0),0)),\"\")","v":0},{"$f":"IFERROR(INDEX(Papildomas_klasifikatoriai!$AT$4:$AT$90,MATCH(TRUE,INDEX(Papildomas_klasifikatoriai!$AQ$4:$AQ$90=G5,0),0)),\"\")","v":0},{"$nulls":4},{"$f":"IFERROR(IF(OR($L5=Papildomas_klasifikatoriai!$AS$22,$L5=Papildomas_klasifikatoriai!$AS$23,$L5=Papildomas_klasifikatoriai!$AS$39,$L5=Papildomas_klasifikatoriai!$AS$41,$L5=Papildomas_klasifikatoriai!$AS$42),(O5-Q5)/P5*100,O5/P5*100),\"\")","v":""},{"$nulls":3},{"$f":"IFERROR(IF(OR($L5=Papildomas_klasifikatoriai!$AS$22,$L5=Papildomas_klasifikatoriai!$AS$23,$L5=Papildomas_klasifikatoriai!$AS$39,$L5=Papildomas_klasifikatoriai!$AS$41,$L5=Papildomas_klasifikatoriai!$AS$42),(S5-U5)/T5*100,S5/T5*100),\"\")","v":""},{"$nulls":3},{"$f":"IFERROR(IF(OR($L5=Papildomas_klasifikatoriai!$AS$22,$L5=Papildomas_klasifikatoriai!$AS$23,$L5=Papildomas_klasifikatoriai!$AS$39,$L5=Papildomas_klasifikatoriai!$AS$41,$L5=Papildomas_klasifikatoriai!$AS$42),(W5-Y5)/X5*100,W5/X5*100),\"\")","v":""},{"$nulls":3},{"$f":"IFERROR(IF(OR($L5=Papildomas_klasifikatoriai!$AS$22,$L5=Papildomas_klasifikatoriai!$AS$23,$L5=Papildomas_klasifikatoriai!$AS$39,$L5=Papildomas_klasifikatoriai!$AS$41,$L5=Papildomas_klasifikatoriai!$AS$42),(AA5-AC5)/AB5*100,AA5/AB5*100),\"\")","v":""},{"$nulls":3},{"$f":"IFERROR(IF(OR($L5=Papildomas_klasifikatoriai!$AS$22,$L5=Papildomas_klasifikatoriai!$AS$23,$L5=Papildomas_klasifikatoriai!$AS$39,$L5=Papildomas_klasifikatoriai!$AS$41,$L5=Papildomas_klasifikatoriai!$AS$42),(AE5-AG5)/AF5*100,AE5/AF5*100),\"\")","v":""},{"$nulls":3},{"$f":"IFERROR(IF(OR($L5=Papildomas_klasifikatoriai!$AS$22,$L5=Papildomas_klasifikatoriai!$AS$23,$L5=Papildomas_klasifikatoriai!$AS$39,$L5=Papildomas_klasifikatoriai!$AS$41,$L5=Papildomas_klasifikatoriai!$AS$42),(AI5-AK5)/AJ5*100,AI5/AJ5*100),\"\")","v":""},{"$nulls":3},{"$f":"IFERROR(IF(OR($L5=Papildomas_klasifikatoriai!$AS$22,$L5=Papildomas_klasifikatoriai!$AS$23,$L5=Papildomas_klasifikatoriai!$AS$39,$L5=Papildomas_klasifikatoriai!$AS$41,$L5=Papildomas_klasifikatoriai!$AS$42),(AM5-AO5)/AN5*100,AM5/AN5*100),\"\")","v":""},{"$nulls":3},{"$f":"IFERROR(IF(OR($L5=Papildomas_klasifikatoriai!$AS$22,$L5=Papildomas_klasifikatoriai!$AS$23,$L5=Papildomas_klasifikatoriai!$AS$39,$L5=Papildomas_klasifikatoriai!$AS$41,$L5=Papildomas_klasifikatoriai!$AS$42),(AQ5-AS5)/AR5*100,AQ5/AR5*100),\"\")","v":""},{"$nulls":12},{"$f":"IFERROR(IF(SUM(R5,V5,Z5,AD5,AH5,AL5,AP5,AT5)/8>0,SUM(R5,V5,Z5,AD5,AH5,AL5,AP5,AT5)/8,SUM(AX5,AY5,AZ5,BA5,BB5,BC5,BD5,BE5)/8),\"\")","v":{"v":0,"d":"0.00"}}]
[3,null,{"$f":"IF(B6=Papildomas_klasifikatoriai!$C$5,Papildomas_klasifikatoriai!$D$5,IF(B6=Papildomas_klasifikatoriai!$C$6,Papildomas_klasifikatoriai!$D$6,IF(B6=Papildomas_klasifikatoriai!$C$7,Papildomas_klasifikatoriai!$D$7,IF(B6=Papildomas_klasifikatoriai!$C$8,Papildomas_klasifikatoriai!$D$8,IF(B6=Papildomas_klasifikatoriai!$C$9,Papildomas_klasifikatoriai!$D$9,\"\")))))","v":""},{"$nulls":4},{"$f":"IFERROR(INDEX(Papildomas_klasifikatoriai!$AR$4:$AR$90,MATCH(TRUE,INDEX(Papildomas_klasifikatoriai!$AQ$4:$AQ$90=G6,0),0)),\"\")","v":0},{"$f":"IF(OR(G6=Papildomas_klasifikatoriai!$AQ$27,G6=Papildomas_klasifikatoriai!$AQ$32,G6=\"\"),\"\",\"N/A\")","v":""},{"$f":"IF(OR(B6=\"Švietimas\",B6=\"\"),\"\",\"N/A\")","v":""},{"$f":"IF(H6=\"Pagrindinis\",\"N/A\",\"\")","v":""},{"$f":"IFERROR(INDEX(Papildomas_klasifikatoriai!$AS$4:$AS$90,MATCH(TRUE,INDEX(Papildomas_klasifikatoriai!$AQ$4:$AQ$90=G6,0),0)),\"\")","v":0},{"$f":"IFERROR(INDEX(Papildomas_klasifikatoriai!$AT$4:$AT$90,MATCH(TRUE,INDEX(Papildomas_klasifikatoriai!$AQ$4:$AQ$90=G6,0),0)),\"\")","v":0},{"$nulls":4},{"$f":"IFERROR(IF(OR($L6=Papildomas_klasifikatoriai!$AS$22,$L6=Papildomas_klasifikatoriai!$AS$23,$L6=Papildomas_klasifikatoriai!$AS$39,$L6=Papildomas_klasifikatoriai!$AS$41,$L6=Papildomas_klasifikatoriai!$AS$42),(O6-Q6)/P6*100,O6/P6*100),\"\")","v":""},{"$nulls":3},{"$f":"IFERROR(IF(OR($L6=Papildomas_klasifikatoriai!$AS$22,$L6=Papildomas_klasifikatoriai!$AS$23,$L6=Papildomas_klasifikatoriai!$AS$39,$L6=Papildomas_klasifikatoriai!$AS$41,$L6=Papildomas_klasifikatoriai!$AS$42),(S6-U6)/T6*100,S6/T6*100),\"\")","v":""},{"$nulls":3},{"$f":"IFERROR(IF(OR($L6=Papildomas_klasifikatoriai!$AS$22,$L6=Papildomas_klasifikatoriai!$AS$23,$L6=Papildomas_klasifikatoriai!$AS$39,$L6=Papildomas_klasifikatoriai!$AS$41,$L6=Papildomas_klasifikatoriai!$AS$42),(W6-Y6)/X6*100,W6/X6*100),\"\")","v":""},{"$nulls":3},{"$f":"IFERROR(IF(OR($L6=Papildomas_klasifikatoriai!$AS$22,$L6=Papildomas_klasifikatoriai!$AS$23,$L6=Papildomas_klasifikatoriai!$AS$39,$L6=Papildomas_klasifikatoriai!$AS$41,$L6=Papildomas_klasifikatoriai!$AS$42),(AA6-AC6)/AB6*100,AA6/AB6*100),\"\")","v":""},{"$nulls":3},{"$f":"IFERROR(IF(OR($L6=Papildomas_klasifikatoriai!$AS$22,$L6=Papildomas_klasifikatoriai!$AS$23,$L6=Papildomas_klasifikatoriai!$AS$39,$L6=Papildomas_klasifikatoriai!$AS$41,$L6=Papildomas_klasifikatoriai!$AS$42),(AE6-AG6)/AF6*100,AE6/AF6*100),\"\")","v":""},{"$nulls":3},{"$f":"IFERROR(IF(OR($L6=Papildomas_klasifikatoriai!$AS$22,$L6=Papildomas_klasifikatoriai!$AS$23,$L6=Papildomas_klasifikatoriai!$AS$39,$L6=Papildomas_klasifikatoriai!$AS$41,$L6=Papildomas_klasifikatoriai!$AS$42),(AI6-AK6)/AJ6*100,AI6/AJ6*100),\"\")","v":""},{"$nulls":3},{"$f":"IFERROR(IF(OR($L6=Papildomas_klasifikatoriai!$AS$22,$L6=Papildomas_klasifikatoriai!$AS$23,$L6=Papildomas_klasifikatoriai!$AS$39,$L6=Papildomas_klasifikatoriai!$AS$41,$L6=Papildomas_klasifikatoriai!$AS$42),(AM6-AO6)/AN6*100,AM6/AN6*100),\"\")","v":""},{"$nulls":3},{"$f":"IFERROR(IF(OR($L6=Papildomas_klasifikatoriai!$AS$22,$L6=Papildomas_klasifikatoriai!$AS$23,$L6=Papildomas_klasifikatoriai!$AS$39,$L6=Papildomas_klasifikatoriai!$AS$41,$L6=Papildomas_klasifikatoriai!$AS$42),(AQ6-AS6)/AR6*100,AQ6/AR6*100),\"\")","v":""},{"$f":"IFERROR(INDEX(Papildomas_klasifikatoriai!$AS$4:$AS$90,MATCH(TRUE,INDEX(Papildomas_klasifikatoriai!$AQ$4:$AQ$90=AP6,0),0)),\"\")","v":0},{"$nulls":11},{"$f":"IFERROR(IF(SUM(R6,V6,Z6,AD6,AH6,AL6,AP6,AT6)/8>0,SUM(R6,V6,Z6,AD6,AH6,AL6,AP6,AT6)/8,SUM(AX6,AY6,AZ6,BA6,BB6,BC6,BD6,BE6)/8),\"\")","v":{"v":0,"d":"0.00"}}]
[4,null,{"$f":"IF(B7=Papildomas_klasifikatoriai!$C$5,Papildomas_klasifikatoriai!$D$5,IF(B7=Papildomas_klasifikatoriai!$C$6,Papildomas_klasifikatoriai!$D$6,IF(B7=Papildomas_klasifikatoriai!$C$7,Papildomas_klasifikatoriai!$D$7,IF(B7=Papildomas_klasifikatoriai!$C$8,Papildomas_klasifikatoriai!$D$8,IF(B7=Papildomas_klasifikatoriai!$C$9,Papildomas_klasifikatoriai!$D$9,\"\")))))","v":""},{"$nulls":4},{"$f":"IFERROR(INDEX(Papildomas_klasifikatoriai!$AR$4:$AR$90,MATCH(TRUE,INDEX(Papildomas_klasifikatoriai!$AQ$4:$AQ$90=G7,0),0)),\"\")","v":0},{"$f":"IF(OR(G7=Papildomas_klasifikatoriai!$AQ$27,G7=Papildomas_klasifikatoriai!$AQ$32,G7=\"\"),\"\",\"N/A\")","v":""},{"$f":"IF(OR(B7=\"Švietimas\",B7=\"\"),\"\",\"N/A\")","v":""},{"$f":"IF(H7=\"Pagrindinis\",\"N/A\",\"\")","v":""},{"$f":"IFERROR(INDEX(Papildomas_klasifikatoriai!$AS$4:$AS$90,MATCH(TRUE,INDEX(Papildomas_klasifikatoriai!$AQ$4:$AQ$90=G7,0),0)),\"\")","v":0},{"$f":"IFERROR(INDEX(Papildomas_klasifikatoriai!$AT$4:$AT$90,MATCH(TRUE,INDEX(Papildomas_klasifikatoriai!$AQ$4:$AQ$90=G7,0),0)),\"\")","v":0},{"$nulls":4},{"$f":"IFERROR(IF(OR($L7=Papildomas_klasifikatoriai!$AS$22,$L7=Papildomas_klasifikatoriai!$AS$23,$L7=Papildomas_klasifikatoriai!$AS$39,$L7=Papildomas_klasifikatoriai!$AS$41,$L7=Papildomas_klasifikatoriai!$AS$42),(O7-Q7)/P7*100,O7/P7*100),\"\")","v":""},{"$nulls":3},{"$f":"IFERROR(IF(OR($L7=Papildomas_klasifikatoriai!$AS$22,$L7=Papildomas_klasifikatoriai!$AS$23,$L7=Papildomas_klasifikatoriai!$AS$39,$L7=Papildomas_klasifikatoriai!$AS$41,$L7=Papildomas_klasifikatoriai!$AS$42),(S7-U7)/T7*100,S7/T7*100),\"\")","v":""},{"$nulls":3},{"$f":"IFERROR(IF(OR($L7=Papildomas_klasifikatoriai!$AS$22,$L7=Papildomas_klasifikatoriai!$AS$23,$L7=Papildomas_klasifikatoriai!$AS$39,$L7=Papildomas_klasifikatoriai!$AS$41,$L7=Papildomas_klasifikatoriai!$AS$42),(W7-Y7)/X7*100,W7/X7*100),\"\")","v":""},{"$nulls":3},{"$f":"IFERROR(IF(OR($L7=Papildomas_klasifikatoriai!$AS$22,$L7=Papildomas_klasifikatoriai!$AS$23,$L7=Papildomas_klasifikatoriai!$AS$39,$L7=Papildomas_klasifikatoriai!$AS$41,$L7=Papildomas_klasifikatoriai!$AS$42),(AA7-AC7)/AB7*100,AA7/AB7*100),\"\")","v":""},{"$nulls":3},{"$f":"IFERROR(IF(OR($L7=Papildomas_klasifikatoriai!$AS$22,$L7=Papildomas_klasifikatoriai!$AS$23,$L7=Papildomas_klasifikatoriai!$AS$39,$L7=Papildomas_klasifikatoriai!$AS$41,$L7=Papildomas_klasifikatoriai!$AS$42),(AE7-AG7)/AF7*100,AE7/AF7*100),\"\")","v":""},{"$nulls":3},{"$f":"IFERROR(IF(OR($L7=Papildomas_klasifikatoriai!$AS$22,$L7=Papildomas_klasifikatoriai!$AS$23,$L7=Papildomas_klasifikatoriai!$AS$39,$L7=Papildomas_klasifikatoriai!$AS$41,$L7=Papildomas_klasifikatoriai!$AS$42),(AI7-AK7)/AJ7*100,AI7/AJ7*100),\"\")","v":""},{"$nulls":3},{"$f":"IFERROR(IF(OR($L7=Papildomas_klasifikatoriai!$AS$22,$L7=Papildomas_klasifikatoriai!$AS$23,$L7=Papildomas_klasifikatoriai!$AS$39,$L7=Papildomas_klasifikatoriai!$AS$41,$L7=Papildomas_klasifikatoriai!$AS$42),(AM7-AO7)/AN7*100,AM7/AN7*100),\"\")","v":""},{"$nulls":3},{"$f":"IFERROR(IF(OR($L7=Papildomas_klasifikatoriai!$AS$22,$L7=Papildomas_klasifikatoriai!$AS$23,$L7=Papildomas_klasifikatoriai!$AS$39,$L7=Papildomas_klasifikatoriai!$AS$41,$L7=Papildomas_klasifikatoriai!$AS$42),(AQ7-AS7)/AR7*100,AQ7/AR7*100),\"\")","v":""},{"$nulls":12},{"$f":"IFERROR(IF(SUM(R7,V7,Z7,AD7,AH7,AL7,AP7,AT7)/8>0,SUM(R7,V7,Z7,AD7,AH7,AL7,AP7,AT7)/8,SUM(AX7,AY7,AZ7,BA7,BB7,BC7,BD7,BE7)/8),\"\")","v":{"v":0,"d":"0.00"}}]
[5,null,{"$f":"IF(B8=Papildomas_klasifikatoriai!$C$5,Papildomas_klasifikatoriai!$D$5,IF(B8=Papildomas_klasifikatoriai!$C$6,Papildomas_klasifikatoriai!$D$6,IF(B8=Papildomas_klasifikatoriai!$C$7,Papildomas_klasifikatoriai!$D$7,IF(B8=Papildomas_klasifikatoriai!$C$8,Papildomas_klasifikatoriai!$D$8,IF(B8=Papildomas_klasifikatoriai!$C$9,Papildomas_klasifikatoriai!$D$9,\"\")))))","v":""},{"$nulls":4},{"$f":"IFERROR(INDEX(Papildomas_klasifikatoriai!$AR$4:$AR$90,MATCH(TRUE,INDEX(Papildomas_klasifikatoriai!$AQ$4:$AQ$90=G8,0),0)),\"\")","v":0},{"$f":"IF(OR(G8=Papildomas_klasifikatoriai!$AQ$27,G8=Papildomas_klasifikatoriai!$AQ$32,G8=\"\"),\"\",\"N/A\")","v":""},{"$f":"IF(OR(B8=\"Švietimas\",B8=\"\"),\"\",\"N/A\")","v":""},"",{"$f":"IFERROR(INDEX(Papildomas_klasifikatoriai!$AS$4:$AS$90,MATCH(TRUE,INDEX(Papildomas_klasifikatoriai!$AQ$4:$AQ$90=G8,0),0)),\"\")","v":0},{"$f":"IFERROR(INDEX(Papildomas_klasifikatoriai!$AT$4:$AT$90,MATCH(TRUE,INDEX(Papildomas_klasifikatoriai!$AQ$4:$AQ$90=G8,0),0)),\"\")","v":0},{"$nulls":4},{"$f":"IFERROR(IF(OR($L8=Papildomas_klasifikatoriai!$AS$22,$L8=Papildomas_klasifikatoriai!$AS$23,$L8=Papildomas_klasifikatoriai!$AS$39,$L8=Papildomas_klasifikatoriai!$AS$41,$L8=Papildomas_klasifikatoriai!$AS$42),(O8-Q8)/P8*100,O8/P8*100),\"\")","v":""},{"$nulls":3},{"$f":"IFERROR(IF(OR($L8=Papildomas_klasifikatoriai!$AS$22,$L8=Papildomas_klasifikatoriai!$AS$23,$L8=Papildomas_klasifikatoriai!$AS$39,$L8=Papildomas_klasifikatoriai!$AS$41,$L8=Papildomas_klasifikatoriai!$AS$42),(S8-U8)/T8*100,S8/T8*100),\"\")","v":""},{"$nulls":3},{"$f":"IFERROR(IF(OR($L8=Papildomas_klasifikatoriai!$AS$22,$L8=Papildomas_klasifikatoriai!$AS$23,$L8=Papildomas_klasifikatoriai!$AS$39,$L8=Papildomas_klasifikatoriai!$AS$41,$L8=Papildomas_klasifikatoriai!$AS$42),(W8-Y8)/X8*100,W8/X8*100),\"\")","v":""},{"$nulls":3},{"$f":"IFERROR(IF(OR($L8=Papildomas_klasifikatoriai!$AS$22,$L8=Papildomas_klasifikatoriai!$AS$23,$L8=Papildomas_klasifikatoriai!$AS$39,$L8=Papildomas_klasifikatoriai!$AS$41,$L8=Papildomas_klasifikatoriai!$AS$42),(AA8-AC8)/AB8*100,AA8/AB8*100),\"\")","v":""},{"$nulls":3},{"$f":"IFERROR(IF(OR($L8=Papildomas_klasifikatoriai!$AS$22,$L8=Papildomas_klasifikatoriai!$AS$23,$L8=Papildomas_klasifikatoriai!$AS$39,$L8=Papildomas_klasifikatoriai!$AS$41,$L8=Papildomas_klasifikatoriai!$AS$42),(AE8-AG8)/AF8*100,AE8/AF8*100),\"\")","v":""},{"$nulls":3},{"$f":"IFERROR(IF(OR($L8=Papildomas_klasifikatoriai!$AS$22,$L8=Papildomas_klasifikatoriai!$AS$23,$L8=Papildomas_klasifikatoriai!$AS$39,$L8=Papildomas_klasifikatoriai!$AS$41,$L8=Papildomas_klasifikatoriai!$AS$42),(AI8-AK8)/AJ8*100,AI8/AJ8*100),\"\")","v":""},{"$nulls":3},{"$f":"IFERROR(IF(OR($L8=Papildomas_klasifikatoriai!$AS$22,$L8=Papildomas_klasifikatoriai!$AS$23,$L8=Papildomas_klasifikatoriai!$AS$39,$L8=Papildomas_klasifikatoriai!$AS$41,$L8=Papildomas_klasifikatoriai!$AS$42),(AM8-AO8)/AN8*100,AM8/AN8*100),\"\")","v":""},{"$nulls":3},{"$f":"IFERROR(IF(OR($L8=Papildomas_klasifikatoriai!$AS$22,$L8=Papildomas_klasifikatoriai!$AS$23,$L8=Papildomas_klasifikatoriai!$AS$39,$L8=Papildomas_klasifikatoriai!$AS$41,$L8=Papildomas_klasifikatoriai!$AS$42),(AQ8-AS8)/AR8*100,AQ8/AR8*100),\"\")","v":""},{"$f":"IFERROR(INDEX(Papildomas_klasifikatoriai!$AS$4:$AS$90,MATCH(TRUE,INDEX(Papildomas_klasifikatoriai!$AQ$4:$AQ$90=AP8,0),0)),\"\")","v":0},{"$nulls":11},{"v":0,"d":"0.00"}]
[6,null,{"$f":"IF(B9=Papildomas_klasifikatoriai!$C$5,Papildomas_klasifikatoriai!$D$5,IF(B9=Papildomas_klasifikatoriai!$C$6,Papildomas_klasifikatoriai!$D$6,IF(B9=Papildomas_klasifikatoriai!$C$7,Papildomas_klasifikatoriai!$D$7,IF(B9=Papildomas_klasifikatoriai!$C$8,Papildomas_klasifikatoriai!$D$8,IF(B9=Papildomas_klasifikatoriai!$C$9,Papildomas_klasifikatoriai!$D$9,\"\")))))","v":""},{"$nulls":4},{"$f":"IFERROR(INDEX(Papildomas_klasifikatoriai!$AR$4:$AR$90,MATCH(TRUE,INDEX(Papildomas_klasifikatoriai!$AQ$4:$AQ$90=G9,0),0)),\"\")","v":0},{"$f":"IF(OR(G9=Papildomas_klasifikatoriai!$AQ$27,G9=Papildomas_klasifikatoriai!$AQ$32,G9=\"\"),\"\",\"N/A\")","v":""},{"$f":"IF(OR(B9=\"Švietimas\",B9=\"\"),\"\",\"N/A\")","v":""},"",{"$f":"IFERROR(INDEX(Papildomas_klasifikatoriai!$AS$4:$AS$90,MATCH(TRUE,INDEX(Papildomas_klasifikatoriai!$AQ$4:$AQ$90=G9,0),0)),\"\")","v":0},{"$f":"IFERROR(INDEX(Papildomas_klasifikatoriai!$AT$4:$AT$90,MATCH(TRUE,INDEX(Papildomas_klasifikatoriai!$AQ$4:$AQ$90=G9,0),0)),\"\")","v":0},{"$nulls":4},{"$f":"IFERROR(IF(OR($L9=Papildomas_klasifikatoriai!$AS$22,$L9=Papildomas_klasifikatoriai!$AS$23,$L9=Papildomas_klasifikatoriai!$AS$39,$L9=Papildomas_klasifikatoriai!$AS$41,$L9=Papildomas_klasifikatoriai!$AS$42),(O9-Q9)/P9*100,O9/P9*100),\"\")","v":""},{"$nulls":3},{"$f":"IFERROR(IF(OR($L9=Papildomas_klasifikatoriai!$AS$22,$L9=Papildomas_klasifikatoriai!$AS$23,$L9=Papildomas_klasifikatoriai!$AS$39,$L9=Papildomas_klasifikatoriai!$AS$41,$L9=Papildomas_klasifikatoriai!$AS$42),(S9-U9)/T9*100,S9/T9*100),\"\")","v":""},{"$nulls":3},{"$f":"IFERROR(IF(OR($L9=Papildomas_klasifikatoriai!$AS$22,$L9=Papildomas_klasifikatoriai!$AS$23,$L9=Papildomas_klasifikatoriai!$AS$39,$L9=Papildomas_klasifikatoriai!$AS$41,$L9=Papildomas_klasifikatoriai!$AS$42),(W9-Y9)/X9*100,W9/X9*100),\"\")","v":""},{"$nulls":3},{"$f":"IFERROR(IF(OR($L9=Papildomas_klasifikatoriai!$AS$22,$L9=Papildomas_klasifikatoriai!$AS$23,$L9=Papildomas_klasifikatoriai!$AS$39,$L9=Papildomas_klasifikatoriai!$AS$41,$L9=Papildomas_klasifikatoriai!$AS$42),(AA9-AC9)/AB9*100,AA9/AB9*100),\"\")","v":""},{"$nulls":3},{"$f":"IFERROR(IF(OR($L9=Papildomas_klasifikatoriai!$AS$22,$L9=Papildomas_klasifikatoriai!$AS$23,$L9=Papildomas_klasifikatoriai!$AS$39,$L9=Papildomas_klasifikatoriai!$AS$41,$L9=Papildomas_klasifikatoriai!$AS$42),(AE9-AG9)/AF9*100,AE9/AF9*100),\"\")","v":""},{"$nulls":3},{"$f":"IFERROR(IF(OR($L9=Papildomas_klasifikatoriai!$AS$22,$L9=Papildomas_klasifikatoriai!$AS$23,$L9=Papildomas_klasifikatoriai!$AS$39,$L9=Papildomas_klasifikatoriai!$AS$41,$L9=Papildomas_klasifikatoriai!$AS$42),(AI9-AK9)/AJ9*100,AI9/AJ9*100),\"\")","v":""},{"$nulls":3},{"$f":"IFERROR(IF(OR($L9=Papildomas_klasifikatoriai!$AS$22,$L9=Papildomas_klasifikatoriai!$AS$23,$L9=Papildomas_klasifikatoriai!$AS$39,$L9=Papildomas_klasifikatoriai!$AS$41,$L9=Papildomas_klasifikatoriai!$AS$42),(AM9-AO9)/AN9*100,AM9/AN9*100),\"\")","v":""},{"$nulls":3},{"$f":"IFERROR(IF(OR($L9=Papildomas_klasifikatoriai!$AS$22,$L9=Papildomas_klasifikatoriai!$AS$23,$L9=Papildomas_klasifikatoriai!$AS$39,$L9=Papildomas_klasifikatoriai!$AS$41,$L9=Papildomas_klasifikatoriai!$AS$42),(AQ9-AS9)/AR9*100,AQ9/AR9*100),\"\")","v":""},{"$f":"IFERROR(INDEX(Papildomas_klasifikatoriai!$AS$4:$AS$90,MATCH(TRUE,INDEX(Papildomas_klasifikatoriai!$AQ$4:$AQ$90=AP9,0),0)),\"\")","v":0},{"$nulls":11},{"v":0,"d":"0.00"}]
[7,null,{"$f":"IF(B10=Papildomas_klasifikatoriai!$C$5,Papildomas_klasifikatoriai!$D$5,IF(B10=Papildomas_klasifikatoriai!$C$6,Papildomas_klasifikatoriai!$D$6,IF(B10=Papildomas_klasifikatoriai!$C$7,Papildomas_klasifikatoriai!$D$7,IF(B10=Papildomas_klasifikatoriai!$C$8,Papildomas_klasifikatoriai!$D$8,IF(B10=Papildomas_klasifikatoriai!$C$9,Papildomas_klasifikatoriai!$D$9,\"\")))))","v":""},{"$nulls":4},{"$f":"IFERROR(INDEX(Papildomas_klasifikatoriai!$AR$4:$AR$90,MATCH(TRUE,INDEX(Papildomas_klasifikatoriai!$AQ$4:$AQ$90=G10,0),0)),\"\")","v":0},{"$f":"IF(OR(G10=Papildomas_klasifikatoriai!$AQ$27,G10=Papildomas_klasifikatoriai!$AQ$32,G10=\"\"),\"\",\"N/A\")","v":""},"","",{"$f":"IFERROR(INDEX(Papildomas_klasifikatoriai!$AS$4:$AS$90,MATCH(TRUE,INDEX(Papildomas_klasifikatoriai!$AQ$4:$AQ$90=G10,0),0)),\"\")","v":0},{"$f":"IFERROR(INDEX(Papildomas_klasifikatoriai!$AT$4:$AT$90,MATCH(TRUE,INDEX(Papildomas_klasifikatoriai!$AQ$4:$AQ$90=G10,0),0)),\"\")","v":0},{"$nulls":4},{"$f":"IFERROR(IF(OR($L10=Papildomas_klasifikatoriai!$AS$22,$L10=Papildomas_klasifikatoriai!$AS$23,$L10=Papildomas_klasifikatoriai!$AS$39,$L10=Papildomas_klasifikatoriai!$AS$41,$L10=Papildomas_klasifikatoriai!$AS$42),(O10-Q10)/P10*100,O10/P10*100),\"\")","v":""},{"$nulls":3},{"$f":"IFERROR(IF(OR($L10=Papildomas_klasifikatoriai!$AS$22,$L10=Papildomas_klasifikatoriai!$AS$23,$L10=Papildomas_klasifikatoriai!$AS$39,$L10=Papildomas_klasifikatoriai!$AS$41,$L10=Papildomas_klasifikatoriai!$AS$42),(S10-U10)/T10*100,S10/T10*100),\"\")","v":""},{"$nulls":3},{"$f":"IFERROR(IF(OR($L10=Papildomas_klasifikatoriai!$AS$22,$L10=Papildomas_klasifikatoriai!$AS$23,$L10=Papildomas_klasifikatoriai!$AS$39,$L10=Papildomas_klasifikatoriai!$AS$41,$L10=Papildomas_klasifikatoriai!$AS$42),(W10-Y10)/X10*100,W10/X10*100),\"\")","v":""},{"$nulls":3},{"$f":"IFERROR(IF(OR($L10=Papildomas_klasifikatoriai!$AS$22,$L10=Papildomas_klasifikatoriai!$AS$23,$L10=Papildomas_klasifikatoriai!$AS$39,$L10=Papildomas_klasifikatoriai!$AS$41,$L10=Papildomas_klasifikatoriai!$AS$42),(AA10-AC10)/AB10*100,AA10/AB10*100),\"\")","v":""},{"$nulls":3},{"$f":"IFERROR(IF(OR($L10=Papildomas_klasifikatoriai!$AS$22,$L10=Papildomas_klasifikatoriai!$AS$23,$L10=Papildomas_klasifikatoriai!$AS$39,$L10=Papildomas_klasifikatoriai!$AS$41,$L10=Papildomas_klasifikatoriai!$AS$42),(AE10-AG10)/AF10*100,AE10/AF10*100),\"\")","v":""},{"$nulls":3},{"$f":"IFERROR(IF(OR($L10=Papildomas_klasifikatoriai!$AS$22,$L10=Papildomas_klasifikatoriai!$AS$23,$L10=Papildomas_klasifikatoriai!$AS$39,$L10=Papildomas_klasifikatoriai!$AS$41,$L10=Papildomas_klasifikatoriai!$AS$42),(AI10-AK10)/AJ10*100,AI10/AJ10*100),\"\")","v":""},{"$nulls":3},{"$f":"IFERROR(IF(OR($L10=Papildomas_klasifikatoriai!$AS$22,$L10=Papildomas_klasifikatoriai!$AS$23,$L10=Papildomas_klasifikatoriai!$AS$39,$L10=Papildomas_klasifikatoriai!$AS$41,$L10=Papildomas_klasifikatoriai!$AS$42),(AM10-AO10)/AN10*100,AM10/AN10*100),\"\")","v":""},{"$nulls":3},{"$f":"IFERROR(IF(OR($L10=Papildomas_klasifikatoriai!$AS$22,$L10=Papildomas_klasifikatoriai!$AS$23,$L10=Papildomas_klasifikatoriai!$AS$39,$L10=Papildomas_klasifikatoriai!$AS$41,$L10=Papildomas_klasifikatoriai!$AS$42),(AQ10-AS10)/AR10*100,AQ10/AR10*100),\"\")","v":""},{"$f":"IFERROR(INDEX(Papildomas_klasifikatoriai!$AS$4:$AS$90,MATCH(TRUE,INDEX(Papildomas_klasifikatoriai!$AQ$4:$AQ$90=AP10,0),0)),\"\")","v":0},{"$nulls":11},{"v":0,"d":"0.00"}]
[8,null,{"$f":"IF(B11=Papildomas_klasifikatoriai!$C$5,Papildomas_klasifikatoriai!$D$5,IF(B11=Papildomas_klasifikatoriai!$C$6,Papildomas_klasifikatoriai!$D$6,IF(B11=Papildomas_klasifikatoriai!$C$7,Papildomas_klasifikatoriai!$D$7,IF(B11=Papildomas_klasifikatoriai!$C$8,Papildomas_klasifikatoriai!$D$8,IF(B11=Papildomas_klasifikatoriai!$C$9,Papildomas_klasifikatoriai!$D$9,\"\")))))","v":""},{"$nulls":4},{"$f":"IFERROR(INDEX(Papildomas_klasifikatoriai!$AR$4:$AR$90,MATCH(TRUE,INDEX(Papildomas_klasifikatoriai!$AQ$4:$AQ$90=G11,0),0)),\"\")","v":0},{"$f":"IF(OR(G11=Papildomas_klasifikatoriai!$AQ$27,G11=Papildomas_klasifikatoriai!$AQ$32,G11=\"\"),\"\",\"N/A\")","v":""},"","",{"$f":"IFERROR(INDEX(Papildomas_klasifikatoriai!$AS$4:$AS$90,MATCH(TRUE,INDEX(Papildomas_klasifikatoriai!$AQ$4:$AQ$90=G11,0),0)),\"\")","v":0},{"$f":"IFERROR(INDEX(Papildomas_klasifikatoriai!$AT$4:$AT$90,MATCH(TRUE,INDEX(Papildomas_klasifikatoriai!$AQ$4:$AQ$90=G11,0),0)),\"\")","v":0},{"$nulls":4},{"$f":"IFERROR(IF(OR($L11=Papildomas_klasifikatoriai!$AS$22,$L11=Papildomas_klasifikatoriai!$AS$23,$L11=Papildomas_klasifikatoriai!$AS$39,$L11=Papildomas_klasifikatoriai!$AS$41,$L11=Papildomas_klasifikatoriai!$AS$42),(O11-Q11)/P11*100,O11/P11*100),\"\")","v":""},{"$nulls":3},{"$f":"IFERROR(IF(OR($L11=Papildomas_klasifikatoriai!$AS$22,$L11=Papildomas_klasifikatoriai!$AS$23,$L11=Papildomas_klasifikatoriai!$AS$39,$L11=Papildomas_klasifikatoriai!$AS$41,$L11=Papildomas_klasifikatoriai!$AS$42),(S11-U11)/T11*100,S11/T11*100),\"\")","v":""},{"$nulls":3},{"$f":"IFERROR(IF(OR($L11=Papildomas_klasifikatoriai!$AS$22,$L11=Papildomas_klasifikatoriai!$AS$23,$L11=Papildomas_klasifikatoriai!$AS$39,$L11=Papildomas_klasifikatoriai!$AS$41,$L11=Papildomas_klasifikatoriai!$AS$42),(W11-Y11)/X11*100,W11/X11*100),\"\")","v":""},{"$nulls":3},{"$f":"IFERROR(IF(OR($L11=Papildomas_klasifikatoriai!$AS$22,$L11=Papildomas_klasifikatoriai!$AS$23,$L11=Papildomas_klasifikatoriai!$AS$39,$L11=Papildomas_klasifikatoriai!$AS$41,$L11=Papildomas_klasifikatoriai!$AS$42),(AA11-AC11)/AB11*100,AA11/AB11*100),\"\")","v":""},{"$nulls":3},{"$f":"IFERROR(IF(OR($L11=Papildomas_klasifikatoriai!$AS$22,$L11=Papildomas_klasifikatoriai!$AS$23,$L11=Papildomas_klasifikatoriai!$AS$39,$L11=Papildomas_klasifikatoriai!$AS$41,$L11=Papildomas_klasifikatoriai!$AS$42),(AE11-AG11)/AF11*100,AE11/AF11*100),\"\")","v":""},{"$nulls":3},{"$f":"IFERROR(IF(OR($L11=Papildomas_klasifikatoriai!$AS$22,$L11=Papildomas_klasifikatoriai!$AS$23,$L11=Papildomas_klasifikatoriai!$AS$39,$L11=Papildomas_klasifikatoriai!$AS$41,$L11=Papildomas_klasifikatoriai!$AS$42),(AI11-AK11)/AJ11*100,AI11/AJ11*100),\"\")","v":""},{"$nulls":3},{"$f":"IFERROR(IF(OR($L11=Papildomas_klasifikatoriai!$AS$22,$L11=Papildomas_klasifikatoriai!$AS$23,$L11=Papildomas_klasifikatoriai!$AS$39,$L11=Papildomas_klasifikatoriai!$AS$41,$L11=Papildomas_klasifikatoriai!$AS$42),(AM11-AO11)/AN11*100,AM11/AN11*100),\"\")","v":""},{"$nulls":3},{"$f":"IFERROR(IF(OR($L11=Papildomas_klasifikatoriai!$AS$22,$L11=Papildomas_klasifikatoriai!$AS$23,$L11=Papildomas_klasifikatoriai!$AS$39,$L11=Papildomas_klasifikatoriai!$AS$41,$L11=Papildomas_klasifikatoriai!$AS$42),(AQ11-AS11)/AR11*100,AQ11/AR11*100),\"\")","v":""},{"$f":"IFERROR(INDEX(Papildomas_klasifikatoriai!$AS$4:$AS$90,MATCH(TRUE,INDEX(Papildomas_klasifikatoriai!$AQ$4:$AQ$90=AP11,0),0)),\"\")","v":0},{"$nulls":11},{"v":0,"d":"0.00"}]
[9,null,{"$f":"IF(B12=Papildomas_klasifikatoriai!$C$5,Papildomas_klasifikatoriai!$D$5,IF(B12=Papildomas_klasifikatoriai!$C$6,Papildomas_klasifikatoriai!$D$6,IF(B12=Papildomas_klasifikatoriai!$C$7,Papildomas_klasifikatoriai!$D$7,IF(B12=Papildomas_klasifikatoriai!$C$8,Papildomas_klasifikatoriai!$D$8,IF(B12=Papildomas_klasifikatoriai!$C$9,Papildomas_klasifikatoriai!$D$9,\"\")))))","v":""},{"$nulls":4},{"$f":"IFERROR(INDEX(Papildomas_klasifikatoriai!$AR$4:$AR$90,MATCH(TRUE,INDEX(Papildomas_klasifikatoriai!$AQ$4:$AQ$90=G12,0),0)),\"\")","v":0},{"$f":"IF(OR(G12=Papildomas_klasifikatoriai!$AQ$27,G12=Papildomas_klasifikatoriai!$AQ$32,G12=\"\"),\"\",\"N/A\")","v":""},"","",{"$f":"IFERROR(INDEX(Papildomas_klasifikatoriai!$AS$4:$AS$90,MATCH(TRUE,INDEX(Papildomas_klasifikatoriai!$AQ$4:$AQ$90=G12,0),0)),\"\")","v":0},{"$f":"IFERROR(INDEX(Papildomas_klasifikatoriai!$AT$4:$AT$90,MATCH(TRUE,INDEX(Papildomas_klasifikatoriai!$AQ$4:$AQ$90=G12,0),0)),\"\")","v":0},{"$nulls":4},{"$f":"IFERROR(IF(OR($L12=Papildomas_klasifikatoriai!$AS$22,$L12=Papildomas_klasifikatoriai!$AS$23,$L12=Papildomas_klasifikatoriai!$AS$39,$L12=Papildomas_klasifikatoriai!$AS$41,$L12=Papildomas_klasifikatoriai!$AS$42),(O12-Q12)/P12*100,O12/P12*100),\"\")","v":""},{"$nulls":3},{"$f":"IFERROR(IF(OR($L12=Papildomas_klasifikatoriai!$AS$22,$L12=Papildomas_klasifikatoriai!$AS$23,$L12=Papildomas_klasifikatoriai!$AS$39,$L12=Papildomas_klasifikatoriai!$AS$41,$L12=Papildomas_klasifikatoriai!$AS$42),(S12-U12)/T12*100,S12/T12*100),\"\")","v":""},{"$nulls":3},{"$f":"IFERROR(IF(OR($L12=Papildomas_klasifikatoriai!$AS$22,$L12=Papildomas_klasifikatoriai!$AS$23,$L12=Papildomas_klasifikatoriai!$AS$39,$L12=Papildomas_klasifikatoriai!$AS$41,$L12=Papildomas_klasifikatoriai!$AS$42),(W12-Y12)/X12*100,W12/X12*100),\"\")","v":""},{"$nulls":3},{"$f":"IFERROR(IF(OR($L12=Papildomas_klasifikatoriai!$AS$22,$L12=Papildomas_klasifikatoriai!$AS$23,$L12=Papildomas_klasifikatoriai!$AS$39,$L12=Papildomas_klasifikatoriai!$AS$41,$L12=Papildomas_klasifikatoriai!$AS$42),(AA12-AC12)/AB12*100,AA12/AB12*100),\"\")","v":""},{"$nulls":3},{"$f":"IFERROR(IF(OR($L12=Papildomas_klasifikatoriai!$AS$22,$L12=Papildomas_klasifikatoriai!$AS$23,$L12=Papildomas_klasifikatoriai!$AS$39,$L12=Papildomas_klasifikatoriai!$AS$41,$L12=Papildomas_klasifikatoriai!$AS$42),(AE12-AG12)/AF12*100,AE12/AF12*100),\"\")","v":""},{"$nulls":3},{"$f":"IFERROR(IF(OR($L12=Papildomas_klasifikatoriai!$AS$22,$L12=Papildomas_klasifikatoriai!$AS$23,$L12=Papildomas_klasifikatoriai!$AS$39,$L12=Papildomas_klasifikatoriai!$AS$41,$L12=Papildomas_klasifikatoriai!$AS$42),(AI12-AK12)/AJ12*100,AI12/AJ12*100),\"\")","v":""},{"$nulls":3},{"$f":"IFERROR(IF(OR($L12=Papildomas_klasifikatoriai!$AS$22,$L12=Papildomas_klasifikatoriai!$AS$23,$L12=Papildomas_klasifikatoriai!$AS$39,$L12=Papildomas_klasifikatoriai!$AS$41,$L12=Papildomas_klasifikatoriai!$AS$42),(AM12-AO12)/AN12*100,AM12/AN12*100),\"\")","v":""},{"$nulls":3},{"$f":"IFERROR(IF(OR($L12=Papildomas_klasifikatoriai!$AS$22,$L12=Papildomas_klasifikatoriai!$AS$23,$L12=Papildomas_klasifikatoriai!$AS$39,$L12=Papildomas_klasifikatoriai!$AS$41,$L12=Papildomas_klasifikatoriai!$AS$42),(AQ12-AS12)/AR12*100,AQ12/AR12*100),\"\")","v":""},{"$f":"IFERROR(INDEX(Papildomas_klasifikatoriai!$AS$4:$AS$90,MATCH(TRUE,INDEX(Papildomas_klasifikatoriai!$AQ$4:$AQ$90=AP12,0),0)),\"\")","v":0},{"$nulls":11},{"v":0,"d":"0.00"}]
[10,null,{"$f":"IF(B13=Papildomas_klasifikatoriai!$C$5,Papildomas_klasifikatoriai!$D$5,IF(B13=Papildomas_klasifikatoriai!$C$6,Papildomas_klasifikatoriai!$D$6,IF(B13=Papildomas_klasifikatoriai!$C$7,Papildomas_klasifikatoriai!$D$7,IF(B13=Papildomas_klasifikatoriai!$C$8,Papildomas_klasifikatoriai!$D$8,IF(B13=Papildomas_klasifikatoriai!$C$9,Papildomas_klasifikatoriai!$D$9,\"\")))))","v":""},{"$nulls":4},{"$f":"IFERROR(INDEX(Papildomas_klasifikatoriai!$AR$4:$AR$90,MATCH(TRUE,INDEX(Papildomas_klasifikatoriai!$AQ$4:$AQ$90=G13,0),0)),\"\")","v":0},{"$f":"IF(OR(G13=Papildomas_klasifikatoriai!$AQ$27,G13=Papildomas_klasifikatoriai!$AQ$32,G13=\"\"),\"\",\"N/A\")","v":""},"","",{"$f":"IFERROR(INDEX(Papildomas_klasifikatoriai!$AS$4:$AS$90,MATCH(TRUE,INDEX(Papildomas_klasifikatoriai!$AQ$4:$AQ$90=G13,0),0)),\"\")","v":0},{"$f":"IFERROR(INDEX(Papildomas_klasifikatoriai!$AT$4:$AT$90,MATCH(TRUE,INDEX(Papildomas_klasifikatoriai!$AQ$4:$AQ$90=G13,0),0)),\"\")","v":0},{"$nulls":4},{"$f":"IFERROR(IF(OR($L13=Papildomas_klasifikatoriai!$AS$22,$L13=Papildomas_klasifikatoriai!$AS$23,$L13=Papildomas_klasifikatoriai!$AS$39,$L13=Papildomas_klasifikatoriai!$AS$41,$L13=Papildomas_klasifikatoriai!$AS$42),(O13-Q13)/P13*100,O13/P13*100),\"\")","v":""},{"$nulls":3},{"$f":"IFERROR(IF(OR($L13=Papildomas_klasifikatoriai!$AS$22,$L13=Papildomas_klasifikatoriai!$AS$23,$L13=Papildomas_klasifikatoriai!$AS$39,$L13=Papildomas_klasifikatoriai!$AS$41,$L13=Papildomas_klasifikatoriai!$AS$42),(S13-U13)/T13*100,S13/T13*100),\"\")","v":""},{"$nulls":3},{"$f":"IFERROR(IF(OR($L13=Papildomas_klasifikatoriai!$AS$22,$L13=Papildomas_klasifikatoriai!$AS$23,$L13=Papildomas_klasifikatoriai!$AS$39,$L13=Papildomas_klasifikatoriai!$AS$41,$L13=Papildomas_klasifikatoriai!$AS$42),(W13-Y13)/X13*100,W13/X13*100),\"\")","v":""},{"$nulls":3},{"$f":"IFERROR(IF(OR($L13=Papildomas_klasifikatoriai!$AS$22,$L13=Papildomas_klasifikatoriai!$AS$23,$L13=Papildomas_klasifikatoriai!$AS$39,$L13=Papildomas_klasifikatoriai!$AS$41,$L13=Papildomas_klasifikatoriai!$AS$42),(AA13-AC13)/AB13*100,AA13/AB13*100),\"\")","v":""},{"$nulls":3},{"$f":"IFERROR(IF(OR($L13=Papildomas_klasifikatoriai!$AS$22,$L13=Papildomas_klasifikatoriai!$AS$23,$L13=Papildomas_klasifikatoriai!$AS$39,$L13=Papildomas_klasifikatoriai!$AS$41,$L13=Papildomas_klasifikatoriai!$AS$42),(AE13-AG13)/AF13*100,AE13/AF13*100),\"\")","v":""},{"$nulls":3},{"$f":"IFERROR(IF(OR($L13=Papildomas_klasifikatoriai!$AS$22,$L13=Papildomas_klasifikatoriai!$AS$23,$L13=Papildomas_klasifikatoriai!$AS$39,$L13=Papildomas_klasifikatoriai!$AS$41,$L13=Papildomas_klasifikatoriai!$AS$42),(AI13-AK13)/AJ13*100,AI13/AJ13*100),\"\")","v":""},{"$nulls":3},{"$f":"IFERROR(IF(OR($L13=Papildomas_klasifikatoriai!$AS$22,$L13=Papildomas_klasifikatoriai!$AS$23,$L13=Papildomas_klasifikatoriai!$AS$39,$L13=Papildomas_klasifikatoriai!$AS$41,$L13=Papildomas_klasifikatoriai!$AS$42),(AM13-AO13)/AN13*100,AM13/AN13*100),\"\")","v":""},{"$nulls":3},{"$f":"IFERROR(IF(OR($L13=Papildomas_klasifikatoriai!$AS$22,$L13=Papildomas_klasifikatoriai!$AS$23,$L13=Papildomas_klasifikatoriai!$AS$39,$L13=Papildomas_klasifikatoriai!$AS$41,$L13=Papildomas_klasifikatoriai!$AS$42),(AQ13-AS13)/AR13*100,AQ13/AR13*100),\"\")","v":""},{"$f":"IFERROR(INDEX(Papildomas_klasifikatoriai!$AS$4:$AS$90,MATCH(TRUE,INDEX(Papildomas_klasifikatoriai!$AQ$4:$AQ$90=AP13,0),0)),\"\")","v":0},{"$nulls":11},{"v":0,"d":"0.00"}]
[11,null,{"$f":"IF(B14=Papildomas_klasifikatoriai!$C$5,Papildomas_klasifikatoriai!$D$5,IF(B14=Papildomas_klasifikatoriai!$C$6,Papildomas_klasifikatoriai!$D$6,IF(B14=Papildomas_klasifikatoriai!$C$7,Papildomas_klasifikatoriai!$D$7,IF(B14=Papildomas_klasifikatoriai!$C$8,Papildomas_klasifikatoriai!$D$8,IF(B14=Papildomas_klasifikatoriai!$C$9,Papildomas_klasifikatoriai!$D$9,\"\")))))","v":""},{"$nulls":4},{"$f":"IFERROR(INDEX(Papildomas_klasifikatoriai!$AR$4:$AR$90,MATCH(TRUE,INDEX(Papildomas_klasifikatoriai!$AQ$4:$AQ$90=G14,0),0)),\"\")","v":0},{"$f":"IF(OR(G14=Papildomas_klasifikatoriai!$AQ$27,G14=Papildomas_klasifikatoriai!$AQ$32,G14=\"\"),\"\",\"N/A\")","v":""},"","",{"$f":"IFERROR(INDEX(Papildomas_klasifikatoriai!$AS$4:$AS$90,MATCH(TRUE,INDEX(Papildomas_klasifikatoriai!$AQ$4:$AQ$90=G14,0),0)),\"\")","v":0},{"$f":"IFERROR(INDEX(Papildomas_klasifikatoriai!$AT$4:$AT$90,MATCH(TRUE,INDEX(Papildomas_klasifikatoriai!$AQ$4:$AQ$90=G14,0),0)),\"\")","v":0},{"$nulls":4},{"$f":"IFERROR(IF(OR($L14=Papildomas_klasifikatoriai!$AS$22,$L14=Papildomas_klasifikatoriai!$AS$23,$L14=Papildomas_klasifikatoriai!$AS$39,$L14=Papildomas_klasifikatoriai!$AS$41,$L14=Papildomas_klasifikatoriai!$AS$42),(O14-Q14)/P14*100,O14/P14*100),\"\")","v":""},{"$nulls":3},{"$f":"IFERROR(IF(OR($L14=Papildomas_klasifikatoriai!$AS$22,$L14=Papildomas_klasifikatoriai!$AS$23,$L14=Papildomas_klasifikatoriai!$AS$39,$L14=Papildomas_klasifikatoriai!$AS$41,$L14=Papildomas_klasifikatoriai!$AS$42),(S14-U14)/T14*100,S14/T14*100),\"\")","v":""},{"$nulls":3},{"$f":"IFERROR(IF(OR($L14=Papildomas_klasifikatoriai!$AS$22,$L14=Papildomas_klasifikatoriai!$AS$23,$L14=Papildomas_klasifikatoriai!$AS$39,$L14=Papildomas_klasifikatoriai!$AS$41,$L14=Papildomas_klasifikatoriai!$AS$42),(W14-Y14)/X14*100,W14/X14*100),\"\")","v":""},{"$nulls":3},{"$f":"IFERROR(IF(OR($L14=Papildomas_klasifikatoriai!$AS$22,$L14=Papildomas_klasifikatoriai!$AS$23,$L14=Papildomas_klasifikatoriai!$AS$39,$L14=Papildomas_klasifikatoriai!$AS$41,$L14=Papildomas_klasifikatoriai!$AS$42),(AA14-AC14)/AB14*100,AA14/AB14*100),\"\")","v":""},{"$nulls":3},{"$f":"IFERROR(IF(OR($L14=Papildomas_klasifikatoriai!$AS$22,$L14=Papildomas_klasifikatoriai!$AS$23,$L14=Papildomas_klasifikatoriai!$AS$39,$L14=Papildomas_klasifikatoriai!$AS$41,$L14=Papildomas_klasifikatoriai!$AS$42),(AE14-AG14)/AF14*100,AE14/AF14*100),\"\")","v":""},{"$nulls":3},{"$f":"IFERROR(IF(OR($L14=Papildomas_klasifikatoriai!$AS$22,$L14=Papildomas_klasifikatoriai!$AS$23,$L14=Papildomas_klasifikatoriai!$AS$39,$L14=Papildomas_klasifikatoriai!$AS$41,$L14=Papildomas_klasifikatoriai!$AS$42),(AI14-AK14)/AJ14*100,AI14/AJ14*100),\"\")","v":""},{"$nulls":3},{"$f":"IFERROR(IF(OR($L14=Papildomas_klasifikatoriai!$AS$22,$L14=Papildomas_klasifikatoriai!$AS$23,$L14=Papildomas_klasifikatoriai!$AS$39,$L14=Papildomas_klasifikatoriai!$AS$41,$L14=Papildomas_klasifikatoriai!$AS$42),(AM14-AO14)/AN14*100,AM14/AN14*100),\"\")","v":""},{"$nulls":3},{"$f":"IFERROR(IF(OR($L14=Papildomas_klasifikatoriai!$AS$22,$L14=Papildomas_klasifikatoriai!$AS$23,$L14=Papildomas_klasifikatoriai!$AS$39,$L14=Papildomas_klasifikatoriai!$AS$41,$L14=Papildomas_klasifikatoriai!$AS$42),(AQ14-AS14)/AR14*100,AQ14/AR14*100),\"\")","v":""},{"$f":"IFERROR(INDEX(Papildomas_klasifikatoriai!$AS$4:$AS$90,MATCH(TRUE,INDEX(Papildomas_klasifikatoriai!$AQ$4:$AQ$90=AP14,0),0)),\"\")","v":0},{"$nulls":11},{"v":0,"d":"0.00"}]
[12,null,{"$f":"IF(B15=Papildomas_klasifikatoriai!$C$5,Papildomas_klasifikatoriai!$D$5,IF(B15=Papildomas_klasifikatoriai!$C$6,Papildomas_klasifikatoriai!$D$6,IF(B15=Papildomas_klasifikatoriai!$C$7,Papildomas_klasifikatoriai!$D$7,IF(B15=Papildomas_klasifikatoriai!$C$8,Papildomas_klasifikatoriai!$D$8,IF(B15=Papildomas_klasifikatoriai!$C$9,Papildomas_klasifikatoriai!$D$9,\"\")))))","v":""},{"$nulls":4},{"$f":"IFERROR(INDEX(Papildomas_klasifikatoriai!$AR$4:$AR$90,MATCH(TRUE,INDEX(Papildomas_klasifikatoriai!$AQ$4:$AQ$90=G15,0),0)),\"\")","v":0},{"$f":"IF(OR(G15=Papildomas_klasifikatoriai!$AQ$27,G15=Papildomas_klasifikatoriai!$AQ$32,G15=\"\"),\"\",\"N/A\")","v":""},"","",{"$f":"IFERROR(INDEX(Papildomas_klasifikatoriai!$AS$4:$AS$90,MATCH(TRUE,INDEX(Papildomas_klasifikatoriai!$AQ$4:$AQ$90=G15,0),0)),\"\")","v":0},{"$f":"IFERROR(INDEX(Papildomas_klasifikatoriai!$AT$4:$AT$90,MATCH(TRUE,INDEX(Papildomas_klasifikatoriai!$AQ$4:$AQ$90=G15,0),0)),\"\")","v":0},{"$nulls":4},{"$f":"IFERROR(IF(OR($L15=Papildomas_klasifikatoriai!$AS$22,$L15=Papildomas_klasifikatoriai!$AS$23,$L15=Papildomas_klasifikatoriai!$AS$39,$L15=Papildomas_klasifikatoriai!$AS$41,$L15=Papildomas_klasifikatoriai!$AS$42),(O15-Q15)/P15*100,O15/P15*100),\"\")","v":""},{"$nulls":3},{"$f":"IFERROR(IF(OR($L15=Papildomas_klasifikatoriai!$AS$22,$L15=Papildomas_klasifikatoriai!$AS$23,$L15=Papildomas_klasifikatoriai!$AS$39,$L15=Papildomas_klasifikatoriai!$AS$41,$L15=Papildomas_klasifikatoriai!$AS$42),(S15-U15)/T15*100,S15/T15*100),\"\")","v":""},{"$nulls":3},{"$f":"IFERROR(IF(OR($L15=Papildomas_klasifikatoriai!$AS$22,$L15=Papildomas_klasifikatoriai!$AS$23,$L15=Papildomas_klasifikatoriai!$AS$39,$L15=Papildomas_klasifikatoriai!$AS$41,$L15=Papildomas_klasifikatoriai!$AS$42),(W15-Y15)/X15*100,W15/X15*100),\"\")","v":""},{"$nulls":3},{"$f":"IFERROR(IF(OR($L15=Papildomas_klasifikatoriai!$AS$22,$L15=Papildomas_klasifikatoriai!$AS$23,$L15=Papildomas_klasifikatoriai!$AS$39,$L15=Papildomas_klasifikatoriai!$AS$41,$L15=Papildomas_klasifikatoriai!$AS$42),(AA15-AC15)/AB15*100,AA15/AB15*100),\"\")","v":""},{"$nulls":3},{"$f":"IFERROR(IF(OR($L15=Papildomas_klasifikatoriai!$AS$22,$L15=Papildomas_klasifikatoriai!$AS$23,$L15=Papildomas_klasifikatoriai!$AS$39,$L15=Papildomas_klasifikatoriai!$AS$41,$L15=Papildomas_klasifikatoriai!$AS$42),(AE15-AG15)/AF15*100,AE15/AF15*100),\"\")","v":""},{"$nulls":3},{"$f":"IFERROR(IF(OR($L15=Papildomas_klasifikatoriai!$AS$22,$L15=Papildomas_klasifikatoriai!$AS$23,$L15=Papildomas_klasifikatoriai!$AS$39,$L15=Papildomas_klasifikatoriai!$AS$41,$L15=Papildomas_klasifikatoriai!$AS$42),(AI15-AK15)/AJ15*100,AI15/AJ15*100),\"\")","v":""},{"$nulls":3},{"$f":"IFERROR(IF(OR($L15=Papildomas_klasifikatoriai!$AS$22,$L15=Papildomas_klasifikatoriai!$AS$23,$L15=Papildomas_klasifikatoriai!$AS$39,$L15=Papildomas_klasifikatoriai!$AS$41,$L15=Papildomas_klasifikatoriai!$AS$42),(AM15-AO15)/AN15*100,AM15/AN15*100),\"\")","v":""},{"$nulls":3},{"$f":"IFERROR(IF(OR($L15=Papildomas_klasifikatoriai!$AS$22,$L15=Papildomas_klasifikatoriai!$AS$23,$L15=Papildomas_klasifikatoriai!$AS$39,$L15=Papildomas_klasifikatoriai!$AS$41,$L15=Papildomas_klasifikatoriai!$AS$42),(AQ15-AS15)/AR15*100,AQ15/AR15*100),\"\")","v":""},{"$f":"IFERROR(INDEX(Papildomas_klasifikatoriai!$AS$4:$AS$90,MATCH(TRUE,INDEX(Papildomas_klasifikatoriai!$AQ$4:$AQ$90=AP15,0),0)),\"\")","v":0},{"$nulls":11},{"v":0,"d":"0.00"}]
[13,null,{"$f":"IF(B16=Papildomas_klasifikatoriai!$C$5,Papildomas_klasifikatoriai!$D$5,IF(B16=Papildomas_klasifikatoriai!$C$6,Papildomas_klasifikatoriai!$D$6,IF(B16=Papildomas_klasifikatoriai!$C$7,Papildomas_klasifikatoriai!$D$7,IF(B16=Papildomas_klasifikatoriai!$C$8,Papildomas_klasifikatoriai!$D$8,IF(B16=Papildomas_klasifikatoriai!$C$9,Papildomas_klasifikatoriai!$D$9,\"\")))))","v":""},{"$nulls":4},{"$f":"IFERROR(INDEX(Papildomas_klasifikatoriai!$AR$4:$AR$90,MATCH(TRUE,INDEX(Papildomas_klasifikatoriai!$AQ$4:$AQ$90=G16,0),0)),\"\")","v":0},{"$f":"IF(OR(G16=Papildomas_klasifikatoriai!$AQ$27,G16=Papildomas_klasifikatoriai!$AQ$32,G16=\"\"),\"\",\"N/A\")","v":""},"","",{"$f":"IFERROR(INDEX(Papildomas_klasifikatoriai!$AS$4:$AS$90,MATCH(TRUE,INDEX(Papildomas_klasifikatoriai!$AQ$4:$AQ$90=G16,0),0)),\"\")","v":0},{"$f":"IFERROR(INDEX(Papildomas_klasifikatoriai!$AT$4:$AT$90,MATCH(TRUE,INDEX(Papildomas_klasifikatoriai!$AQ$4:$AQ$90=G16,0),0)),\"\")","v":0},{"$nulls":4},{"$f":"IFERROR(IF(OR($L16=Papildomas_klasifikatoriai!$AS$22,$L16=Papildomas_klasifikatoriai!$AS$23,$L16=Papildomas_klasifikatoriai!$AS$39,$L16=Papildomas_klasifikatoriai!$AS$41,$L16=Papildomas_klasifikatoriai!$AS$42),(O16-Q16)/P16*100,O16/P16*100),\"\")","v":""},{"$nulls":3},{"$f":"IFERROR(IF(OR($L16=Papildomas_klasifikatoriai!$AS$22,$L16=Papildomas_klasifikatoriai!$AS$23,$L16=Papildomas_klasifikatoriai!$AS$39,$L16=Papildomas_klasifikatoriai!$AS$41,$L16=Papildomas_klasifikatoriai!$AS$42),(S16-U16)/T16*100,S16/T16*100),\"\")","v":""},{"$nulls":3},{"$f":"IFERROR(IF(OR($L16=Papildomas_klasifikatoriai!$AS$22,$L16=Papildomas_klasifikatoriai!$AS$23,$L16=Papildomas_klasifikatoriai!$AS$39,$L16=Papildomas_klasifikatoriai!$AS$41,$L16=Papildomas_klasifikatoriai!$AS$42),(W16-Y16)/X16*100,W16/X16*100),\"\")","v":""},{"$nulls":3},{"$f":"IFERROR(IF(OR($L16=Papildomas_klasifikatoriai!$AS$22,$L16=Papildomas_klasifikatoriai!$AS$23,$L16=Papildomas_klasifikatoriai!$AS$39,$L16=Papildomas_klasifikatoriai!$AS$41,$L16=Papildomas_klasifikatoriai!$AS$42),(AA16-AC16)/AB16*100,AA16/AB16*100),\"\")","v":""},{"$nulls":3},{"$f":"IFERROR(IF(OR($L16=Papildomas_klasifikatoriai!$AS$22,$L16=Papildomas_klasifikatoriai!$AS$23,$L16=Papildomas_klasifikatoriai!$AS$39,$L16=Papildomas_klasifikatoriai!$AS$41,$L16=Papildomas_klasifikatoriai!$AS$42),(AE16-AG16)/AF16*100,AE16/AF16*100),\"\")","v":""},{"$nulls":3},{"$f":"IFERROR(IF(OR($L16=Papildomas_klasifikatoriai!$AS$22,$L16=Papildomas_klasifikatoriai!$AS$23,$L16=Papildomas_klasifikatoriai!$AS$39,$L16=Papildomas_klasifikatoriai!$AS$41,$L16=Papildomas_klasifikatoriai!$AS$42),(AI16-AK16)/AJ16*100,AI16/AJ16*100),\"\")","v":""},{"$nulls":3},{"$f":"IFERROR(IF(OR($L16=Papildomas_klasifikatoriai!$AS$22,$L16=Papildomas_klasifikatoriai!$AS$23,$L16=Papildomas_klasifikatoriai!$AS$39,$L16=Papildomas_klasifikatoriai!$AS$41,$L16=Papildomas_klasifikatoriai!$AS$42),(AM16-AO16)/AN16*100,AM16/AN16*100),\"\")","v":""},{"$nulls":3},{"$f":"IFERROR(IF(OR($L16=Papildomas_klasifikatoriai!$AS$22,$L16=Papildomas_klasifikatoriai!$AS$23,$L16=Papildomas_klasifikatoriai!$AS$39,$L16=Papildomas_klasifikatoriai!$AS$41,$L16=Papildomas_klasifikatoriai!$AS$42),(AQ16-AS16)/AR16*100,AQ16/AR16*100),\"\")","v":""},{"$f":"IFERROR(INDEX(Papildomas_klasifikatoriai!$AS$4:$AS$90,MATCH(TRUE,INDEX(Papildomas_klasifikatoriai!$AQ$4:$AQ$90=AP16,0),0)),\"\")","v":0},{"$nulls":11},{"v":0,"d":"0.00"}]
[14,null,{"$f":"IF(B17=Papildomas_klasifikatoriai!$C$5,Papildomas_klasifikatoriai!$D$5,IF(B17=Papildomas_klasifikatoriai!$C$6,Papildomas_klasifikatoriai!$D$6,IF(B17=Papildomas_klasifikatoriai!$C$7,Papildomas_klasifikatoriai!$D$7,IF(B17=Papildomas_klasifikatoriai!$C$8,Papildomas_klasifikatoriai!$D$8,IF(B17=Papildomas_klasifikatoriai!$C$9,Papildomas_klasifikatoriai!$D$9,\"\")))))","v":""},{"$nulls":4},{"$f":"IFERROR(INDEX(Papildomas_klasifikatoriai!$AR$4:$AR$90,MATCH(TRUE,INDEX(Papildomas_klasifikatoriai!$AQ$4:$AQ$90=G17,0),0)),\"\")","v":0},{"$f":"IF(OR(G17=Papildomas_klasifikatoriai!$AQ$27,G17=Papildomas_klasifikatoriai!$AQ$32,G17=\"\"),\"\",\"N/A\")","v":""},"","",{"$f":"IFERROR(INDEX(Papildomas_klasifikatoriai!$AS$4:$AS$90,MATCH(TRUE,INDEX(Papildomas_klasifikatoriai!$AQ$4:$AQ$90=G17,0),0)),\"\")","v":0},{"$f":"IFERROR(INDEX(Papildomas_klasifikatoriai!$AT$4:$AT$90,MATCH(TRUE,INDEX(Papildomas_klasifikatoriai!$AQ$4:$AQ$90=G17,0),0)),\"\")","v":0},{"$nulls":4},{"$f":"IFERROR(IF(OR($L17=Papildomas_klasifikatoriai!$AS$22,$L17=Papildomas_klasifikatoriai!$AS$23,$L17=Papildomas_klasifikatoriai!$AS$39,$L17=Papildomas_klasifikatoriai!$AS$41,$L17=Papildomas_klasifikatoriai!$AS$42),(O17-Q17)/P17*100,O17/P17*100),\"\")","v":""},{"$nulls":3},{"$f":"IFERROR(IF(OR($L17=Papildomas_klasifikatoriai!$AS$22,$L17=Papildomas_klasifikatoriai!$AS$23,$L17=Papildomas_klasifikatoriai!$AS$39,$L17=Papildomas_klasifikatoriai!$AS$41,$L17=Papildomas_klasifikatoriai!$AS$42),(S17-U17)/T17*100,S17/T17*100),\"\")","v":""},{"$nulls":3},{"$f":"IFERROR(IF(OR($L17=Papildomas_klasifikatoriai!$AS$22,$L17=Papildomas_klasifikatoriai!$AS$23,$L17=Papildomas_klasifikatoriai!$AS$39,$L17=Papildomas_klasifikatoriai!$AS$41,$L17=Papildomas_klasifikatoriai!$AS$42),(W17-Y17)/X17*100,W17/X17*100),\"\")","v":""},{"$nulls":3},{"$f":"IFERROR(IF(OR($L17=Papildomas_klasifikatoriai!$AS$22,$L17=Papildomas_klasifikatoriai!$AS$23,$L17=Papildomas_klasifikatoriai!$AS$39,$L17=Papildomas_klasifikatoriai!$AS$41,$L17=Papildomas_klasifikatoriai!$AS$42),(AA17-AC17)/AB17*100,AA17/AB17*100),\"\")","v":""},{"$nulls":3},{"$f":"IFERROR(IF(OR($L17=Papildomas_klasifikatoriai!$AS$22,$L17=Papildomas_klasifikatoriai!$AS$23,$L17=Papildomas_klasifikatoriai!$AS$39,$L17=Papildomas_klasifikatoriai!$AS$41,$L17=Papildomas_klasifikatoriai!$AS$42),(AE17-AG17)/AF17*100,AE17/AF17*100),\"\")","v":""},{"$nulls":3},{"$f":"IFERROR(IF(OR($L17=Papildomas_klasifikatoriai!$AS$22,$L17=Papildomas_klasifikatoriai!$AS$23,$L17=Papildomas_klasifikatoriai!$AS$39,$L17=Papildomas_klasifikatoriai!$AS$41,$L17=Papildomas_klasifikatoriai!$AS$42),(AI17-AK17)/AJ17*100,AI17/AJ17*100),\"\")","v":""},{"$nulls":3},{"$f":"IFERROR(IF(OR($L17=Papildomas_klasifikatoriai!$AS$22,$L17=Papildomas_klasifikatoriai!$AS$23,$L17=Papildomas_klasifikatoriai!$AS$39,$L17=Papildomas_klasifikatoriai!$AS$41,$L17=Papildomas_klasifikatoriai!$AS$42),(AM17-AO17)/AN17*100,AM17/AN17*100),\"\")","v":""},{"$nulls":3},{"$f":"IFERROR(IF(OR($L17=Papildomas_klasifikatoriai!$AS$22,$L17=Papildomas_klasifikatoriai!$AS$23,$L17=Papildomas_klasifikatoriai!$AS$39,$L17=Papildomas_klasifikatoriai!$AS$41,$L17=Papildomas_klasifikatoriai!$AS$42),(AQ17-AS17)/AR17*100,AQ17/AR17*100),\"\")","v":""},{"$f":"IFERROR(INDEX(Papildomas_klasifikatoriai!$AS$4:$AS$90,MATCH(TRUE,INDEX(Papildomas_klasifikatoriai!$AQ$4:$AQ$90=AP17,0),0)),\"\")","v":0},{"$nulls":11},{"v":0,"d":"0.00"}]
[15,null,{"$f":"IF(B18=Papildomas_klasifikatoriai!$C$5,Papildomas_klasifikatoriai!$D$5,IF(B18=Papildomas_klasifikatoriai!$C$6,Papildomas_klasifikatoriai!$D$6,IF(B18=Papildomas_klasifikatoriai!$C$7,Papildomas_klasifikatoriai!$D$7,IF(B18=Papildomas_klasifikatoriai!$C$8,Papildomas_klasifikatoriai!$D$8,IF(B18=Papildomas_klasifikatoriai!$C$9,Papildomas_klasifikatoriai!$D$9,\"\")))))","v":""},{"$nulls":4},{"$f":"IFERROR(INDEX(Papildomas_klasifikatoriai!$AR$4:$AR$90,MATCH(TRUE,INDEX(Papildomas_klasifikatoriai!$AQ$4:$AQ$90=G18,0),0)),\"\")","v":0},{"$f":"IF(OR(G18=Papildomas_klasifikatoriai!$AQ$27,G18=Papildomas_klasifikatoriai!$AQ$32,G18=\"\"),\"\",\"N/A\")","v":""},"","",{"$f":"IFERROR(INDEX(Papildomas_klasifikatoriai!$AS$4:$AS$90,MATCH(TRUE,INDEX(Papildomas_klasifikatoriai!$AQ$4:$AQ$90=G18,0),0)),\"\")","v":0},{"$f":"IFERROR(INDEX(Papildomas_klasifikatoriai!$AT$4:$AT$90,MATCH(TRUE,INDEX(Papildomas_klasifikatoriai!$AQ$4:$AQ$90=G18,0),0)),\"\")","v":0},{"$nulls":4},{"$f":"IFERROR(IF(OR($L18=Papildomas_klasifikatoriai!$AS$22,$L18=Papildomas_klasifikatoriai!$AS$23,$L18=Papildomas_klasifikatoriai!$AS$39,$L18=Papildomas_klasifikatoriai!$AS$41,$L18=Papildomas_klasifikatoriai!$AS$42),(O18-Q18)/P18*100,O18/P18*100),\"\")","v":""},{"$nulls":3},{"$f":"IFERROR(IF(OR($L18=Papildomas_klasifikatoriai!$AS$22,$L18=Papildomas_klasifikatoriai!$AS$23,$L18=Papildomas_klasifikatoriai!$AS$39,$L18=Papildomas_klasifikatoriai!$AS$41,$L18=Papildomas_klasifikatoriai!$AS$42),(S18-U18)/T18*100,S18/T18*100),\"\")","v":""},{"$nulls":3},{"$f":"IFERROR(IF(OR($L18=Papildomas_klasifikatoriai!$AS$22,$L18=Papildomas_klasifikatoriai!$AS$23,$L18=Papildomas_klasifikatoriai!$AS$39,$L18=Papildomas_klasifikatoriai!$AS$41,$L18=Papildomas_klasifikatoriai!$AS$42),(W18-Y18)/X18*100,W18/X18*100),\"\")","v":""},{"$nulls":3},{"$f":"IFERROR(IF(OR($L18=Papildomas_klasifikatoriai!$AS$22,$L18=Papildomas_klasifikatoriai!$AS$23,$L18=Papildomas_klasifikatoriai!$AS$39,$L18=Papildomas_klasifikatoriai!$AS$41,$L18=Papildomas_klasifikatoriai!$AS$42),(AA18-AC18)/AB18*100,AA18/AB18*100),\"\")","v":""},{"$nulls":3},{"$f":"IFERROR(IF(OR($L18=Papildomas_klasifikatoriai!$AS$22,$L18=Papildomas_klasifikatoriai!$AS$23,$L18=Papildomas_klasifikatoriai!$AS$39,$L18=Papildomas_klasifikatoriai!$AS$41,$L18=Papildomas_klasifikatoriai!$AS$42),(AE18-AG18)/AF18*100,AE18/AF18*100),\"\")","v":""},{"$nulls":3},{"$f":"IFERROR(IF(OR($L18=Papildomas_klasifikatoriai!$AS$22,$L18=Papildomas_klasifikatoriai!$AS$23,$L18=Papildomas_klasifikatoriai!$AS$39,$L18=Papildomas_klasifikatoriai!$AS$41,$L18=Papildomas_klasifikatoriai!$AS$42),(AI18-AK18)/AJ18*100,AI18/AJ18*100),\"\")","v":""},{"$nulls":3},{"$f":"IFERROR(IF(OR($L18=Papildomas_klasifikatoriai!$AS$22,$L18=Papildomas_klasifikatoriai!$AS$23,$L18=Papildomas_klasifikatoriai!$AS$39,$L18=Papildomas_klasifikatoriai!$AS$41,$L18=Papildomas_klasifikatoriai!$AS$42),(AM18-AO18)/AN18*100,AM18/AN18*100),\"\")","v":""},{"$nulls":3},{"$f":"IFERROR(IF(OR($L18=Papildomas_klasifikatoriai!$AS$22,$L18=Papildomas_klasifikatoriai!$AS$23,$L18=Papildomas_klasifikatoriai!$AS$39,$L18=Papildomas_klasifikatoriai!$AS$41,$L18=Papildomas_klasifikatoriai!$AS$42),(AQ18-AS18)/AR18*100,AQ18/AR18*100),\"\")","v":""},{"$f":"IFERROR(INDEX(Papildomas_klasifikatoriai!$AS$4:$AS$90,MATCH(TRUE,INDEX(Papildomas_klasifikatoriai!$AQ$4:$AQ$90=AP18,0),0)),\"\")","v":0},{"$nulls":11},{"v":0,"d":"0.00"}]
[16,null,{"$f":"IF(B19=Papildomas_klasifikatoriai!$C$5,Papildomas_klasifikatoriai!$D$5,IF(B19=Papildomas_klasifikatoriai!$C$6,Papildomas_klasifikatoriai!$D$6,IF(B19=Papildomas_klasifikatoriai!$C$7,Papildomas_klasifikatoriai!$D$7,IF(B19=Papildomas_klasifikatoriai!$C$8,Papildomas_klasifikatoriai!$D$8,IF(B19=Papildomas_klasifikatoriai!$C$9,Papildomas_klasifikatoriai!$D$9,\"\")))))","v":""},{"$nulls":4},{"$f":"IFERROR(INDEX(Papildomas_klasifikatoriai!$AR$4:$AR$90,MATCH(TRUE,INDEX(Papildomas_klasifikatoriai!$AQ$4:$AQ$90=G19,0),0)),\"\")","v":0},{"$f":"IF(OR(G19=Papildomas_klasifikatoriai!$AQ$27,G19=Papildomas_klasifikatoriai!$AQ$32,G19=\"\"),\"\",\"N/A\")","v":""},"","",{"$f":"IFERROR(INDEX(Papildomas_klasifikatoriai!$AS$4:$AS$90,MATCH(TRUE,INDEX(Papildomas_klasifikatoriai!$AQ$4:$AQ$90=G19,0),0)),\"\")","v":0},{"$f":"IFERROR(INDEX(Papildomas_klasifikatoriai!$AT$4:$AT$90,MATCH(TRUE,INDEX(Papildomas_klasifikatoriai!$AQ$4:$AQ$90=G19,0),0)),\"\")","v":0},{"$nulls":4},{"$f":"IFERROR(IF(OR($L19=Papildomas_klasifikatoriai!$AS$22,$L19=Papildomas_klasifikatoriai!$AS$23,$L19=Papildomas_klasifikatoriai!$AS$39,$L19=Papildomas_klasifikatoriai!$AS$41,$L19=Papildomas_klasifikatoriai!$AS$42),(O19-Q19)/P19*100,O19/P19*100),\"\")","v":""},{"$nulls":3},{"$f":"IFERROR(IF(OR($L19=Papildomas_klasifikatoriai!$AS$22,$L19=Papildomas_klasifikatoriai!$AS$23,$L19=Papildomas_klasifikatoriai!$AS$39,$L19=Papildomas_klasifikatoriai!$AS$41,$L19=Papildomas_klasifikatoriai!$AS$42),(S19-U19)/T19*100,S19/T19*100),\"\")","v":""},{"$nulls":3},{"$f":"IFERROR(IF(OR($L19=Papildomas_klasifikatoriai!$AS$22,$L19=Papildomas_klasifikatoriai!$AS$23,$L19=Papildomas_klasifikatoriai!$AS$39,$L19=Papildomas_klasifikatoriai!$AS$41,$L19=Papildomas_klasifikatoriai!$AS$42),(W19-Y19)/X19*100,W19/X19*100),\"\")","v":""},{"$nulls":3},{"$f":"IFERROR(IF(OR($L19=Papildomas_klasifikatoriai!$AS$22,$L19=Papildomas_klasifikatoriai!$AS$23,$L19=Papildomas_klasifikatoriai!$AS$39,$L19=Papildomas_klasifikatoriai!$AS$41,$L19=Papildomas_klasifikatoriai!$AS$42),(AA19-AC19)/AB19*100,AA19/AB19*100),\"\")","v":""},{"$nulls":3},{"$f":"IFERROR(IF(OR($L19=Papildomas_klasifikatoriai!$AS$22,$L19=Papildomas_klasifikatoriai!$AS$23,$L19=Papildomas_klasifikatoriai!$AS$39,$L19=Papildomas_klasifikatoriai!$AS$41,$L19=Papildomas_klasifikatoriai!$AS$42),(AE19-AG19)/AF19*100,AE19/AF19*100),\"\")","v":""},{"$nulls":3},{"$f":"IFERROR(IF(OR($L19=Papildomas_klasifikatoriai!$AS$22,$L19=Papildomas_klasifikatoriai!$AS$23,$L19=Papildomas_klasifikatoriai!$AS$39,$L19=Papildomas_klasifikatoriai!$AS$41,$L19=Papildomas_klasifikatoriai!$AS$42),(AI19-AK19)/AJ19*100,AI19/AJ19*100),\"\")","v":""},{"$nulls":3},{"$f":"IFERROR(IF(OR($L19=Papildomas_klasifikatoriai!$AS$22,$L19=Papildomas_klasifikatoriai!$AS$23,$L19=Papildomas_klasifikatoriai!$AS$39,$L19=Papildomas_klasifikatoriai!$AS$41,$L19=Papildomas_klasifikatoriai!$AS$42),(AM19-AO19)/AN19*100,AM19/AN19*100),\"\")","v":""},{"$nulls":3},{"$f":"IFERROR(IF(OR($L19=Papildomas_klasifikatoriai!$AS$22,$L19=Papildomas_klasifikatoriai!$AS$23,$L19=Papildomas_klasifikatoriai!$AS$39,$L19=Papildomas_klasifikatoriai!$AS$41,$L19=Papildomas_klasifikatoriai!$AS$42),(AQ19-AS19)/AR19*100,AQ19/AR19*100),\"\")","v":""},{"$f":"IFERROR(INDEX(Papildomas_klasifikatoriai!$AS$4:$AS$90,MATCH(TRUE,INDEX(Papildomas_klasifikatoriai!$AQ$4:$AQ$90=AP19,0),0)),\"\")","v":0},{"$nulls":11},{"v":0,"d":"0.00"}]
[17,null,{"$f":"IF(B20=Papildomas_klasifikatoriai!$C$5,Papildomas_klasifikatoriai!$D$5,IF(B20=Papildomas_klasifikatoriai!$C$6,Papildomas_klasifikatoriai!$D$6,IF(B20=Papildomas_klasifikatoriai!$C$7,Papildomas_klasifikatoriai!$D$7,IF(B20=Papildomas_klasifikatoriai!$C$8,Papildomas_klasifikatoriai!$D$8,IF(B20=Papildomas_klasifikatoriai!$C$9,Papildomas_klasifikatoriai!$D$9,\"\")))))","v":""},{"$nulls":4},{"$f":"IFERROR(INDEX(Papildomas_klasifikatoriai!$AR$4:$AR$90,MATCH(TRUE,INDEX(Papildomas_klasifikatoriai!$AQ$4:$AQ$90=G20,0),0)),\"\")","v":0},{"$f":"IF(OR(G20=Papildomas_klasifikatoriai!$AQ$27,G20=Papildomas_klasifikatoriai!$AQ$32,G20=\"\"),\"\",\"N/A\")","v":""},"","",{"$f":"IFERROR(INDEX(Papildomas_klasifikatoriai!$AS$4:$AS$90,MATCH(TRUE,INDEX(Papildomas_klasifikatoriai!$AQ$4:$AQ$90=G20,0),0)),\"\")","v":0},{"$f":"IFERROR(INDEX(Papildomas_klasifikatoriai!$AT$4:$AT$90,MATCH(TRUE,INDEX(Papildomas_klasifikatoriai!$AQ$4:$AQ$90=G20,0),0)),\"\")","v":0},{"$nulls":4},{"$f":"IFERROR(IF(OR($L20=Papildomas_klasifikatoriai!$AS$22,$L20=Papildomas_klasifikatoriai!$AS$23,$L20=Papildomas_klasifikatoriai!$AS$39,$L20=Papildomas_klasifikatoriai!$AS$41,$L20=Papildomas_klasifikatoriai!$AS$42),(O20-Q20)/P20*100,O20/P20*100),\"\")","v":""},{"$nulls":3},{"$f":"IFERROR(IF(OR($L20=Papildomas_klasifikatoriai!$AS$22,$L20=Papildomas_klasifikatoriai!$AS$23,$L20=Papildomas_klasifikatoriai!$AS$39,$L20=Papildomas_klasifikatoriai!$AS$41,$L20=Papildomas_klasifikatoriai!$AS$42),(S20-U20)/T20*100,S20/T20*100),\"\")","v":""},{"$nulls":3},{"$f":"IFERROR(IF(OR($L20=Papildomas_klasifikatoriai!$AS$22,$L20=Papildomas_klasifikatoriai!$AS$23,$L20=Papildomas_klasifikatoriai!$AS$39,$L20=Papildomas_klasifikatoriai!$AS$41,$L20=Papildomas_klasifikatoriai!$AS$42),(W20-Y20)/X20*100,W20/X20*100),\"\")","v":""},{"$nulls":3},{"$f":"IFERROR(IF(OR($L20=Papildomas_klasifikatoriai!$AS$22,$L20=Papildomas_klasifikatoriai!$AS$23,$L20=Papildomas_klasifikatoriai!$AS$39,$L20=Papildomas_klasifikatoriai!$AS$41,$L20=Papildomas_klasifikatoriai!$AS$42),(AA20-AC20)/AB20*100,AA20/AB20*100),\"\")","v":""},{"$nulls":3},{"$f":"IFERROR(IF(OR($L20=Papildomas_klasifikatoriai!$AS$22,$L20=Papildomas_klasifikatoriai!$AS$23,$L20=Papildomas_klasifikatoriai!$AS$39,$L20=Papildomas_klasifikatoriai!$AS$41,$L20=Papildomas_klasifikatoriai!$AS$42),(AE20-AG20)/AF20*100,AE20/AF20*100),\"\")","v":""},{"$nulls":3},{"$f":"IFERROR(IF(OR($L20=Papildomas_klasifikatoriai!$AS$22,$L20=Papildomas_klasifikatoriai!$AS$23,$L20=Papildomas_klasifikatoriai!$AS$39,$L20=Papildomas_klasifikatoriai!$AS$41,$L20=Papildomas_klasifikatoriai!$AS$42),(AI20-AK20)/AJ20*100,AI20/AJ20*100),\"\")","v":""},{"$nulls":3},{"$f":"IFERROR(IF(OR($L20=Papildomas_klasifikatoriai!$AS$22,$L20=Papildomas_klasifikatoriai!$AS$23,$L20=Papildomas_klasifikatoriai!$AS$39,$L20=Papildomas_klasifikatoriai!$AS$41,$L20=Papildomas_klasifikatoriai!$AS$42),(AM20-AO20)/AN20*100,AM20/AN20*100),\"\")","v":""},{"$nulls":3},{"$f":"IFERROR(IF(OR($L20=Papildomas_klasifikatoriai!$AS$22,$L20=Papildomas_klasifikatoriai!$AS$23,$L20=Papildomas_klasifikatoriai!$AS$39,$L20=Papildomas_klasifikatoriai!$AS$41,$L20=Papildomas_klasifikatoriai!$AS$42),(AQ20-AS20)/AR20*100,AQ20/AR20*100),\"\")","v":""},{"$f":"IFERROR(INDEX(Papildomas_klasifikatoriai!$AS$4:$AS$90,MATCH(TRUE,INDEX(Papildomas_klasifikatoriai!$AQ$4:$AQ$90=AP20,0),0)),\"\")","v":0},{"$nulls":11},{"v":0,"d":"0.00"}]
[18,null,{"$f":"IF(B21=Papildomas_klasifikatoriai!$C$5,Papildomas_klasifikatoriai!$D$5,IF(B21=Papildomas_klasifikatoriai!$C$6,Papildomas_klasifikatoriai!$D$6,IF(B21=Papildomas_klasifikatoriai!$C$7,Papildomas_klasifikatoriai!$D$7,IF(B21=Papildomas_klasifikatoriai!$C$8,Papildomas_klasifikatoriai!$D$8,IF(B21=Papildomas_klasifikatoriai!$C$9,Papildomas_klasifikatoriai!$D$9,\"\")))))","v":""},{"$nulls":4},{"$f":"IFERROR(INDEX(Papildomas_klasifikatoriai!$AR$4:$AR$90,MATCH(TRUE,INDEX(Papildomas_klasifikatoriai!$AQ$4:$AQ$90=G21,0),0)),\"\")","v":0},{"$f":"IF(OR(G21=Papildomas_klasifikatoriai!$AQ$27,G21=Papildomas_klasifikatoriai!$AQ$32,G21=\"\"),\"\",\"N/A\")","v":""},"","",{"$f":"IFERROR(INDEX(Papildomas_klasifikatoriai!$AS$4:$AS$90,MATCH(TRUE,INDEX(Papildomas_klasifikatoriai!$AQ$4:$AQ$90=G21,0),0)),\"\")","v":0},{"$f":"IFERROR(INDEX(Papildomas_klasifikatoriai!$AT$4:$AT$90,MATCH(TRUE,INDEX(Papildomas_klasifikatoriai!$AQ$4:$AQ$90=G21,0),0)),\"\")","v":0},{"$nulls":4},{"$f":"IFERROR(IF(OR($L21=Papildomas_klasifikatoriai!$AS$22,$L21=Papildomas_klasifikatoriai!$AS$23,$L21=Papildomas_klasifikatoriai!$AS$39,$L21=Papildomas_klasifikatoriai!$AS$41,$L21=Papildomas_klasifikatoriai!$AS$42),(O21-Q21)/P21*100,O21/P21*100),\"\")","v":""},{"$nulls":3},{"$f":"IFERROR(IF(OR($L21=Papildomas_klasifikatoriai!$AS$22,$L21=Papildomas_klasifikatoriai!$AS$23,$L21=Papildomas_klasifikatoriai!$AS$39,$L21=Papildomas_klasifikatoriai!$AS$41,$L21=Papildomas_klasifikatoriai!$AS$42),(S21-U21)/T21*100,S21/T21*100),\"\")","v":""},{"$nulls":3},{"$f":"IFERROR(IF(OR($L21=Papildomas_klasifikatoriai!$AS$22,$L21=Papildomas_klasifikatoriai!$AS$23,$L21=Papildomas_klasifikatoriai!$AS$39,$L21=Papildomas_klasifikatoriai!$AS$41,$L21=Papildomas_klasifikatoriai!$AS$42),(W21-Y21)/X21*100,W21/X21*100),\"\")","v":""},{"$nulls":3},{"$f":"IFERROR(IF(OR($L21=Papildomas_klasifikatoriai!$AS$22,$L21=Papildomas_klasifikatoriai!$AS$23,$L21=Papildomas_klasifikatoriai!$AS$39,$L21=Papildomas_klasifikatoriai!$AS$41,$L21=Papildomas_klasifikatoriai!$AS$42),(AA21-AC21)/AB21*100,AA21/AB21*100),\"\")","v":""},{"$nulls":3},{"$f":"IFERROR(IF(OR($L21=Papildomas_klasifikatoriai!$AS$22,$L21=Papildomas_klasifikatoriai!$AS$23,$L21=Papildomas_klasifikatoriai!$AS$39,$L21=Papildomas_klasifikatoriai!$AS$41,$L21=Papildomas_klasifikatoriai!$AS$42),(AE21-AG21)/AF21*100,AE21/AF21*100),\"\")","v":""},{"$nulls":3},{"$f":"IFERROR(IF(OR($L21=Papildomas_klasifikatoriai!$AS$22,$L21=Papildomas_klasifikatoriai!$AS$23,$L21=Papildomas_klasifikatoriai!$AS$39,$L21=Papildomas_klasifikatoriai!$AS$41,$L21=Papildomas_klasifikatoriai!$AS$42),(AI21-AK21)/AJ21*100,AI21/AJ21*100),\"\")","v":""},{"$nulls":3},{"$f":"IFERROR(IF(OR($L21=Papildomas_klasifikatoriai!$AS$22,$L21=Papildomas_klasifikatoriai!$AS$23,$L21=Papildomas_klasifikatoriai!$AS$39,$L21=Papildomas_klasifikatoriai!$AS$41,$L21=Papildomas_klasifikatoriai!$AS$42),(AM21-AO21)/AN21*100,AM21/AN21*100),\"\")","v":""},{"$nulls":3},{"$f":"IFERROR(IF(OR($L21=Papildomas_klasifikatoriai!$AS$22,$L21=Papildomas_klasifikatoriai!$AS$23,$L21=Papildomas_klasifikatoriai!$AS$39,$L21=Papildomas_klasifikatoriai!$AS$41,$L21=Papildomas_klasifikatoriai!$AS$42),(AQ21-AS21)/AR21*100,AQ21/AR21*100),\"\")","v":""},{"$f":"IFERROR(INDEX(Papildomas_klasifikatoriai!$AS$4:$AS$90,MATCH(TRUE,INDEX(Papildomas_klasifikatoriai!$AQ$4:$AQ$90=AP21,0),0)),\"\")","v":0},{"$nulls":11},{"v":0,"d":"0.00"}]
[19,null,{"$f":"IF(B22=Papildomas_klasifikatoriai!$C$5,Papildomas_klasifikatoriai!$D$5,IF(B22=Papildomas_klasifikatoriai!$C$6,Papildomas_klasifikatoriai!$D$6,IF(B22=Papildomas_klasifikatoriai!$C$7,Papildomas_klasifikatoriai!$D$7,IF(B22=Papildomas_klasifikatoriai!$C$8,Papildomas_klasifikatoriai!$D$8,IF(B22=Papildomas_klasifikatoriai!$C$9,Papildomas_klasifikatoriai!$D$9,\"\")))))","v":""},{"$nulls":4},{"$f":"IFERROR(INDEX(Papildomas_klasifikatoriai!$AR$4:$AR$90,MATCH(TRUE,INDEX(Papildomas_klasifikatoriai!$AQ$4:$AQ$90=G22,0),0)),\"\")","v":0},{"$f":"IF(OR(G22=Papildomas_klasifikatoriai!$AQ$27,G22=Papildomas_klasifikatoriai!$AQ$32,G22=\"\"),\"\",\"N/A\")","v":""},"","",{"$f":"IFERROR(INDEX(Papildomas_klasifikatoriai!$AS$4:$AS$90,MATCH(TRUE,INDEX(Papildomas_klasifikatoriai!$AQ$4:$AQ$90=G22,0),0)),\"\")","v":0},{"$f":"IFERROR(INDEX(Papildomas_klasifikatoriai!$AT$4:$AT$90,MATCH(TRUE,INDEX(Papildomas_klasifikatoriai!$AQ$4:$AQ$90=G22,0),0)),\"\")","v":0},{"$nulls":4},{"$f":"IFERROR(IF(OR($L22=Papildomas_klasifikatoriai!$AS$22,$L22=Papildomas_klasifikatoriai!$AS$23,$L22=Papildomas_klasifikatoriai!$AS$39,$L22=Papildomas_klasifikatoriai!$AS$41,$L22=Papildomas_klasifikatoriai!$AS$42),(O22-Q22)/P22*100,O22/P22*100),\"\")","v":""},{"$nulls":3},{"$f":"IFERROR(IF(OR($L22=Papildomas_klasifikatoriai!$AS$22,$L22=Papildomas_klasifikatoriai!$AS$23,$L22=Papildomas_klasifikatoriai!$AS$39,$L22=Papildomas_klasifikatoriai!$AS$41,$L22=Papildomas_klasifikatoriai!$AS$42),(S22-U22)/T22*100,S22/T22*100),\"\")","v":""},{"$nulls":3},{"$f":"IFERROR(IF(OR($L22=Papildomas_klasifikatoriai!$AS$22,$L22=Papildomas_klasifikatoriai!$AS$23,$L22=Papildomas_klasifikatoriai!$AS$39,$L22=Papildomas_klasifikatoriai!$AS$41,$L22=Papildomas_klasifikatoriai!$AS$42),(W22-Y22)/X22*100,W22/X22*100),\"\")","v":""},{"$nulls":3},{"$f":"IFERROR(IF(OR($L22=Papildomas_klasifikatoriai!$AS$22,$L22=Papildomas_klasifikatoriai!$AS$23,$L22=Papildomas_klasifikatoriai!$AS$39,$L22=Papildomas_klasifikatoriai!$AS$41,$L22=Papildomas_klasifikatoriai!$AS$42),(AA22-AC22)/AB22*100,AA22/AB22*100),\"\")","v":""},{"$nulls":3},{"$f":"IFERROR(IF(OR($L22=Papildomas_klasifikatoriai!$AS$22,$L22=Papildomas_klasifikatoriai!$AS$23,$L22=Papildomas_klasifikatoriai!$AS$39,$L22=Papildomas_klasifikatoriai!$AS$41,$L22=Papildomas_klasifikatoriai!$AS$42),(AE22-AG22)/AF22*100,AE22/AF22*100),\"\")","v":""},{"$nulls":3},{"$f":"IFERROR(IF(OR($L22=Papildomas_klasifikatoriai!$AS$22,$L22=Papildomas_klasifikatoriai!$AS$23,$L22=Papildomas_klasifikatoriai!$AS$39,$L22=Papildomas_klasifikatoriai!$AS$41,$L22=Papildomas_klasifikatoriai!$AS$42),(AI22-AK22)/AJ22*100,AI22/AJ22*100),\"\")","v":""},{"$nulls":3},{"$f":"IFERROR(IF(OR($L22=Papildomas_klasifikatoriai!$AS$22,$L22=Papildomas_klasifikatoriai!$AS$23,$L22=Papildomas_klasifikatoriai!$AS$39,$L22=Papildomas_klasifikatoriai!$AS$41,$L22=Papildomas_klasifikatoriai!$AS$42),(AM22-AO22)/AN22*100,AM22/AN22*100),\"\")","v":""},{"$nulls":3},{"$f":"IFERROR(IF(OR($L22=Papildomas_klasifikatoriai!$AS$22,$L22=Papildomas_klasifikatoriai!$AS$23,$L22=Papildomas_klasifikatoriai!$AS$39,$L22=Papildomas_klasifikatoriai!$AS$41,$L22=Papildomas_klasifikatoriai!$AS$42),(AQ22-AS22)/AR22*100,AQ22/AR22*100),\"\")","v":""},{"$f":"IFERROR(INDEX(Papildomas_klasifikatoriai!$AS$4:$AS$90,MATCH(TRUE,INDEX(Papildomas_klasifikatoriai!$AQ$4:$AQ$90=AP22,0),0)),\"\")","v":0},{"$nulls":11},{"v":0,"d":"0.00"}]
[{"$nulls":12},"Pasirinktų pagrindinių rodiklių poveikio suma, %:",null,{"$f":"SUMIF($H$4:$H$22,\"Pagrindinis\",R4:R22)","v":0},{"$nulls":3},{"$f":"SUMIF($H$4:$H$22,\"Pagrindinis\",V4:V22)","v":0},{"$nulls":3},{"$f":"SUMIF($H$4:$H$22,\"Pagrindinis\",Z4:Z22)","v":0},{"$nulls":3},{"$f":"SUMIF($H$4:$H$22,\"Pagrindinis\",AD4:AD22)","v":0},{"$nulls":3},{"$f":"SUMIF($H$4:$H$22,\"Pagrindinis\",AH4:AH22)","v":0},{"$nulls":3},{"$f":"SUMIF($H$4:$H$22,\"Pagrindinis\",AL4:AL22)","v":0},{"$nulls":3},{"$f":"SUMIF($H$4:$H$22,\"Pagrindinis\",AP4:AP22)","v":0},{"$nulls":3},{"$f":"SUMIF($H$4:$H$22,\"Pagrindinis\",AT4:AT22)","v":0},{"$nulls":4},"Pasirinktų pagrindinių rodiklių poveikio suma, %:",null,{"$f":"SUMIF($H$4:$H$22,\"Pagrindinis\",AX4:AX22)","v":{"v":0,"d":"0%"}},{"v":0,"d":"0%"},{"v":0,"d":"0%"},{"v":0,"d":"0%"},{"v":0,"d":"0%"},{"v":0,"d":"0%"},{"v":0,"d":"0%"},{"v":0,"d":"0%"},null,{"$f":"SUMIF($H$4:$H$22,\"Pagrindinis\",BG4:BG22)","v":{"v":0,"d":"0.00"}}]

{"sheet":"Socialinis poveikis","index":3,"n_rows":5,"n_cols":9,"rows_kept":5,"merged":[[0,0,0,8]]}
["SOCIALINIO VERSLO POVEIKIO PAGRINDINIŲ RODIKLIŲ SUMOS APSKAIČIAVIMO LENTELĖ\n(Pildyti nereikia, pildoma automatiškai iš Socialinio poveikio matavimo skaičiuoklės duomenų)\n"]
["Socialinio verslo poveikis "]
[]
["Kriterijus",2018,2019,2020,2021,2022,2023,2024,2025]
["Socialinio verslo poveikio matavimo pagrindinių rodiklių suma, %",{"$f":"Skaičiuoklė!O23","v":0},{"$f":"Skaičiuoklė!S23","v":0},{"$f":"Skaičiuoklė!W23","v":0},{"$f":"Skaičiuoklė!AA23","v":0},{"$f":"Skaičiuoklė!AE23","v":0},{"$f":"Skaičiuoklė!AI23","v":0},{"$f":"Skaičiuoklė!AM23","v":0},{"$f":"Skaičiuoklė!AQ23","v":0}]

{"sheet":"Papildomi_Duomenų šaltiniai","index":4,"n_rows":49,"n_cols":4,"rows_kept":49,"merged":[[0,0,0,2],[47,0,47,3]]}
["Viešai prieinama informacija / duomenys apie socialiai rizikingas tikslines grupes ir sergančius / turinčių sutrikimų asmenis"]
["Socialinės rizikos / sergančių asmenų grupė","Informacijos šaltinio nuoroda","Sistemos kelias (žingsniai) iki duomenų"]
["Lietuvos gyventojai (pagal rajonus)","http://www.socialiniszemelapis.lt/","Pasirinkite savivaldybę --> Pasirinkite rodiklį"]
["Mokyklinio amžiaus vaikai","http://www.socialiniszemelapis.lt/","Pasirinkite savivaldybę --> Pasirinkite rodiklį"]
["Jaunimas","http://www.socialiniszemelapis.lt/","Pasirinkite savivaldybę --> Pasirinkite rodiklį"]
["Darbingo amžiaus gyventojai","https://osp.stat.gov.lt/","Rodiklių duomenų bazė --> Gyventojai ir socialinė\nstatistika -> Gyventojai -> Gyventojų sudėtis\nGyventojų klasifikavimas pagal amžių."]
["Pensininkai","http://www.socialiniszemelapis.lt/index.php?year=2017&rod=3","Pasirinkite savivaldybę --> Pasirinkite rodiklį"]
["Neįgalieji","http://www.socialiniszemelapis.lt/index.php?rod=4","Pasirinkite savivaldybę --> Pasirinkite rodiklį"]
["Vienišos motinos ar tėvai","http://www.socialiniszemelapis.lt/index.php?1262538155","Socialinės statistikos rodikliai --> Socialiniai demografiniai rodikliai --> Vieno iš tėvų, auginančių vaiką, skaičius (Excel)"]
["Daugiavaikės šeimos","http://www.socialiniszemelapis.lt/index.php?1262538155","Socialinės statistikos rodikliai --> Socialiniai demografiniai rodikliai --> Šeimų su trimis ir daugiau vaikų skaičius (Excel)"]
["Socialinės rizikos šeimų skaičius 1000-iui gyventojų","http://www.socialiniszemelapis.lt/","Pasirinkite savivaldybę --> Pasirinkite rodiklį"]
["Pabėgėliai","https://osp.stat.gov.lt/statistiniu-rodikliu-analize#/","Gyventojai ir socialinė statistika --> Gyventojų migracija --> Tarptautinė apsauga --> Pabėgėliai"]
["Nedirbantys (bedarbiai)","http://www.socialiniszemelapis.lt/index.php?-1989373839","Bus papildyta"]
["18–24 metų jaunimo, neįgijusio vidutinio išsilavinimo ir nesimokančio, dalis","https://osp.stat.gov.lt/lietuvos-jaunimas","Gyventojai ir socialinė statistika --> Švietimas ir gyventojų išsilavinimas --> Gyventojų išsilavinimas\n\nhttps://osp.stat.gov.lt/lietuvos-jaunimas"]
["15–29 metų jaunimas pagal išsilavinimo grupes","https://osp.stat.gov.lt/lietuvos-jaunimas","Gyventojai ir socialinė statistika --> Švietimas ir gyventojų išsilavinimas --> Gyventojų išsilavinimas\n\nhttps://osp.stat.gov.lt/lietuvos-jaunimas\n"]
["Mokyklinio amžiaus vaikai, nesimokantys mokykloje","https://osp.stat.gov.lt/statistiniu-rodikliu-analize?hash=0235b4a8-2aa4-4e76-8885-4090eaec29ff#/","Statistikos departamentas:\nRodiklių duomenų bazė (Gyventojai ir socialinė statistika\n-> Švietimas ir gyventojų išsilavinimas -> Bendrieji\nšvietimo rodikliai -> Mokyklinio amžiaus vaikai,\nnesimokantys mokykloje"]
["Nedirbantis, nesimokantis ir mokymuose nedalyvaujantis jaunimas","https://osp.stat.gov.lt/web/guest/statistiniu-rodikliu-analize?portletFormName=visualization&hash=110b0a03-3a70-42ad-ae09-65b5b0a81ff7#/","Statistikos departamentas:\nRodiklių duomenų bazė (Gyventojai ir socialinė statistika\n-> Gyventojų užimtumas ir nedarbas --> Metiniai darbo jėgos, užimtumo ir nedarbo rodikliai --> Nedirbantis, nesimokantis ir mokymuose nedalyvaujantis jaunimas"]
["Nutraukusių mokymąsi bendrojo lavinimo mokyklose 16-mečių jaunuolių skaičius.","http://www.socialiniszemelapis.lt/index.php?-1309863976","Socialinės statistikos rodikliai --> Švietimo rodikliai"]
["Asmenų, įtariamų (kaltinamų) padarius nusikalstamas veikas, skaičius","https://osp.stat.gov.lt/statistiniu-rodikliu-analize#/","Gyventojai ir socialinė statistika  --> Nusikalstamumas ir baudžiamoji teisena --> Nusikalstamumas --> Asmenų, įtariamų (kaltinamų) padarius nusikalstamas "]
["Asmenys, susiję su nusikalstama veikla (disponavimu narkotinėmis medžiagomis ir jų kontrabanda)","https://osp.stat.gov.lt/statistiniu-rodikliu-analize#/","Rodiklių duomenų bazė --> Gyventojai ir socialinė statistika --> Nusikalstamumas ir baudžiamoji teisena\n"]
["Asmenų, įtariamų (kaltinamų) padarius nusikalstamas veikas, skaičius","https://osp.stat.gov.lt/statistiniu-rodikliu-analize#/","Rodiklių duomenų bazė --> Gyventojai ir socialinė statistika --> Nusikalstamumas ir baudžiamoji teisena\n"]
["Nepilnamečiai, įtariami (kaltinami ) padarę nusikalstamas veikas","https://osp.stat.gov.lt/statistiniu-rodikliu-analize#/","Rodiklių duomenų bazė --> Gyventojai ir socialinė statistika --> Nusikalstamumas ir baudžiamoji teisena\n"]
["Asmenų, nukentėjusių nuo nusikalstamų veikų, skaičius","https://osp.stat.gov.lt/statistiniu-rodikliu-analize#/","Gyventojai ir socialinė statistika  --> Nusikalstamumas ir baudžiamoji teisena --> Nusikalstamumas --> Užregistruoti asmenys, nukentėję nuo nusikalstamų veikų"]
["Asmenys, nukentėję dėl smurto artimoje aplinkoje \n(policijoje užregistruoti pranešimai dėl smurto artimoje aplinkoje)","https://osp.stat.gov.lt/web/guest/statistiniu-rodikliu-analize?hash=5329ed2e-73ff-4b91-b4d2-009aea781184#/","Rodiklių duomenų bazė (Gyventojai ir socialinė statistika -\n> Nusikalstamumas ir baudžiamoji teisena) --> Smurtas artimoje aplinkoje"]
["Narkomanija sergantys asmenys","http://stat.hi.lt/","Sergamumas psichikos ir elgesio sutrikimais vartojant psichoaktyviąsias medžiagas (F11-F19) 100000 gyv."]
["Alkoholizmu sergantys asmenys","http://stat.hi.lt/","Sergamumas psichikos ir elgesio sutrikimais vartojant alkoholį (F10) 100000 gyv."]
["Pedikulioze ir ftiriaze (utėlėtumu) sergantys asmenys","http://www.ulac.lt/ataskaitos","-"]
["Infekcinėmis ir parazitų ligomis sergantys asmenys","http://stat.hi.lt/","Sergančių asmenų skaičius"]
["Virusiniais hepatitais sergantys asmenys","http://stat.hi.lt/","Sergančių asmenų skaičius"]
["Navikų ligomis sergantys asmenys","http://stat.hi.lt/","Sergančių asmenų skaičius"]
["Kraujo ir kraujodaros organų ligomis sergantys asmenys","http://stat.hi.lt/","Sergančių asmenų skaičius"]
["Mitybos ir medžiagų apykaitos ligomis sergantys asmenys","http://stat.hi.lt/","Sergančių asmenų skaičius"]
["Psichikos ir elgesio sutrikimais sergantys asmenys","http://stat.hi.lt/","Sergančių asmenų skaičius"]
["Akies ir jos organų ligomis sergantys asmenys","http://stat.hi.lt/","Sergančių asmenų skaičius"]
["Su klausa susijusiomis (ausų) ligomis sergantys asmenys","http://stat.hi.lt/","Sergančių asmenų skaičius"]
["Kraujotakos sistemos ligomis sergantys asmenys","http://stat.hi.lt/","Sergančių asmenų skaičius"]
["Kvėpavimo sistemos ligomis sergantys asmenys","http://stat.hi.lt/","Sergančių asmenų skaičius"]
["Virškinimo sistemos ligomis sergantys asmenys","http://stat.hi.lt/","Sergančių asmenų skaičius"]
["Odos ir poodžio ligomis sergantys asmenys","http://stat.hi.lt/","Sergančių asmenų skaičius"]
["Raumenų ar skeleto ligomis sergantys asmenys","http://stat.hi.lt/","Sergančių asmenų skaičius"]
["Lytinėmis ar šlapimo sistemos ligomis sergantys asmenys","http://stat.hi.lt/","Sergančių asmenų skaičius"]
["Su nėštumu, gimdymu ar pogimdyviniu laikotarpiu susijusių ligų turintys asmenys","http://stat.hi.lt/","Sergančių asmenų skaičius"]
["Įgimtas formavimosi ydas turintys asmenys","http://stat.hi.lt/","Sergančių asmenų skaičius"]
["Susižalojimus, apsinuodijimus patyrę asmenys","http://stat.hi.lt/","Sergančių asmenų skaičius"]
["Dantų ligomis sergantys asmenys","http://stat.hi.lt/","Sergančių asmenų skaičius"]
["Savižudybių skaičius","http://www.vpsc.lt","Savižudybių statistika"]
[]
["Kitos pasirinktos informacijos pagrindimas (naudojamos poveikio skaičiavime, aprašymas)"]
["Socialinės rizikos / sergančių asmenų grupė","Informacijos šaltinio nuoroda","Sistemos kelias (žingsniai) iki duomenų","Pagrindimas dėl duomenų pasirinkimo ir jų patikimumo"]

{"sheet":"Sąvokos","index":5,"n_rows":29,"n_cols":2,"rows_kept":29,"merged":[[0,0,0,1],[12,0,15,0],[19,0,21,0],[19,1,21,1]]}
["PAGRINDINĖS SĄVOKOS"]
["Sąvoka","Paaiškinimas / apibrėžimas"]
["Artima aplinka ","Aplinka, kurią sudaro asmenys, siejami arba praeityje sieti santuokiniais, partnerystės, svainystės ar kitais artimais ryšiais, taip pat asmenys, kartu gyvenantys ir tvarkantys bendrą ūkį."]
["Asmuo, sergantis priklausomybės nuo psichoaktyviųjų medžiagų liga","Asmuo, kuriam nustatytas priklausomybės nuo alkoholio, narkotinių bei psichotropinių medžiagų sindromas."]
["Bedarbis ","Nedirbantis darbingo amžiaus darbingas asmuo, kuris nesimoko pagal bendrojo ugdymo programą ar pagal formaliojo profesinio mokymo programą arba nestudijuoja aukštojoje mokykloje pagal nuolatinės formos studijų programas ir yra įstatymų nustatyta tvarka įsiregistravęs teritorinėje darbo biržoje."]
["Darbingo amžiaus gyventojas","Asmuo nuo 16 metų iki Valstybinių socialinio draudimo pensijų įstatymo nustatyto senatvės pensijos amžiaus."]
["Daugiavaikė šeima","Šeima, auginanti tris ir daugiau vaikų."]
["Infekcinės ir parazitinės ligos","Ligos, skirstomos pagal jų sukėlėją, gali būti bakterinės, virusinės, grybelinės ir žmogaus parazitų (pirmuonių bei kirmėlių) sukeltos ligos. Be to, infekcinės ligos gali būti vietinės (t. y. pažeisti tik vieną kurį nors organą) arba išplitusios (sisteminės), pvz., sepsis."]
["Jaunimas","Du ar daugiau jaunų žmonių (asmenų nuo 14 iki 29 metų (įskaitytinai))."]
["Mokyklinis amžius","Amžiaus tarpsnis nuo 7 iki 18 metų, kuriame intensyviai fiziškai ir dvasiškai bręsta jaunas žmogus. Mokyklinis amžius skaidomas į jaunesnįjį, vidutinį ir vyresnįjį (jaunuolio)."]
["Neįgalusis","Asmuo, kuriam Lietuvos Respublikos neįgaliųjų socialinės integracijos įstatymo nustatyta tvarka pripažintas mažesnis negu 55 procentų darbingumo lygis ir (ar) nustatyta specialiųjų poreikių tenkinimo reikmė. (Informacijos šaltinis – Socialinės apsaugos ir darbo ministerija)."]
["Nuolatinė ekonominė veikla","Nenutrūkstama veikla (įskaitant gamybą, prekybą, paslaugų teikimą, žemės ūkio veiklą, žuvininkystę, kasybą, profesinę veiklą, naudojimąsi turto ir (arba) turtinių teisių turėjimu), kurią vykdant siekiama gauti bet kokių pajamų (neatsižvelgiant į tai, ar ją vykdant siekiama gauti pelno), išskyrus darbo veiklą, taip pat valstybės ir savivaldybių veiklą, net jeigu už tokią veiklą mokami mokesčiai ar rinkliavos."]
["Nuolatinis Lietuvos gyventojas","Pagal Lietuvos Respublikos gyventojų pajamų mokesčio įstatymą, nuolatiniu Lietuvos gyventoju laikomas:"]
[null,"1) fizinis asmuo, kurio nuolatinė gyvenamoji vieta mokestiniu laikotarpiu yra Lietuvoje, arba"]
[null,"2) fizinis asmuo, kurio asmeninių, socialinių arba ekonominių interesų buvimo vieta mokestiniu laikotarpiu yra veikiau Lietuvoje nei užsienyje (plačiau žr. https://www.e-tar.lt/portal/lt/legalAct/TAR.C677663D2202)."]
[null," "]
["Pabėgėlis ","Užsienietis (užsienio šalies pilietis arba asmuo be pilietybės), kuris dėl patirto persekiojimo savo kilmės valstybėje arba dėl baimės patirti tokį persekiojimą negali naudotis savo kilmės šalies gynyba. Toks persekiojimas turi būti susijęs su rase, religija, tautybe, priklausymu tam tikrai socialinei grupei ar politiniais įsitikinimais. "]
["Pedikuliozė ir ftiriazė","Užsikrėtimas utėlėmis."]
["Pensinio amžiaus gyventojas","Asmuo, sukakęs Lietuvos Respublikos socialinio draudimo pensijų įstatymo nustatytą senatvės pensijos amžių. 2006 metais vyrų pensinis amžius buvo  62,5 metai, moterų – 60 metų. Pagal Lietuvos Respublikos valstybinių socialinio draudimo pensijų įstatymą, senatvės pensijos amžius nuo 2024 metų sausio 1 dienos nustatomas 65 metai."]
["Sergamumas","Asmenų, kuriems per metus ambulatorinėse sveikatos priežiūros įstaigose \nnaujai (pirmą kartą gyvenime) užregistruota tam tikra liga arba trauma, ir vidutinio metinio \ngyventojų skaičiaus santykis. \n"]
[]
[]
["Socialinės rizikos šeima","Šeima,  kurioje auga vaikai iki 18 metų ir kurioje bent vienas iš tėvų piktnaudžiauja alkoholiu, narkotinėmis, psichotropinėmis, toksinėmis medžiagomis, yra priklausomas nuo azartinių lošimų, dėl turimos negalios, skurdo, socialinių įgūdžių stokos negali ar nemoka tinkamai prižiūrėti vaikų, naudoja prieš juos psichologinę, fizinę ar seksualinę prievartą, o gaunamą valstybės paramą panaudoja ne šeimos interesams. (Informacijos šaltinis – Socialinės apsaugos ir darbo ministerija)."]
["Socialinis verslas","Verslo modelis, pagal kurį, išnaudojant rinkos mechanizmą, pelno siekimas susiejamas su visuomenei naudingais tikslais ir prioritetais, remiamasi socialiai atsakingo verslo bei viešojo ir privataus sektorių partnerystės nuostatomis, taikomos socialinės inovacijos."]
["Sveikatinimo paslauga","Sveikatos stiprinimo ir ligų profilaktikos paslauga, atliekama specialisto, įgijusio teisės aktų nustatyta tvarka kvalifikaciją ir turinčio sertifikatą šiai veiklai bei teikiama tam specialiai įrengtose patalpose (pvz., reabilitacija, masažai, kt.)."]
["Tikslinė grupė","Tiesioginės projekto naudos gavėjų (projekto dalyvių) grupė, kurios poreikiai tenkinami ar problemos sprendžiamos įgyvendinant projektą."]
["Užregistruotos nusikalstamos veikos","Nusikaltimai ir baudžiamieji nusižengimai, per ataskaitinį laikotarpį užregistruoti Vidaus reikalų informacinės sistemos Nusikalstamų veikų žinybiniame registre."]
["Vieniša motina ar tėvas (vienas iš tėvų, auginantis vaiką)","Motina ar tėvas, kuris faktiškai vienas augina vaiką (pvz., našlė, našlys, vieniša motina, kitas vaiko tėvas atlieka laisvės atėmimo bausmę ar jam neterminuotai arba terminuotai apribota tėvų valdžia, yra išsituokęs ar gyvena skyrium ir teismo sprendimu vaiko gyvenamoji vieta yra nustatyta su juo). "]
["Virusiniai hepatitai","Virusiniai hepatitai – virusų sukeliami kepenų uždegiminiai ir distrofiniai pokyčiai. Infekcinius hepatitus sukelia virusai: A, B, C, D, E. "]

{"sheet":"Skaičiuoklė_išskleistas sąrašas","index":6,"n_rows":71,"n_cols":49,"rows_kept":71,"merged":[[0,14,0,45],[0,46,1,46],[0,47,1,47],[0,48,1,48],[1,14,1,17],[1,18,1,21],[1,22,1,25],[1,26,1,29],[1,30,1,33],[1,34,1,37],[1,38,1,41],[1,42,1,45],[3,1,24,1],[3,2,24,2],[3,3,9,3],[3,4,6,4],[7,4,9,4],[10,3,20,3],[10,4,12,4],[13,4,14,4],[15,4,17,4],[18,4,20,4],[21,3,24,3],[21,4,24,4],[25,1,36,1],[25,2,36,2],[25,3,26,3],[25,4,26,4],[27,3,29,3],[27,4,29,4],[30,3,36,3],[30,4,36,4],[37,1,45,1],[37,2,45,2],[37,3,39,3],[37,4,39,4],[40,3,42,3],[40,4,42,4],[43,3,46,3],[43,4,46,4],[47,1,69,1],[47,2,69,2],[47,3,57,3],[47,4,52,4],[53,4,57,4],[58,3,62,3],[58,4,62,4],[63,3,69,3],[63,4,69,4],[70,0,70,13],[70,14,70,17],[70,18,70,21],[70,22,70,25],[70,26,70,29],[70,30,70,33],[70,34,70,37],[70,38,70,41],[70,42,70,45]]}
["Socialinio verslo poveikio vertinimo rodikliai ir jų skaičiavimo metodų aprašymas",{"$nulls":13},"7. Planuojamas poveikis\n(supildomos planuojamos rodiklio dedamųjų reikšmės pagal viešai prieinamus ar kitus pagrįstus patikimus duomenis) \nViešų duomenų sąrašas pateikiamas papildomame skaičiuoklės skirtuke \"Papildomas_Duomenų šaltiniai\"",{"$nulls":31},"8. Planuojamas poveikio vidurkis \n(2018-2025 m.), proc.\n\n","9. Nulinio poveikio pagrindimas\n\n\nJeigu rodiklio poveikis yra 0%, prašome pateikti paaiškinimą / pagrindimą, kodėl jis toks yra \n\n","10. Pastabos, komentarai"]
["Kriterijus","1. Veiklos sritis","2. Sritis, kurioje vykdoma veikla","2.1. Veiklos tikslas","2.2. Potikslis ","3. Tikslinės grupės arba tam tikra liga (sutrikimu) sergančių asmenų grupė","4. Rodiklis tikslo pasiekimui įvertinti \n","4.1. Rodiklio tipas "," Papildomas klasifikatorius\n\n4.2. Informacijos temos / paslaugos"," Papildomas klasifikatorius\n\n4.3. Gebėjimai / kompetencijos","4.4. Papildomo rodiklio atskira skaičiavimo metodika","5. Skaičiavimo metodas\n(Gerai, kai rodiklio reikšmė didėja pamečiui ir >0)","5.1.Skaičiavimo periodiškumas","6. Pasirinktos tikslinės grupės dydis (skaičius, vnt.) veiklą vykdomoje vietoje (gyvenvietėje, rajone ar kt.)","2018\n\nPoveikis apskaičiuojamas automatiškai. Pareiškėjas turi įvesti formulėje nurodytas reikšmes (a; b; a(t-1))",{"$nulls":3},"2019\n\nPoveikis apskaičiuojamas automatiškai. Pareiškėjas turi įvesti formulėje nurodytas reikšmes (a; b; a(t-1))",{"$nulls":3},"2020\n\nPoveikis apskaičiuojamas automatiškai. Pareiškėjas turi įvesti formulėje nurodytas reikšmes (a; b; a(t-1))",{"$nulls":3},"2021\n\nPoveikis apskaičiuojamas automatiškai. Pareiškėjas turi įvesti formulėje nurodytas reikšmes (a; b; a(t-1))",{"$nulls":3},"2022\n\nPoveikis apskaičiuojamas automatiškai. Pareiškėjas turi įvesti formulėje nurodytas reikšmes (a; b; a(t-1))",{"$nulls":3},"2023\n\nPoveikis apskaičiuojamas automatiškai. Pareiškėjas turi įvesti formulėje nurodytas reikšmes (a; b; a(t-1))",{"$nulls":3},"2024\n\nPoveikis apskaičiuojamas automatiškai. Pareiškėjas turi įvesti formulėje nurodytas reikšmes (a; b; a(t-1))",{"$nulls":3},"2025\n\nPoveikis apskaičiuojamas automatiškai. Pareiškėjas turi įvesti formulėje nurodytas reikšmes (a; b; a(t-1))"]
["Eil. Nr.   /                                                               \n   Pastabos","Pasirenkama iš klasifikatoriaus","Pasirenkama iš klasifikatoriaus","Pasirenkama iš klasifikatoriaus","Pasirenkama iš klasifikatoriaus","Pasirenkama iš klasifikatoriaus","Pasirenkama iš klasifikatoriaus\n","Priskiriamas automatiškai, pasirinkus rodiklį","Pasirenkama iš klasifikatoriaus \"Sveikatos\" sričiai","Pasirenkama iš klasifikatoriaus -  \"Švietimo\" sričiai",null,"Metodas priskiriamas automatiškai","Priskiriamas automatiškai","Reikšmė įrašoma pareiškėjo","a \narba a(t)","b","a(t-1) arba c","Poveikis, %","a \narba a(t)","b","a(t-1) arba c","Poveikis, %","a \narba a(t)","b","a(t-1) arba c","Poveikis, %","a \narba a(t)","b","a(t-1) arba c","Poveikis, %","a \narba a(t)","b","a(t-1) arba c","Poveikis, %","a \narba a(t)","b","a(t-1) arba c","Poveikis, %","a \narba a(t)","b","a(t-1) arba c","Poveikis, %","a \narba a(t)","b","a(t-1) arba c","Poveikis, %","Apskaičiuojama automatiškai","Reikšmė įrašoma pareiškėjo","Reikšmė įrašoma pareiškėjo"]
[1,"Užimtumas","1. Socialinės atskirties ir skurdo mažinimas bei socialinės integracijos ir užimtumo skatinimas.","1.1. Mažinti skurdo lygį.\n\n","1.1.1. Mažinti skurdo lygį.\n\n\n\n","Pasirinkite reikšmę","1.1.1.1.  Įdarbintų asmenų, priklausančių tam tikrai tikslinei grupei, dalis nuo įmonės veikloje dalyvavusių asmenų (proc.).","Pagrindinis","N/A",{"$f":"IF(B4=\"Švietimas\",\"Pasirinkite reikšmę\",\"N/A\")","v":"N/A"},{"$f":"IF(H4=\"Pagrindinis\",\"N/A\",\"Aprašykite rodiklį\")","v":"N/A"},"a/b*100%, čia\na – ataskaitiniu laikotarpiu darbintų tam tikros tikslinės grupės žmonių skaičius, vnt.\nb – iš viso tam tikros tikslinės grupės žmonių, dalyvavusių įmonės veikloje, skaičius, vnt. ","Kartą per metus",{"$nulls":4},{"$f":"O4/P4*100","v":{"$error":"#DIV/0!"}},{"$nulls":3},{"$f":"S4/T4*100","v":{"$error":"#DIV/0!"}},{"$nulls":3},{"$f":"W4/X4*100","v":{"$error":"#DIV/0!"}},{"$nulls":3},{"$f":"AA4/AB4*100","v":{"$error":"#DIV/0!"}},{"$nulls":3},{"$f":"AE4/AF4*100","v":{"$error":"#DIV/0!"}},{"$nulls":3},{"$f":"AI4/AJ4*100","v":{"$error":"#DIV/0!"}},{"$nulls":3},{"$f":"AM4/AN4*100","v":{"$error":"#DIV/0!"}},{"$nulls":3},{"$f":"AQ4/AR4*100","v":{"$error":"#DIV/0!"}},{"$f":"SUM(R4+V4+Z4+AD4+AH4+AL4+AP4+AT4)/7","v":{"$error":"#DIV/0!"}}]
[2,{"$nulls":4},"Pasirinkite reikšmę","1.1.1.2. Asmenų, priklausančių tam tikrai tikslinei grupei, kurių minimalios (skurdo ribą siekiančios) mėnesinės pajamos dėl įdarbinimo įmonėje padidėjo, dalis nuo įmonės veikloje dalyvavusių asmenų (proc.).","Pagrindinis","N/A","N/A","N/A","a/b*100%, čia\na – ataskaitiniu laikotarpiu tam tikros tikslinės grupės asmenų skaičius, kurių pajamos padidėjo dėl įmonės teikiamų paslaugų / vykdomos veiklos / įdarbinimo įmonėje, vnt.\nb – iš viso tam tikros tikslinės grupės žmonių, dalyvavusių įmonės veikloje, skaičius, vnt. ","Kartą per metus",{"$nulls":4},{"$f":"O5/P5*100","v":{"$error":"#DIV/0!"}},{"$nulls":3},{"$f":"S5/T5*100","v":{"$error":"#DIV/0!"}},{"$nulls":3},{"$f":"W5/X5*100","v":{"$error":"#DIV/0!"}},{"$nulls":3},{"$f":"AA5/AB5*100","v":{"$error":"#DIV/0!"}},{"$nulls":3},{"$f":"AE5/AF5*100","v":{"$error":"#DIV/0!"}},{"$nulls":3},{"$f":"AI5/AJ5*100","v":{"$error":"#DIV/0!"}},{"$nulls":3},{"$f":"AM5/AN5*100","v":{"$error":"#DIV/0!"}},{"$nulls":3},{"$f":"AQ5/AR5*100","v":{"$error":"#DIV/0!"}},{"$f":"SUM(R5+V5+Z5+AD5+AH5+AL5+AP5+AT5)/7","v":{"$error":"#DIV/0!"}}]
[3,{"$nulls":4},"Pasirinkite reikšmę","1.1.1.3. Tam tikros tikslinės grupės asmenų, kurie dėl įmonės teikiamų paslaugų / vykdomos veiklos periodiškai gavo materialinę paramą (pvz., šilto maisto) ir pripažino, kad dėl to pagerėjo jų materialinės gyvenimo sąlygos, dalis nuo įmonės veikloje dalyvavusių asmenų (proc.).","Papildomas","N/A","N/A","Aprašykite rodiklį","a/b*100%>0, čia\na – tam tikros tikslinės grupės asmenų, dalyvavusių įmonių veikloje ir dėl to pasijutusių geriau, skaičius, vnt.\nb – bendras tam tikros tikslinės grupės asmenų, dalyvavusių įmonės veikloje, skaičius, vnt.","Vertinimo pradžioje (duomenys apie esamą padėtį) ir kiekvieno periodo pabaigoje",{"$nulls":4},{"$error":"#DIV/0!"},{"$nulls":3},{"$error":"#DIV/0!"},{"$nulls":3},{"$error":"#DIV/0!"},{"$nulls":3},{"$error":"#DIV/0!"},{"$nulls":3},{"$error":"#DIV/0!"},{"$nulls":3},{"$error":"#DIV/0!"},{"$nulls":3},{"$error":"#DIV/0!"},{"$nulls":3},{"$error":"#DIV/0!"},{"$error":"#DIV/0!"}]
[4,{"$nulls":4},"Pasirinkite reikšmę","1.1.1.4. Tam tikros tikslinės grupės asmenų, kurie dėl įmonės teikiamų paslaugų / vykdomos veiklos dalyvavo gerosios patirties pasidalijimo renginiuose ir pripažino, kad jie įgijo naudingų žinių / patirties, padėsiančių jiems įsidarbinti /užsiimti pajamas generuojančia veikla, dalis nuo renginiuose dalyvavusių asmenų (proc.).","Papildomas","N/A","N/A","Aprašykite rodiklį","a/b*100%>0, čia\na – tam tikros tikslinės grupės asmenų, dalyvavusių renginyje ir įgijusių žinių, skaičius, vnt.\nb – bendras tam tikros tikslinės grupės asmenų, dalyvavusių įmonės veikloje, skaičius, vnt.","Vertinimo pradžioje (duomenys apie esamą padėtį) ir kiekvieno periodo pabaigoje",{"$nulls":4},{"$error":"#DIV/0!"},{"$nulls":3},{"$error":"#DIV/0!"},{"$nulls":3},{"$error":"#DIV/0!"},{"$nulls":3},{"$error":"#DIV/0!"},{"$nulls":3},{"$error":"#DIV/0!"},{"$nulls":3},{"$error":"#DIV/0!"},{"$nulls":3},{"$error":"#DIV/0!"},{"$nulls":3},{"$error":"#DIV/0!"},{"$error":"#DIV/0!"}]
[5,{"$nulls":3},"1.1.2. Mažinti tam tikros tikslinės grupės šeimų / asmenų pajamų priklausomybę nuo socialinių pašalpų.","Pasirinkite reikšmę","1.1.2.1. Įdarbintų asmenų, priklausančių tam tikrai tikslinei grupei, dalis nuo įmonės veikloje dalyvavusių asmenų (proc.).","Pagrindinis","N/A","N/A","N/A","a/b*100%, čia\na – ataskaitiniu laikotarpiu įdarbintų tam tikros tikslinės grupės žmonių skaičius, vnt. \nb – bendras tam tikros tikslinės grupės asmenų, dalyvavusių įmonės veikloje, skaičius, vnt.","Kartą per metus",{"$nulls":4},{"$error":"#DIV/0!"},{"$nulls":3},{"$error":"#DIV/0!"},{"$nulls":3},{"$error":"#DIV/0!"},{"$nulls":3},{"$error":"#DIV/0!"},{"$nulls":3},{"$error":"#DIV/0!"},{"$nulls":3},{"$f":"AI8/AJ8*100","v":{"$error":"#DIV/0!"}},{"$nulls":3},{"$error":"#DIV/0!"},{"$nulls":3},{"$error":"#DIV/0!"},{"$error":"#DIV/0!"}]
[6,{"$nulls":4},"Pasirinkite reikšmę","1.1.2.2. Asmenų, priklausančių tam tikrai tikslinei grupei ir gaunančių pašalpas, kurių skaičius dėl įdarbinimo įmonėje sumažėjo, dalis nuo įmonės veikloje dalyvavusių asmenų (proc.).","Papildomas","N/A","N/A","Aprašykite rodiklį","a/b*100%, čia\na – tam tikros tikslinės grupės asmenų, kurie nebegauna pašalpos dėl įmonės vykdomos veiklos / įdarbinimo, skaičius, vnt.\nb – bendras tam tikros tikslinės grupės asmenų, dalyvavusių įmonės veikloje, skaičius, vnt.","Kartą per metus",{"$nulls":4},{"$error":"#DIV/0!"},{"$nulls":3},{"$error":"#DIV/0!"},{"$nulls":3},{"$error":"#DIV/0!"},{"$nulls":3},{"$error":"#DIV/0!"},{"$nulls":3},{"$error":"#DIV/0!"},{"$nulls":3},{"$f":"AI9/AJ9*100","v":{"$error":"#DIV/0!"}},{"$nulls":3},{"$error":"#DIV/0!"},{"$nulls":3},{"$error":"#DIV/0!"},{"$error":"#DIV/0!"}]
[7,{"$nulls":4},"Pasirinkite reikšmę","1.1.2.3. Tam tikros tikslinės grupės asmenų, kurie dėl įmonės teikiamų paslaugų / vykdomos veiklos dalyvavo gerosios patirties pasidalijimo renginiuose ir pripažino, kad jie įgijo naudingų žinių / patirties, padėsiančių jiems įsidarbinti /užsiimti pajamas generuojančia veikla, dalis nuo renginiuose dalyvavusių asmenų (proc.).","Papildomas","N/A","N/A","Aprašykite rodiklį","a/b*100%>0, čia\na – tam tikros tikslinės grupės asmenų, dalyvavusių renginyje ir įgijusių žinių, skaičius, vnt.\nb – bendras tam tikros tikslinės grupės asmenų, dalyvavusių įmonės renginyje, skaičius, vnt.","Vertinimo pradžioje (duomenys apie esamą padėtį) ir kiekvieno periodo pabaigoje",{"$nulls":4},{"$error":"#DIV/0!"},{"$nulls":3},{"$error":"#DIV/0!"},{"$nulls":3},{"$error":"#DIV/0!"},{"$nulls":3},{"$error":"#DIV/0!"},{"$nulls":3},{"$error":"#DIV/0!"},{"$nulls":3},{"$error":"#DIV/0!"},{"$nulls":3},{"$error":"#DIV/0!"},{"$nulls":3},{"$error":"#DIV/0!"},{"$error":"#DIV/0!"}]
[8,null,null,"1.2. Skatinti užimtumą.","1.2.1. Didinti asmenų, priklausančių tam tikrai tikslinei grupei, užimtumą.\n","Pasirinkite reikšmę","1.2.1.1. Apmokytų ir įdarbintų asmenų, priklausančių tam tikrai tikslinei grupei, dalis nuo įmonės veikloje dalyvavusių asmenų (proc.).","Pagrindinis","N/A","N/A","N/A","a/b*100%, čia\na – ataskaitiniu laikotarpiu apmokytų ir įdarbintų tam tikros tikslinės grupės žmonių skaičius, vnt.\nb – iš viso tam tikros tikslinės grupės žmonių, dalyvavusių įmonės veikloje, skaičius, vnt.","Kartą per metus",{"$nulls":4},{"$error":"#DIV/0!"},{"$nulls":3},{"$error":"#DIV/0!"},{"$nulls":3},{"$error":"#DIV/0!"},{"$nulls":3},{"$error":"#DIV/0!"},{"$nulls":3},{"$error":"#DIV/0!"},{"$nulls":3},{"$error":"#DIV/0!"},{"$nulls":3},{"$error":"#DIV/0!"},{"$nulls":3},{"$error":"#DIV/0!"},{"$error":"#DIV/0!"}]
[9,{"$nulls":4},"Pasirinkite reikšmę","1.2.1.2. Asmenų, priklausančių tam tikrai tikslinei grupei, kurie dėl įmonės teikiamų paslaugų / vykdomos veiklos, įsidarbino po surengtų verslumo/ užimtumo skatinimo renginių, dalis nuo įmonės veikloje dalyvavusių asmenų (proc.).","Pagrindinis","N/A",{"$f":"IF(B14=\"Švietimas\",\"Pasirinkite reikšmę\",\"N/A\")","v":"N/A"},"N/A","a/b*100%>0, čia\na – tam tikros tikslinės grupės asmenų, dalyvavusių renginyje ir įsidarbinusių, skaičius, vnt.\nb – bendras tam tikros tikslinės grupės asmenų, dalyvavusių renginyje, skaičius, vnt.","Vertinimo pradžioje (duomenys apie esamą padėtį) ir kiekvieno periodo pabaigoje",{"$nulls":4},{"$error":"#DIV/0!"},{"$nulls":3},{"$error":"#DIV/0!"},{"$nulls":3},{"$error":"#DIV/0!"},{"$nulls":3},{"$error":"#DIV/0!"},{"$nulls":3},{"$error":"#DIV/0!"},{"$nulls":3},{"$error":"#DIV/0!"},{"$nulls":3},{"$error":"#DIV/0!"},{"$nulls":3},{"$error":"#DIV/0!"},{"$error":"#DIV/0!"}]
[10,{"$nulls":4},"Pasirinkite reikšmę","1.2.1.3. Tam tikros tikslinės grupės asmenų, kurie dėl įmonės teikiamų paslaugų / vykdomos veiklos dalyvavo gerosios patirties pasidalijimo renginiuose ir pripažino, kad jie įgijo naudingų žinių / patirties, padėsiančių jiems įsidarbinti /užsiimti pajamas generuojančia veikla, dalis nuo renginiuose dalyvavusių asmenų (proc.).","Papildomas","N/A",{"$f":"IF(B13=\"Švietimas\",\"Pasirinkite reikšmę\",\"N/A\")","v":"N/A"},"Aprašykite rodiklį","a/b*100%>0, čia\na – tam tikros tikslinės grupės asmenų, dalyvavusių renginyje ir įgijusių žinių, skaičius, vnt.\nb – bendras tam tikros tikslinės grupės asmenų, dalyvavusių renginyje, skaičius, vnt.","Vertinimo pradžioje (duomenys apie esamą padėtį) ir kiekvieno periodo pabaigoje",{"$nulls":4},{"$error":"#DIV/0!"},{"$nulls":3},{"$error":"#DIV/0!"},{"$nulls":3},{"$error":"#DIV/0!"},{"$nulls":3},{"$error":"#DIV/0!"},{"$nulls":3},{"$error":"#DIV/0!"},{"$nulls":3},{"$error":"#DIV/0!"},{"$nulls":3},{"$error":"#DIV/0!"},{"$nulls":3},{"$error":"#DIV/0!"},{"$error":"#DIV/0!"}]
[11,{"$nulls":3},"1.2.2. Skatinti gyventojų/ asmenų priklausančių rizikos grupei verslumą.","Pasirinkite reikšmę","1.2.2.1. Asmenų, priklausančių tam tikrai tikslinei grupei, kurie dėl įmonės teikiamų paslaugų / vykdomos veiklos dalyvavo verslumo skatinimo renginyje ir pradėjo verslą, dalis nuo įmonės veikloje dalyvavusių asmenų (proc.).","Pagrindinis","N/A","N/A","N/A","a/b*100%>0, čia\na – tam tikros tikslinės grupės asmenų, dalyvavusių renginyje ir pradėjusių verslą, skaičius, vnt.\nb – bendras tam tikros tikslinės grupės asmenų, dalyvavusių renginyje, skaičius, vnt.","Kartą per metus",{"$nulls":4},{"$error":"#DIV/0!"},{"$nulls":3},{"$error":"#DIV/0!"},{"$nulls":3},{"$error":"#DIV/0!"},{"$nulls":3},{"$error":"#DIV/0!"},{"$nulls":3},{"$error":"#DIV/0!"},{"$nulls":3},{"$error":"#DIV/0!"},{"$nulls":3},{"$error":"#DIV/0!"},{"$nulls":3},{"$error":"#DIV/0!"},{"$error":"#DIV/0!"}]
[12,{"$nulls":4},"Pasirinkite reikšmę","1.2.2.2. Tam tikros tikslinės grupės asmenų, kurie dėl įmonės teikiamų paslaugų / vykdomos veiklos dalyvavo gerosios patirties pasidalijimo renginiuose, ir teigia, kad įgyta informacija paskatino imtis veiksmų, susijusių su padėties keitimu, dalis nuo renginiuose dalyvavusių asmenų (proc.).","Papildomas","N/A","N/A","Aprašykite rodiklį","a/b*100%>0, čia\na – tam tikros tikslinės grupės asmenų, dalyvavusių renginyje, ir kurie ėmėsi su padėties keitimu susijusių veiksmų, skaičius, vnt.\nb – bendras tam tikros tikslinės grupės asmenų, dalyvavusių renginyje, skaičius, vnt.","Kartą per metus",{"$nulls":4},{"$error":"#DIV/0!"},{"$nulls":3},{"$error":"#DIV/0!"},{"$nulls":3},{"$error":"#DIV/0!"},{"$nulls":3},{"$error":"#DIV/0!"},{"$nulls":3},{"$error":"#DIV/0!"},{"$nulls":3},{"$error":"#DIV/0!"},{"$nulls":3},{"$error":"#DIV/0!"},{"$nulls":3},{"$error":"#DIV/0!"},{"$error":"#DIV/0!"}]
[13,{"$nulls":3},"1.2.3. Didinti darbo jėgos kvalifikacijos atitiktį darbo rinkos reikmėms.","Pasirinkite reikšmę","1.2.3.1. Apmokytų ir projekto veiklą vykdančioje įmonėje įdarbintų asmenų, priklausančių tam tikrai tikslinei grupei, dalis nuo įmonės veikloje dalyvavusių asmenų (proc.).","Pagrindinis","N/A","N/A","N/A","a/b*100%, čia\na – ataskaitiniu laikotarpiu apmokytų ir įdarbintų tam tikros tikslinės grupės žmonių skaičius, vnt.\nb – iš viso tam tikros tikslinės grupės žmonių, dalyvavusių įmonės veikloje, skaičius, vnt.","Kartą per metus",{"$nulls":4},{"$error":"#DIV/0!"},{"$nulls":3},{"$error":"#DIV/0!"},{"$nulls":3},{"$error":"#DIV/0!"},{"$nulls":3},{"$error":"#DIV/0!"},{"$nulls":3},{"$error":"#DIV/0!"},{"$nulls":3},{"$error":"#DIV/0!"},{"$nulls":3},{"$error":"#DIV/0!"},{"$nulls":3},{"$error":"#DIV/0!"},{"$error":"#DIV/0!"}]
[14,{"$nulls":4},"Pasirinkite reikšmę","1.2.3.2. Apmokytų ir kitose įmonėse / įstaigose (ne veiklą organizuojančioje įmonėje) įsidarbinusių asmenų, priklausančių tam tikrai tikslinei grupei, dalis nuo įmonės veikloje dalyvavusių asmenų (proc.).","Pagrindinis","N/A","N/A","N/A","a/b*100%, čia\na – ataskaitiniu laikotarpiu apmokytų ir kitur įsidarbinusių (ne veiklą organizuojančioje įmonėje) tam tikros tikslinės grupės žmonių skaičius, vnt.\nb – iš viso tam tikros tikslinės grupės žmonių, dalyvavusių įmonės veikloje, skaičius, vnt.","Kartą per metus",{"$nulls":4},{"$error":"#DIV/0!"},{"$nulls":3},{"$error":"#DIV/0!"},{"$nulls":3},{"$error":"#DIV/0!"},{"$nulls":3},{"$error":"#DIV/0!"},{"$nulls":3},{"$error":"#DIV/0!"},{"$nulls":3},{"$error":"#DIV/0!"},{"$nulls":3},{"$error":"#DIV/0!"},{"$nulls":3},{"$error":"#DIV/0!"},{"$error":"#DIV/0!"}]
[15,{"$nulls":4},"Pasirinkite reikšmę","1.2.3.3. Tam tikros tikslinės grupės asmenų, kurie dėl įmonės teikiamų paslaugų / vykdomos veiklos dalyvavo gerosios patirties pasidalijimo renginiuose ir pripažino, kad jie įgijo naudingų žinių / patirties, padėsiančių jiems įsidarbinti /užsiimti pajamas generuojančia veikla, dalis nuo renginiuose dalyvavusių asmenų (proc.).","Papildomas","N/A","N/A","Aprašykite rodiklį","a/b*100%>0, čia\na – tam tikros tikslinės grupės asmenų, dalyvavusių renginyje ir įgijusių žinių, skaičius, vnt.\nb – bendras tam tikros tikslinės grupės asmenų, dalyvavusių renginyje, skaičius, vnt.","Vertinimo pradžioje (duomenys apie esamą padėtį) ir kiekvieno periodo pabaigoje",{"$nulls":4},{"$error":"#DIV/0!"},{"$nulls":3},{"$error":"#DIV/0!"},{"$nulls":3},{"$error":"#DIV/0!"},{"$nulls":3},{"$error":"#DIV/0!"},{"$nulls":3},{"$error":"#DIV/0!"},{"$nulls":3},{"$error":"#DIV/0!"},{"$nulls":3},{"$error":"#DIV/0!"},{"$nulls":3},{"$error":"#DIV/0!"},{"$error":"#DIV/0!"}]
[16,{"$nulls":4},"Pasirinkite reikšmę","1.2.4.1.  Asmenų, priklausančių tam tikrai tikslinei grupei, kurie dėl įmonės teikiamų paslaugų / vykdomos veiklos / suteiktos infrastruktūros pasinaudojo paskatų sistema, kuri padėjo įsitvirtinti darbo rinkoje, dalis nuo įmonės veikloje dalyvavusių asmenų (proc.).\n\nPvz., lanksčios darbo sąlygos, lengvatinis nuvykimas į darbo vietą / parvykimas iš darbo vietos, vaikų priežiūros kambario sukūrimas ir t.t.","Pagrindinis","N/A","N/A","N/A","a/b*100%>0, čia\na – asmenys, dalyvavę įmonės veikloje, kurių paskatos įsitvirtinti darbo rinkoje, padidėjo, skaičius, vnt.\nb – bendras asmenų, dalyvavusių įmonės veikloje, skaičius, vnt.","Kartą per metus",{"$nulls":4},{"$error":"#DIV/0!"},{"$nulls":3},{"$error":"#DIV/0!"},{"$nulls":3},{"$error":"#DIV/0!"},{"$nulls":3},{"$error":"#DIV/0!"},{"$nulls":3},{"$error":"#DIV/0!"},{"$nulls":3},{"$error":"#DIV/0!"},{"$nulls":3},{"$error":"#DIV/0!"},{"$nulls":3},{"$error":"#DIV/0!"},{"$error":"#DIV/0!"}]
[17,{"$nulls":4},"Pasirinkite reikšmę","1.2.4.2. Tam tikros tikslinės grupės asmenų, kurie dėl įmonės teikiamų paslaugų / vykdomos veiklos dalyvavo gerosios patirties pasidalijimo renginiuose ir pripažino, kad jie įgijo naudingų žinių / patirties, padėsiančių jiems įsidarbinti /užsiimti pajamas generuojančia veikla, dalis nuo renginiuose dalyvavusių asmenų (proc.).","Papildomas","N/A","N/A","Aprašykite rodiklį","a/b*100%>0, čia\na – tam tikros tikslinės grupės asmenų, dalyvavusių renginyje, ir kurie ėmėsi su padėties keitimu susijusių veiksmų, skaičius, vnt.\nb – bendras tam tikros tikslinės grupės asmenų, dalyvavusių renginyje, skaičius, vnt.","Kartą per metus",{"$nulls":4},{"$error":"#DIV/0!"},{"$nulls":3},{"$error":"#DIV/0!"},{"$nulls":3},{"$error":"#DIV/0!"},{"$nulls":3},{"$error":"#DIV/0!"},{"$nulls":3},{"$error":"#DIV/0!"},{"$nulls":3},{"$error":"#DIV/0!"},{"$nulls":3},{"$error":"#DIV/0!"},{"$nulls":3},{"$error":"#DIV/0!"},{"$error":"#DIV/0!"}]
[18,{"$nulls":4},"Pasirinkite reikšmę","1.2.4.3. Surengtuose verslumo skatinimo renginiuose dalyvavusių ir įgytas žinias teigiamai įvertinusių asmenų, priklausančių tam tikrai tikslinei grupei, dalis nuo įmonės veikloje dalyvavusių asmenų (proc.).","Papildomas","N/A","N/A","Aprašykite rodiklį","a/b*100%, čia\na – ataskaitiniu laikotarpiu dalyvavusių asmenų ir teigiamai įvertinusių mokymus, skaičius, vnt. \nb – iš viso dalyvavusių asmenų skaičius skaičius, vnt. ","Kartą per metus",{"$nulls":4},{"$error":"#DIV/0!"},{"$nulls":3},{"$error":"#DIV/0!"},{"$nulls":3},{"$error":"#DIV/0!"},{"$nulls":3},{"$error":"#DIV/0!"},{"$nulls":3},{"$error":"#DIV/0!"},{"$nulls":3},{"$error":"#DIV/0!"},{"$nulls":3},{"$error":"#DIV/0!"},{"$nulls":3},{"$error":"#DIV/0!"},{"$error":"#DIV/0!"}]
[19,null,null,"1.3. Mažinti socialinę atskirtį ir skatinti socialinę integraciją.","1.3.1. Mažinti socialinę atskirtį.\n","Pasirinkite reikšmę","1.3.1.1. Išaugusi tam tikros tikslinės grupės asmenų, dalyvaujančių bent vienos grupės/ organizacijos /bendrijos veikloje, dalis nuo įmonės veikloje dalyvavusių asmenų (proc.).","Pagrindinis","N/A","N/A","N/A","(a(t)-a(t-1))/b>0, čia\na(t) – tam tikros tikslinės grupės asmenų, besinaudojančių įmonės paslaugomis/ dalyvaujančių įmonės veikloje ir pradėjusių dalyvauti bent vienos grupės/ organizacijos /bendrijos veikloje, skaičius (einamuoju periodu), vnt.\na(t-1) – tam tikros tikslinės grupės asmenų, pasinaudojusių įmonės paslaugomis/ dalyvavusių įmonės veikloje ir pradėjusių dalyvauti bent vienos grupės/ organizacijos /bendrijos veikloje, skaičius (prieš 1 metus buvusiu periodu), vnt.\nb – bendras tam tikros tikslinės grupės asmenų, besinaudojančių įmonės paslaugomis/ dalyvaujančių įmonės veikloje, skaičius, vnt.","Kartą per metus",{"$nulls":4},{"$f":"(O22-Q22)/P22*100","v":{"$error":"#DIV/0!"}},{"$nulls":3},{"$f":"(S22-U22)/T22*100","v":{"$error":"#DIV/0!"}},{"$nulls":3},{"$f":"(W22-Y22)/X22*100","v":{"$error":"#DIV/0!"}},{"$nulls":3},{"$f":"(AA22-AC22)/AB22","v":{"$error":"#DIV/0!"}},{"$nulls":3},{"$f":"(AE22-AG22)/AF22","v":{"$error":"#DIV/0!"}},{"$nulls":3},{"$f":"(AI22-AK22)/AJ22","v":{"$error":"#DIV/0!"}},{"$nulls":3},{"$f":"(AM22-AO22)/AN22","v":{"$error":"#DIV/0!"}},{"$nulls":3},{"$f":"(AQ22-AS22)/AR22","v":{"$error":"#DIV/0!"}},{"$f":"SUM(R22+V22+Z22+AD22+AH22)/5","v":{"$error":"#DIV/0!"}}]
[20,{"$nulls":4},"Pasirinkite reikšmę","1.3.1.2. Išaugusi tam tikros tikslinės grupės asmenų, pasinaudojusių fizine ir (ar) informacine aplinka, kuriems ji buvo naudinga, dalis nuo įmonės veikloje dalyvavusių asmenų (proc.).\n","Pagrindinis","N/A","N/A","N/A","(a(t)-a(t-1))/b>0, čia\na(t) – tam tikros tikslinės grupės asmenų, besinaudojančių įmonės paslaugomis/ dalyvaujančių įmonės veikloje ir pasinaudojusių fizine ir/ ar informacine aplinka, skaičius (einamuoju periodu), vnt.\na(t-1) – tam tikros tikslinės grupės asmenų, pasinaudojusių įmonės paslaugomis/ dalyvavusių įmonės veikloje ir pasinaudojusių fizine ir/ ar informacine aplinka, skaičius (prieš 1 metus buvusiu periodu), vnt.\nb – bendras tam tikros tikslinės grupės asmenų, besinaudojančių įmonės paslaugomis/ dalyvaujančių įmonės veikloje, skaičius, vnt.","Kartą per metus",{"$nulls":4},{"$error":"#DIV/0!"},{"$nulls":3},{"$error":"#DIV/0!"},{"$nulls":3},{"$error":"#DIV/0!"},{"$nulls":3},{"$error":"#DIV/0!"},{"$nulls":3},{"$error":"#DIV/0!"},{"$nulls":3},{"$error":"#DIV/0!"},{"$nulls":3},{"$error":"#DIV/0!"},{"$nulls":3},{"$error":"#DIV/0!"},{"$f":"SUM(R23+V23+Z23+AD23+AH23)/5","v":{"$error":"#DIV/0!"}}]
[21,{"$nulls":4},"Pasirinkite reikšmę","1.3.1.3. Tam tikros tikslinės grupės asmenų, kurie dėl įmonės teikiamų paslaugų / vykdomos veiklos dalyvavo gerosios patirties pasidalijimo renginiuose ir pripažino, kad jie įgijo naudingų žinių / patirties, padėsiančių mažinti socialinę atskirtį, dalis nuo renginiuose dalyvavusių asmenų (proc.).\n","Papildomas","N/A","N/A","Aprašykite rodiklį","a/b*100%>0, čia\na – tam tikros tikslinės grupės asmenų, dalyvavusių renginyje ir įgijusių žinių, skaičius, vnt.\nb – bendras tam tikros tikslinės grupės asmenų, dalyvavusių renginyje, skaičius, vnt.","Vertinimo pradžioje (duomenys apie esamą padėtį) ir kiekvieno periodo pabaigoje",{"$nulls":4},{"$f":"O24/P24*100","v":{"$error":"#DIV/0!"}},{"$nulls":3},{"$f":"S24/T24*100","v":{"$error":"#DIV/0!"}},{"$nulls":3},{"$f":"W24/X24*100","v":{"$error":"#DIV/0!"}},{"$nulls":3},{"$f":"AA24/AB24*100","v":{"$error":"#DIV/0!"}},{"$nulls":3},{"$f":"AE24/AF24*100","v":{"$error":"#DIV/0!"}},{"$nulls":3},{"$f":"AI24/AJ24*100","v":{"$error":"#DIV/0!"}},{"$nulls":3},{"$f":"AM24/AN24*100","v":{"$error":"#DIV/0!"}},{"$nulls":3},{"$f":"AQ24/AR24*100","v":{"$error":"#DIV/0!"}},{"$f":"SUM(R24+V24+Z24+AD24+AH24+AL24+AP24+AT24)/7","v":{"$error":"#DIV/0!"}}]
[22,{"$nulls":4},"Pasirinkite reikšmę","1.3.1.4. Tam tikros tikslinės grupės asmenų, kurie dėl įmonės teikiamų paslaugų / vykdomos veiklos dalyvavo gerosios patirties pasidalijimo renginiuose, ir teigia, kad įgyta informacija paskatino imtis veiksmų, susijusių su padėties keitimu, dalis nuo renginiuose dalyvavusių asmenų (proc.).","Papildomas","N/A","N/A","Aprašykite rodiklį","a/b*100%>0, čia\na – tam tikros tikslinės grupės asmenų, dalyvavusių renginyje, ir kurie ėmėsi su padėties keitimu susijusių veiksmų, skaičius, vnt.\nb – bendras tam tikros tikslinės grupės asmenų, dalyvavusių renginyje, skaičius, vnt.","Kartą per metus",{"$nulls":4},{"$error":"#DIV/0!"},{"$nulls":3},{"$error":"#DIV/0!"},{"$nulls":3},{"$error":"#DIV/0!"},{"$nulls":3},{"$error":"#DIV/0!"},{"$nulls":3},{"$error":"#DIV/0!"},{"$nulls":3},{"$error":"#DIV/0!"},{"$nulls":3},{"$error":"#DIV/0!"},{"$nulls":3},{"$error":"#DIV/0!"},{"$error":"#DIV/0!"}]
[23,"Sveikata","2. Gyventojų fizinės ir psichinės sveikatos gerinimas ir su sveikata susijusių problemų sprendimas.","2.1. Skatinti domėjimąsi sveika gyvensena.\n","2.1.1. Didinti žinomumą / sąmoningumą apie sveiką gyvenseną,  higieną.\n\n\n\n","Pasirinkite reikšmę","2.1.1.1. Asmenų, priklausančių tam tikrai tikslinei grupei, kurių sveikata / savijauta dėl įmonės teikiamų paslaugų / vykdomos veiklos / suteiktos infrastruktūros pagerėjo, dalis nuo įmonės veikloje dalyvavusių asmenų (proc.).","Pagrindinis","N/A","N/A","N/A","a/b*100%>0, čia\na – tam tikros tikslinės grupės asmenų, dalyvavusių įmonės veikloje ir pradėjusių jaustis geriau, skaičius, vnt.\nb – bendras tam tikros tikslinės grupės asmenų, dalyvavusių įmonės veikloje, skaičius, vnt.","Vertinimo pradžioje (duomenys apie esamą padėtį) ir kiekvieno periodo pabaigoje",{"$nulls":4},{"$error":"#DIV/0!"},{"$nulls":3},{"$error":"#DIV/0!"},{"$nulls":3},{"$error":"#DIV/0!"},{"$nulls":3},{"$error":"#DIV/0!"},{"$nulls":3},{"$error":"#DIV/0!"},{"$nulls":3},{"$error":"#DIV/0!"},{"$nulls":3},{"$error":"#DIV/0!"},{"$nulls":3},{"$error":"#DIV/0!"},{"$error":"#DIV/0!"}]
[24,{"$nulls":4},"Pasirinkite reikšmę","2.1.1.2. Asmenų, priklausančių tam tikrai tikslinei grupei, kuriems dėl įmonės teikiamų paslaugų / vykdomos veiklos tapo labiau prieinama informacija apie tam tikrą temą (pasirinkite reikšmę papildomame klasifikatoriuje) ir jie tą informaciją vertina kaip naudingą, dalis nuo įmonės veikloje dalyvavusių asmenų (proc.).","Papildomas","Pasirinkite reikšmę","N/A","Aprašykite rodiklį","a/b*100%>0, čia\na – tam tikros tikslinės grupės asmenų, dalyvavusių įmonės veikloje, kuriems tapo labiau prieinama informacija apie šeimos planavimą ir jie vertina ją kaip naudingą, skaičius, vnt.\nb – bendras tam tikros tikslinės grupės asmenų, dalyvavusių renginyje, skaičius, vnt.","Vertinimo pradžioje (duomenys apie esamą padėtį) ir kiekvieno periodo pabaigoje",{"$nulls":4},{"$error":"#DIV/0!"},{"$nulls":3},{"$error":"#DIV/0!"},{"$nulls":3},{"$error":"#DIV/0!"},{"$nulls":3},{"$error":"#DIV/0!"},{"$nulls":3},{"$error":"#DIV/0!"},{"$nulls":3},{"$error":"#DIV/0!"},{"$nulls":3},{"$error":"#DIV/0!"},{"$nulls":3},{"$error":"#DIV/0!"},{"$error":"#DIV/0!"}]
[25,null,null,"2.2. Skatinti fizinį aktyvumą.","2.2.1.  Didinti asmenų fizinį aktyvumą\n\n\n\n\n\n\n\n\n","Pasirinkite reikšmę","2.2.1.1. Asmenų, priklausančių tam tikrai tikslinei grupei, kurie dėl įmonės teikiamų paslaugų / vykdomos veiklos / suteiktos infrastruktūros gali aktyviau / saugiau / įdomiau leisti laisvalaikį, dalis nuo įmonės veikloje dalyvavusių asmenų (proc.).","Pagrindinis","N/A","N/A","N/A","a/b*100%>0, čia\na – tam tikros tikslinės grupės asmenų, dalyvavusių įmonės veikloje ir pradėjusių saugiau ir įdomiau leisti laisvalaikį, skaičius, vnt.\nb – bendras tam tikros tikslinės grupės asmenų, dalyvavusių įmonės veikloje, skaičius, vnt.","Vertinimo pradžioje (duomenys apie esamą padėtį) ir kiekvieno periodo pabaigoje",{"$nulls":4},{"$error":"#DIV/0!"},{"$nulls":3},{"$error":"#DIV/0!"},{"$nulls":3},{"$error":"#DIV/0!"},{"$nulls":3},{"$error":"#DIV/0!"},{"$nulls":3},{"$error":"#DIV/0!"},{"$nulls":3},{"$error":"#DIV/0!"},{"$nulls":3},{"$error":"#DIV/0!"},{"$nulls":3},{"$error":"#DIV/0!"},{"$error":"#DIV/0!"}]
[26,{"$nulls":4},"Pasirinkite reikšmę","2.2.1.2. Asmenų, priklausančių tam tikrai tikslinei grupei, kurių fizinis aktyvumas dėl įmonės teikiamų paslaugų / vykdomos veiklos / suteiktos/ sukurtos infrastruktūros padidėjo, dalis nuo įmonės veikloje dalyvavusių asmenų (proc.).","Pagrindinis","N/A","N/A","N/A","a/b*100%>0, čia\na – tam tikros tikslinės grupės asmenų, dalyvavusių įmonės veikloje, ir kurių fizinis aktyvumas padidėjo, skaičius, vnt.\nb – bendras tam tikros tikslinės grupės asmenų, dalyvavusių įmonės veikloje, skaičius, vnt.","Vertinimo pradžioje (duomenys apie esamą padėtį) ir kiekvieno periodo pabaigoje",{"$nulls":4},{"$error":"#DIV/0!"},{"$nulls":3},{"$error":"#DIV/0!"},{"$nulls":3},{"$error":"#DIV/0!"},{"$nulls":3},{"$error":"#DIV/0!"},{"$nulls":3},{"$error":"#DIV/0!"},{"$nulls":3},{"$error":"#DIV/0!"},{"$nulls":3},{"$error":"#DIV/0!"},{"$nulls":3},{"$error":"#DIV/0!"},{"$error":"#DIV/0!"}]
[27,{"$nulls":4},"Pasirinkite reikšmę","2.2.1.3. Tam tikros tikslinės grupės asmenų, kurie dėl įmonės teikiamų paslaugų / vykdomos veiklos dalyvavo gerosios patirties pasidalijimo renginiuose ir pripažino, kad jie įgijo naudingų žinių / patirties, padėsiančios didinti fizinį aktyvumą, dalis nuo renginiuose dalyvavusių asmenų (proc.).\n","Papildomas","N/A","N/A","Aprašykite rodiklį","a/b*100%>0, čia\na – asmenų, dalyvavusių įmonės renginyje ir dėl to įgijusių žinių, skaičius, vnt.\nb – bendras asmenų, dalyvavusių įmonės renginyje, skaičius, vnt.","Vertinimo pradžioje (duomenys apie esamą padėtį) ir kiekvieno periodo pabaigoje",{"$nulls":4},{"$error":"#DIV/0!"},{"$nulls":3},{"$error":"#DIV/0!"},{"$nulls":3},{"$error":"#DIV/0!"},{"$nulls":3},{"$error":"#DIV/0!"},{"$nulls":3},{"$error":"#DIV/0!"},{"$nulls":3},{"$error":"#DIV/0!"},{"$nulls":3},{"$error":"#DIV/0!"},{"$nulls":3},{"$error":"#DIV/0!"},{"$error":"#DIV/0!"}]
[28,null,null,"2.3. Gerinti fizinę ir psichinę sveikatos būklę.","2.3.1. Gerinti fizinę ir psichinę sveikatos būklę.","Pasirinkite reikšmę","2.3.1.1. Asmenų, priklausančių tam tikrai tikslinei grupei, kurių fizinis aktyvumas dėl įmonės teikiamų paslaugų / vykdomos veiklos / suteiktos/ sukurtos infrastruktūros pagerėjo, sveikata / savijauta pagerėjo, dalis nuo įmonės veikloje dalyvavusių asmenų (proc.).","Pagrindinis","N/A","N/A","N/A","a/b*100%>0, čia\na – tam tikros tikslinės grupės asmenų, dalyvavusių įmonės veikloje, ir kurių fizinis aktyvumas padidėjo, skaičius, vnt.\nb – bendras tam tikros tikslinės grupės asmenų, dalyvavusių įmonės veikloje, skaičius, vnt.","Vertinimo pradžioje (duomenys apie esamą padėtį) ir kiekvieno periodo pabaigoje",{"$nulls":4},{"$error":"#DIV/0!"},{"$nulls":3},{"$error":"#DIV/0!"},{"$nulls":3},{"$error":"#DIV/0!"},{"$nulls":3},{"$error":"#DIV/0!"},{"$nulls":3},{"$error":"#DIV/0!"},{"$nulls":3},{"$error":"#DIV/0!"},{"$nulls":3},{"$error":"#DIV/0!"},{"$nulls":3},{"$error":"#DIV/0!"},{"$error":"#DIV/0!"}]
[29,{"$nulls":4},"Pasirinkite reikšmę","2.3.1.2. Asmenų, priklausančių tam tikrai tikslinei grupei, kuriems dėl įmonės teikiamų paslaugų / vykdomos veiklos / suteiktos infrastruktūros yra sudarytos geresnės ir nuolatinės sąlygos turėti prieigą prie tam tikrų priemonių ar paslaugų (pasirinkite iš papildomo klasifikatoriaus), dalis nuo įmonės veikloje dalyvavusių asmenų (proc.).","Pagrindinis","Pasirinkite reikšmę","N/A","N/A","a/b*100%>0, čia\na – tam tikros tikslinės grupės asmenų, dalyvavusių įmonės veikloje, kurie pripažino, kad jiems yra sudarytos geresnės ir nuolatinės sąlygos turėti prieigą prie sveikatinimo priemonių ar paslaugų, skaičius, vnt.\nb – bendras tam tikros tikslinės grupės asmenų, dalyvavusių įmonių veikloje, skaičius, vnt.","Vertinimo pradžioje (duomenys apie esamą padėtį) ir kiekvieno periodo pabaigoje",{"$nulls":4},{"$error":"#DIV/0!"},{"$nulls":3},{"$error":"#DIV/0!"},{"$nulls":3},{"$error":"#DIV/0!"},{"$nulls":3},{"$error":"#DIV/0!"},{"$nulls":3},{"$error":"#DIV/0!"},{"$nulls":3},{"$error":"#DIV/0!"},{"$nulls":3},{"$error":"#DIV/0!"},{"$nulls":3},{"$error":"#DIV/0!"},{"$error":"#DIV/0!"}]
[30,{"$nulls":4},"Pasirinkite reikšmę","2.3.1.3 Tam tikros tikslinės grupės asmenų / sergančių asmenų, dėl įmonės teikiamų paslaugų / vykdomos veiklos / suteiktos infrastruktūros, periodiškai gavusių materialinę paramą (pvz., šilto maisto) ir pripažinusių, kad dėl to pagerėjo jų sveikata / savijauta, dalis nuo įmonės veikloje dalyvavusių asmenų (proc.).","Pagrindinis","N/A","N/A","N/A","a/b*100%>0, čia\na – asmenų, dalyvavusių įmonių veikloje ir pasijutusių geriau, skaičius, vnt.\nb – bendras asmenų, dalyvavusių įmonės veikloje, skaičius, vnt.","Vertinimo pradžioje (duomenys apie esamą padėtį) ir kiekvieno periodo pabaigoje",{"$nulls":4},{"$error":"#DIV/0!"},{"$nulls":3},{"$error":"#DIV/0!"},{"$nulls":3},{"$error":"#DIV/0!"},{"$nulls":3},{"$error":"#DIV/0!"},{"$nulls":3},{"$error":"#DIV/0!"},{"$nulls":3},{"$error":"#DIV/0!"},{"$nulls":3},{"$error":"#DIV/0!"},{"$nulls":3},{"$error":"#DIV/0!"},{"$error":"#DIV/0!"}]
[31,{"$nulls":4},"Pasirinkite reikšmę","2.3.1.4. Asmenų, priklausančių tam tikrai tikslinei grupei, kuriems dėl įmonės teikiamų paslaugų / vykdomos veiklos / suteiktos infrastruktūros tapo labiau prieinama informacija apie ligas / susižalojimus ir jie šią informaciją vertina kaip naudingą, dalis nuo įmonės veikloje dalyvavusių asmenų (proc.).","Papildomas","N/A","N/A","Aprašykite rodiklį","a/b*100%>0, čia\na – tam tikros tikslinės grupės asmenų, dalyvavusių įmonės veikloje, kuriems tapo labiau prieinama informacija apie ligas / sužalojimus ir jų prevenciją ir jie vertina ją kaip naudingą, skaičius, vnt.\nb – bendras tam tikros tikslinės grupės asmenų, dalyvavusių įmonės veikloje, skaičius, vnt.","Vertinimo pradžioje (duomenys apie esamą padėtį) ir kiekvieno periodo pabaigoje",{"$nulls":4},{"$error":"#DIV/0!"},{"$nulls":3},{"$error":"#DIV/0!"},{"$nulls":3},{"$error":"#DIV/0!"},{"$nulls":3},{"$error":"#DIV/0!"},{"$nulls":3},{"$error":"#DIV/0!"},{"$nulls":3},{"$error":"#DIV/0!"},{"$nulls":3},{"$error":"#DIV/0!"},{"$nulls":3},{"$error":"#DIV/0!"},{"$error":"#DIV/0!"}]
[32,{"$nulls":4},"Pasirinkite reikšmę","2.3.1.5. Asmenų, priklausančių tam tikrai tikslinei grupei, kurie dėl įmonės teikiamų paslaugų / vykdomos veiklos / suteiktos infrastruktūros pripažino, kad jų sveikata / savijauta pagerėjo, dalis nuo įmonės veikloje dalyvavusių asmenų (proc.).","Papildomas","N/A","N/A","Aprašykite rodiklį","a/b*100%>0, čia\na – tam tikros tikslinės grupės asmenų, dalyvavusių įmonės veikloje ir pradėjusių jaustis geriau, vnt.\nb – bendras tam tikros tikslinės grupės asmenų, dalyvavusių įmonės veikloje, skaičius, vnt.","Vertinimo pradžioje (duomenys apie esamą padėtį) ir kiekvieno periodo pabaigoje",{"$nulls":4},{"$error":"#DIV/0!"},{"$nulls":3},{"$error":"#DIV/0!"},{"$nulls":3},{"$error":"#DIV/0!"},{"$nulls":3},{"$error":"#DIV/0!"},{"$nulls":3},{"$error":"#DIV/0!"},{"$nulls":3},{"$error":"#DIV/0!"},{"$nulls":3},{"$error":"#DIV/0!"},{"$nulls":3},{"$error":"#DIV/0!"},{"$error":"#DIV/0!"}]
[33,{"$nulls":4},"Pasirinkite reikšmę","2.3.1.6. Asmenų, priklausančių tam tikrai tikslinei grupei, kurie dėl įmonės teikiamų paslaugų / vykdomos veiklos / suteiktos infrastruktūros pripažino, kad jų mitybos įpročiai pagerėjo, dalis nuo įmonės veikloje dalyvavusių asmenų (proc.).","Papildomas","N/A","N/A","Aprašykite rodiklį","a/b*100%>0, čia\na – tam tikros tikslinės grupės asmenų, dalyvavusių įmonės veikloje, ir kurių mitybos įpročiai pagerėjo, skaičius, vnt.\nb – bendras tam tikros tikslinės grupės asmenų, dalyvavusių įmonės veikloje, skaičius, vnt.","Vertinimo pradžioje (duomenys apie esamą padėtį) ir kiekvieno periodo pabaigoje",{"$nulls":4},{"$error":"#DIV/0!"},{"$nulls":3},{"$error":"#DIV/0!"},{"$nulls":3},{"$error":"#DIV/0!"},{"$nulls":3},{"$error":"#DIV/0!"},{"$nulls":3},{"$error":"#DIV/0!"},{"$nulls":3},{"$error":"#DIV/0!"},{"$nulls":3},{"$error":"#DIV/0!"},{"$nulls":3},{"$error":"#DIV/0!"},{"$error":"#DIV/0!"}]
[34,{"$nulls":4},"Pasirinkite reikšmę","2.3.1.7. Tam tikros tikslinės grupės asmenų, kurie dėl įmonės teikiamų paslaugų / vykdomos veiklos dalyvavo gerosios patirties pasidalijimo renginiuose ir pripažino, kad jie įgijo naudingų žinių / patirties, padėsiančios gerinti sveikatos būklę, dalis nuo renginiuose dalyvavusių asmenų (proc.).","Papildomas","N/A","N/A","Aprašykite rodiklį","a/b*100%>0, čia\na – asmenų, dalyvavusių renginyje ir įgijusių žinių, skaičius, vnt.\nb – bendras asmenų, dalyvavusių įmonės renginyje, skaičius, vnt.","Vertinimo pradžioje (duomenys apie esamą padėtį) ir kiekvieno periodo pabaigoje",{"$nulls":4},{"$error":"#DIV/0!"},{"$nulls":3},{"$error":"#DIV/0!"},{"$nulls":3},{"$error":"#DIV/0!"},{"$nulls":3},{"$error":"#DIV/0!"},{"$nulls":3},{"$error":"#DIV/0!"},{"$nulls":3},{"$error":"#DIV/0!"},{"$nulls":3},{"$error":"#DIV/0!"},{"$nulls":3},{"$error":"#DIV/0!"},{"$error":"#DIV/0!"}]
[35,"Prevencija","3. Prevencinių priemonių (susijusių su nusikalstamumu, ligomis ir priklausomybėmis) veiksmingumo didinimas  ir visuomenės saugumo užtikrinimas.\n\n","3.1. Skatinti nusikalstamumo prevenciją.\n\n","3.1.1. Vykdyti nusikaltimų prevenciją ir didinti aplinkos saugumą.","Pasirinkite reikšmę","3.1.1.1. Asmenų, priklausančių tam tikrai tikslinei grupei / nukentėjusių asmenų, kurie dėl įmonės teikiamų paslaugų / vykdomos veiklos, susijusios su nusikalstamumo mažinimu, pripažino, kad aplinka tapo saugesnė, dalis nuo įmonės veikloje dalyvavusių asmenų (proc.).","Pagrindinis","N/A","N/A","N/A","a/b*100%>0, čia\na – tam tikros tikslinės grupės asmenų, dalyvavusių įmonės veikloje ir pradėjusių jaustis saugiau, skaičius, vnt.\nb – bendras tam tikros grupės/ nukentėjusių asmenų, dalyvavusių įmonės veikloje, skaičius, vnt.","Vertinimo pradžioje (duomenys apie esamą padėtį) ir kiekvieno periodo pabaigoje",{"$nulls":4},{"$error":"#DIV/0!"},{"$nulls":3},{"$error":"#DIV/0!"},{"$nulls":3},{"$error":"#DIV/0!"},{"$nulls":3},{"$error":"#DIV/0!"},{"$nulls":3},{"$error":"#DIV/0!"},{"$nulls":3},{"$error":"#DIV/0!"},{"$nulls":3},{"$error":"#DIV/0!"},{"$nulls":3},{"$error":"#DIV/0!"},{"$error":"#DIV/0!"}]
[36,{"$nulls":4},"Pasirinkite reikšmę","3.1.1.2. Asmenų, priklausančių tam tikrai tikslinei grupei / susijusių su nusikalstama veika, kurie dėl įmonės teikiamų paslaugų / vykdomos veiklos patvirtino, kad pagerėjo jų emocinis stabilumas ir dėl to jie nebevykdo nusikalstamos veiklos, dalis nuo įmonės veikloje dalyvavusių asmenų (proc.).","Papildomas","N/A","N/A","Aprašykite rodiklį","(a-c)/b*100%>0, čia\na – tam tikros tikslinės grupės asmenų, dalyvavusių įmonės veikloje ir pradėjusių jaustis emociškai stabiliau, skaičius, vnt.\nb – bendras tam tikros tikslinės grupės asmenų, dalyvavusių įmonės veikloje, skaičius, vnt.\nc – tam tikros tikslinės grupės asmenų, kurie dėl įmonės vykdomos veiklos buvo pradėję nebevykdyti nusikalstamos veiklos, tačiau po tam tikro laiko vėl pradėjo vykdyti nusikalstamą veiklą, skaičius, vnt.","Vertinimo pradžioje (duomenys apie esamą padėtį) ir kiekvieno periodo pabaigoje",{"$nulls":4},{"$f":"(O39-Q39)/P39*100","v":{"$error":"#DIV/0!"}},{"$nulls":3},{"$f":"(S39-U39)/T39*100","v":{"$error":"#DIV/0!"}},{"$nulls":3},{"$f":"(W39-Y39)/X39*100","v":{"$error":"#DIV/0!"}},{"$nulls":3},{"$f":"(AA39-AC39)/AB39*100","v":{"$error":"#DIV/0!"}},{"$nulls":3},{"$f":"(AE39-AG39)/AF39*100","v":{"$error":"#DIV/0!"}},{"$nulls":3},{"$f":"(AI39-AK39)/AJ39*100","v":{"$error":"#DIV/0!"}},{"$nulls":3},{"$f":"(AM39-AO39)/AN39*100","v":{"$error":"#DIV/0!"}},{"$nulls":3},{"$f":"(AQ39-AS39)/AR39*100","v":{"$error":"#DIV/0!"}},{"$f":"SUM(R39+V39+Z39+AD39+AH39)/5","v":{"$error":"#DIV/0!"}}]
[37,{"$nulls":4},"Pasirinkite reikšmę","3.1.1.3. Tam tikros tikslinės grupės asmenų / asmenų, kurie dėl įmonės teikiamų paslaugų / vykdomos veiklos dalyvavo gerosios patirties pasidalijimo / prevenciniuose renginiuose ir pripažino, kad jie įgijo naudingų žinių / patirties, susijusios su nusikaltimų prevencija, dalis nuo renginiuose dalyvavusių asmenų (proc.).","Papildomas","N/A","N/A","Aprašykite rodiklį","a/b*100%>0, čia\na – asmenų, dalyvavusių įmonės renginyje ir įgijusių žinių, skaičius, vnt.\nb – bendras asmenų, dalyvavusių įmonės renginyje, skaičius, vnt.","Vertinimo pradžioje (duomenys apie esamą padėtį) ir kiekvieno periodo pabaigoje",{"$nulls":4},{"$error":"#DIV/0!"},{"$nulls":3},{"$error":"#DIV/0!"},{"$nulls":3},{"$error":"#DIV/0!"},{"$nulls":3},{"$error":"#DIV/0!"},{"$nulls":3},{"$error":"#DIV/0!"},{"$nulls":3},{"$f":"AI40/AJ40*100","v":{"$error":"#DIV/0!"}},{"$nulls":3},{"$f":"AM40/AN40*100","v":{"$error":"#DIV/0!"}},{"$nulls":3},{"$f":"AQ40/AR40*100","v":{"$error":"#DIV/0!"}},{"$f":"SUM(R40+V40+Z40+AD40+AH40+AL40+AP40+AT40)/7","v":{"$error":"#DIV/0!"}}]
[38,null,null,"3.2. Mažinti psichotropinių medžiagų, alkoholio suvartojimą.","3.2.1. Mažinti gyventojų / tam tikros tikslinės grupės asmenų priklausomybę nuo psichotropinių medžiagų, alkoholio ir vykdyti prevencinę veiklą.","Pasirinkite reikšmę","3.2.1.1. Asmenų, priklausančių tam tikrai tikslinei grupei / susijusių su nusikalstama veika, kurie dėl įmonės teikiamų paslaugų / vykdomos veiklos nustojo vartoti kenksmingus produktus / nustojo elgtis netinkamai, dalis nuo įmonės veikloje dalyvavusių asmenų (proc.).","Pagrindinis","N/A","N/A","N/A","(a-c)/b*100%>0, čia\na – tam tikros grupės/ su nusikalstama veikla susijusių asmenų, dalyvavusių įmonės veikloje ir nustojusių vartoti kenksmingus produktus / nustojusių elgtis netinkamai, skaičius, vnt.\nb – bendras tam tikros grupės/ su nusikalstama veikla susijusių asmenų, dalyvavusių įmonės veikloje, skaičius, vnt.\nc – tam tikros tikslinės grupės asmenų, kurie dėl įmonės vykdomos veiklos buvo nustoję vartoti kenksmingus produktus / nustojo elgtis netinkamai, tačiau po tam tikro laiko vėl pradėjo vartoti kenksmingus produktus / pradėjo elgtis netinkamai, skaičius, vnt.\n\n","Vertinimo pradžioje (duomenys apie esamą padėtį) ir kiekvieno periodo pabaigoje",{"$nulls":4},{"$f":"(O41-Q41)/P41*100","v":{"$error":"#DIV/0!"}},{"$nulls":3},{"$f":"(S41-U41)/T41*100","v":{"$error":"#DIV/0!"}},{"$nulls":3},{"$f":"(W41-Y41)/X41*100","v":{"$error":"#DIV/0!"}},{"$nulls":3},{"$f":"(AA41-AC41)/AB41*100","v":{"$error":"#DIV/0!"}},{"$nulls":3},{"$f":"(AE41-AG41)/AF41*100","v":{"$error":"#DIV/0!"}},{"$nulls":3},{"$f":"(AI41-AK41)/AJ41*100","v":{"$error":"#DIV/0!"}},{"$nulls":3},{"$f":"(AM41-AO41)/AN41*100","v":{"$error":"#DIV/0!"}},{"$nulls":3},{"$f":"(AQ41-AS41)/AR41*100","v":{"$error":"#DIV/0!"}},{"$f":"SUM(R41+V41+Z41+AD41+AH41)/5","v":{"$error":"#DIV/0!"}}]
[39,{"$nulls":4},"Pasirinkite reikšmę","3.2.1.2. Asmenų, priklausančių tam tikrai tikslinei grupei / sergančių ar turinčių sutrikimą, kurie dėl įmonės teikiamų paslaugų / vykdomos prevencinės veiklos pradėjo kovoti su liga (pvz., nustoję vartoti ligą sukeliančius komponentus / pradėję gydytis nuo tos ligos / pripažino turintys ligą ir ėmėsi veiksmų dėl jos pašalinimo), dalis nuo įmonės veikloje dalyvavusių asmenų (proc.).","Pagrindinis","N/A","N/A","N/A","(a-c)/b*100%>0, čia\na – tam tikros tikslinės grupės asmenų, dalyvavusių įmonės veikloje ir dėl to pradėjusių kovoti su liga, skaičius, vnt.\nb – bendras, tam tikros tikslinės grupės asmenų, dalyvavusių įmonės veikloje, skaičius, vnt.\nc – tam tikros tikslinės grupės asmenų, kurie dėl įmonės vykdomos veiklos buvo pradėję kovoti su liga (nustoję vartoti ligą sukeliančius komponentus), tačiau po tam tikro laiko vėl pradėjo vartoti ligą sukeliančius komponentus, skaičius, vnt.","Vertinimo pradžioje (duomenys apie esamą padėtį) ir kiekvieno periodo pabaigoje",{"$nulls":4},{"$f":"(O42-Q42)/P42*100","v":{"$error":"#DIV/0!"}},{"$nulls":3},{"$f":"(S42-U42)/T42*100","v":{"$error":"#DIV/0!"}},{"$nulls":3},{"$f":"(W42-Y42)/X42*100","v":{"$error":"#DIV/0!"}},{"$nulls":3},{"$f":"(AA42-AC42)/AB42*100","v":{"$error":"#DIV/0!"}},{"$nulls":3},{"$f":"(AE42-AG42)/AF42*100","v":{"$error":"#DIV/0!"}},{"$nulls":3},{"$f":"(AI42-AK42)/AJ42*100","v":{"$error":"#DIV/0!"}},{"$nulls":3},{"$f":"(AM42-AO42)/AN42*100","v":{"$error":"#DIV/0!"}},{"$nulls":3},{"$f":"(AQ42-AS42)/AR42*100","v":{"$error":"#DIV/0!"}},{"$f":"SUM(R42+V42+Z42+AD42+AH42)/5","v":{"$error":"#DIV/0!"}}]
[40,{"$nulls":4},"Pasirinkite reikšmę","3.2.1.3. Asmenų, priklausančių tam tikrai tikslinei grupei, kuriems dėl įmonės teikiamų paslaugų / vykdomos veiklos / suteiktos infrastruktūros tapo labiau prieinama informacija apie ligas / susižalojimus ir jų prevenciją ir jie šią informaciją vertina kaip naudingą, dalis nuo įmonės veikloje dalyvavusių asmenų (proc.).","Papildomas","N/A","N/A","Aprašykite rodiklį","a/b*100%>0, čia\na – tam tikros tikslinės grupės asmenų, dalyvavusių įmonės veikloje, kuriems tapo labiau prieinama informacija apie ligas / sužalojimus ir jų prevenciją ir jie vertina ją kaip naudingą, skaičius vnt.\nb – bendras tam tikros tikslinės grupės asmenų, dalyvavusių įmonės veikloje, skaičius, vnt.","Vertinimo pradžioje (duomenys apie esamą padėtį) ir kiekvieno periodo pabaigoje",{"$nulls":4},{"$error":"#DIV/0!"},{"$nulls":3},{"$error":"#DIV/0!"},{"$nulls":3},{"$error":"#DIV/0!"},{"$nulls":3},{"$error":"#DIV/0!"},{"$nulls":3},{"$error":"#DIV/0!"},{"$nulls":3},{"$f":"AI43/AJ43*100","v":{"$error":"#DIV/0!"}},{"$nulls":3},{"$f":"AM43/AN43*100","v":{"$error":"#DIV/0!"}},{"$nulls":3},{"$f":"AQ43/AR43*100","v":{"$error":"#DIV/0!"}},{"$f":"SUM(R43+V43+Z43+AD43+AH43+AL43+AP43+AT43)/7","v":{"$error":"#DIV/0!"}}]
[41,null,null,"3.3. Skatinti ligų prevenciją.","3.3.1. Mažinti asmenų sergamumą ligomis ir didinti jo prevenciją.","Pasirinkite reikšmę","3.3.1.1. Asmenų, priklausančių tam tikrai tikslinei grupei, kurių higienos sąlygos dėl įmonės teikiamų paslaugų / vykdomos veiklos / suteiktos infrastruktūros (pvz., atsirado galimybė reguliariai naudotis higienos palaikymo priemonėmis ar paslaugomis) pagerėjo, dalis nuo įmonės veikloje dalyvavusių asmenų (proc.).","Pagrindinis","N/A","N/A","N/A","a/b*100%>0, čia\na – tam tikros tikslinės grupės asmenų, dalyvavusių įmonės veikloje, ir kurių higienos sąlygos pagerėjo, skaičius, vnt.\nb – bendras tam tikros tikslinės grupės asmenų, dalyvavusių įmonės veikloje, skaičius, vnt.","Vertinimo pradžioje (duomenys apie esamą padėtį) ir kiekvieno periodo pabaigoje",{"$nulls":4},{"$error":"#DIV/0!"},{"$nulls":3},{"$error":"#DIV/0!"},{"$nulls":3},{"$error":"#DIV/0!"},{"$nulls":3},{"$error":"#DIV/0!"},{"$nulls":3},{"$error":"#DIV/0!"},{"$nulls":3},{"$error":"#DIV/0!"},{"$nulls":3},{"$error":"#DIV/0!"},{"$nulls":3},{"$error":"#DIV/0!"},{"$error":"#DIV/0!"}]
[42,{"$nulls":4},"Pasirinkite reikšmę","3.3.1.2. Asmenų, priklausančių tam tikrai tikslinei grupei, kurių buities / pragyvenimo sąlygos dėl reguliariai įmonės teikiamų paslaugų / vykdomos veiklos / suteiktos infrastruktūros / techninės įrangos (pvz., pasikeitė buitinės sąlygos į geresnes) pagerėjo, dalis nuo įmonės veikloje dalyvavusių asmenų (proc.).","Pagrindinis","N/A","N/A","N/A","a/b*100%>0, čia\na – tam tikros tikslinės grupės asmenų, dalyvavusių įmonės veikloje, ir kurių buities sąlygos pagerėjo, skaičius, vnt.\nb – bendras tam tikros tikslinės grupės asmenų, dalyvavusių įmonės veikloje, skaičius, vnt.","Vertinimo pradžioje (duomenys apie esamą padėtį) ir kiekvieno periodo pabaigoje",{"$nulls":4},{"$error":"#DIV/0!"},{"$nulls":3},{"$error":"#DIV/0!"},{"$nulls":3},{"$error":"#DIV/0!"},{"$nulls":3},{"$error":"#DIV/0!"},{"$nulls":3},{"$error":"#DIV/0!"},{"$nulls":3},{"$error":"#DIV/0!"},{"$nulls":3},{"$error":"#DIV/0!"},{"$nulls":3},{"$error":"#DIV/0!"},{"$error":"#DIV/0!"}]
[43,{"$nulls":4},"Pasirinkite reikšmę","3.3.1.3. Tam tikros tikslinės grupės asmenų / asmenų, sergančių ar turinčių sutrikimų, kurie dėl įmonės teikiamų paslaugų / vykdomos veiklos dalyvavo gerosios patirties pasidalijimo / prevenciniuose (su sveikata susijusiuose) renginiuose ir pripažino, kad jie įgijo naudingų žinių / patirties, dalis nuo renginiuose dalyvavusių asmenų (proc.).","Papildomas","N/A","N/A","Aprašykite rodiklį","a/b*100%>0, čia\na – asmenų, dalyvavusių įmonės renginyje ir įgijusių žinių, skaičius, vnt.\nb – bendras asmenų, dalyvavusių įmonės renginyje, skaičius, vnt.","Vertinimo pradžioje (duomenys apie esamą padėtį) ir kiekvieno periodo pabaigoje",{"$nulls":4},{"$f":"O46/P46*100","v":{"$error":"#DIV/0!"}},{"$nulls":3},{"$error":"#DIV/0!"},{"$nulls":3},{"$error":"#DIV/0!"},{"$nulls":3},{"$error":"#DIV/0!"},{"$nulls":3},{"$error":"#DIV/0!"},{"$nulls":3},{"$error":"#DIV/0!"},{"$nulls":3},{"$error":"#DIV/0!"},{"$nulls":3},{"$error":"#DIV/0!"},{"$error":"#DIV/0!"}]
[44,{"$nulls":4},"Pasirinkite reikšmę","3.3.1.4. Asmenų, priklausančių tam tikrai tikslinei grupei, kuriems dėl įmonės teikiamų paslaugų / vykdomos veiklos tapo labiau prieinama informacija apie ligas ir jie šią informaciją vertina kaip naudingą, dalis nuo įmonės veikloje dalyvavusių asmenų (proc.).","Papildomas","N/A","N/A","Aprašykite rodiklį","a/b*100%>0, čia\na – tam tikros tikslinės grupės asmenų, dalyvavusių įmonės veikloje, kuriems tapo labiau prieinama informacija apie ligas / jie vertina ją kaip naudingą, skaičius, vnt.\nb – bendras tam tikros tikslinės grupės asmenų, dalyvavusių renginyje, skaičius, vnt.","Vertinimo pradžioje (duomenys apie esamą padėtį) ir kiekvieno periodo pabaigoje",{"$nulls":4},{"$f":"O47/P47*100","v":{"$error":"#DIV/0!"}},{"$nulls":3},{"$f":"S47/T47*100","v":{"$error":"#DIV/0!"}},{"$nulls":3},{"$f":"W47/X47*100","v":{"$error":"#DIV/0!"}},{"$nulls":3},{"$f":"AA47/AB47*100","v":{"$error":"#DIV/0!"}},{"$nulls":3},{"$f":"AE47/AF47*100","v":{"$error":"#DIV/0!"}},{"$nulls":3},{"$error":"#DIV/0!"},{"$nulls":3},{"$error":"#DIV/0!"},{"$nulls":3},{"$error":"#DIV/0!"},{"$error":"#DIV/0!"}]
[45,"Švietimas","4. Gerinti švietimo ir mokymo kokybę bei veiksmingumą, skatinant ir įgyvendinant mokymąsi visą gyvenimą, socialinę sanglaudą ir aktyvų pilietiškumą.","4.1. Skatinti / prisidėti prie kvalifikacijos tobulinimo, kompetencijų įgijimo.\n\n\n\n","4.1.1. Didinti galimybes / sudaryti sąlygas įgyti kompetencijas / išugdyti kompetencijas.\n\n\n\n\n\n","Pasirinkite reikšmę","4.1.1.1. Asmenų, priklausančių tam tikrai tikslinei grupei, kurių kompetencijos ir gebėjimai (pasirenkama iš papildomo klasifikatoriaus) dėl įmonės teikiamų paslaugų / vykdomos veiklos pagerėjo (lyginant su prieš tai buvusiu statusu), dalis nuo įmonės veikloje dalyvavusių asmenų (proc.). ","Pagrindinis","N/A","Pasirinkite reikšmę","N/A","a/b*100%>0, čia\na – tam tikros tikslinės grupės asmenų, dalyvavusių įmonės veikloje ir dėl to pagerinusių / įgijusių gebėjimus, skaičius, vnt.\nb – bendras tam tikros tikslinės grupės asmenų, dalyvavusių įmonės veikloje, skaičius, vnt.","Vertinimo pradžioje (duomenys apie esamą padėtį) ir kiekvieno periodo pabaigoje",{"$nulls":4},{"$error":"#DIV/0!"},{"$nulls":3},{"$error":"#DIV/0!"},{"$nulls":3},{"$error":"#DIV/0!"},{"$nulls":3},{"$error":"#DIV/0!"},{"$nulls":3},{"$error":"#DIV/0!"},{"$nulls":3},{"$error":"#DIV/0!"},{"$nulls":3},{"$error":"#DIV/0!"},{"$nulls":3},{"$error":"#DIV/0!"},{"$error":"#DIV/0!"}]
[46,{"$nulls":4},"Pasirinkite reikšmę","4.1.1.2. Asmenų, priklausančių tam tikrai tikslinei grupei, kurių mokymosi rezultatai (pažymiai) dėl įmonės teikiamų paslaugų / vykdomos veiklos pagerėjo, dalis nuo įmonės veikloje dalyvavusių asmenų (proc.). ","Pagrindinis","N/A","Pasirinkite reikšmę","N/A","a/b*100%>0, čia\na – tam tikros tikslinės grupės asmenų, dalyvavusių įmonės veikloje ir pripažinusių, kad jų profesiniai / akademiniai rezultatai dėl to pagerėjo, skaičius vnt.\nb – bendras tam tikros tikslinės grupės asmenų, dalyvavusių įmonės veikloje, skaičius, vnt.","Vertinimo pradžioje (duomenys apie esamą padėtį) ir kiekvieno periodo pabaigoje",{"$nulls":4},{"$error":"#DIV/0!"},{"$nulls":3},{"$error":"#DIV/0!"},{"$nulls":3},{"$error":"#DIV/0!"},{"$nulls":3},{"$error":"#DIV/0!"},{"$nulls":3},{"$error":"#DIV/0!"},{"$nulls":3},{"$error":"#DIV/0!"},{"$nulls":3},{"$error":"#DIV/0!"},{"$nulls":3},{"$error":"#DIV/0!"},{"$error":"#DIV/0!"}]
[47,{"$nulls":4},"Pasirinkite reikšmę","4.1.1.3. Asmenų, priklausančių tam tikrai tikslinei grupei, kurių pasitikėjimas savimi dėl įmonės teikiamų paslaugų / vykdomos neformaliojo ugdymo veiklos, padidėjo, dalis nuo įmonės veikloje dalyvavusių asmenų (proc.). ","Papildomas","N/A","Pasirinkite reikšmę","Aprašykite rodiklį","a/b*100%>0, čia\na – tam tikros tikslinės grupės asmenų, dalyvavusių įmonės veikloje ir pripažinusių, kad jų pasitikėjimas savimi padidėjo, skaičius vnt.\nb – bendras tam tikros tikslinės grupės asmenų, dalyvavusių įmonės veikloje, skaičius, vnt.","Vertinimo pradžioje (duomenys apie esamą padėtį) ir kiekvieno periodo pabaigoje",{"$nulls":4},{"$error":"#DIV/0!"},{"$nulls":3},{"$error":"#DIV/0!"},{"$nulls":3},{"$error":"#DIV/0!"},{"$nulls":3},{"$error":"#DIV/0!"},{"$nulls":3},{"$error":"#DIV/0!"},{"$nulls":3},{"$error":"#DIV/0!"},{"$nulls":3},{"$error":"#DIV/0!"},{"$nulls":3},{"$error":"#DIV/0!"},{"$error":"#DIV/0!"}]
[48,{"$nulls":4},"Pasirinkite reikšmę","4.1.1.4. Asmenų, priklausančių tam tikrai tikslinei grupei, kurie dėl įmonės teikiamų paslaugų / vykdomos veiklos pagerino savo emocinį intelektą / stabilumą, dalis nuo įmonės veikloje dalyvavusių asmenų (proc.). ","Papildomas","N/A","Pasirinkite reikšmę","Aprašykite rodiklį","a/b*100%>0, čia\na – tam tikros tikslinės grupės asmenų, dalyvavusių įmonės veikloje ir pripažinusių, kad jų emocinis intelektas pagerėjo, skaičius vnt.\nb – bendras tam tikros tikslinės grupės asmenų, dalyvavusių įmonės veikloje, skaičius, vnt.","Vertinimo pradžioje (duomenys apie esamą padėtį) ir kiekvieno periodo pabaigoje",{"$nulls":4},{"$error":"#DIV/0!"},{"$nulls":3},{"$error":"#DIV/0!"},{"$nulls":3},{"$error":"#DIV/0!"},{"$nulls":3},{"$error":"#DIV/0!"},{"$nulls":3},{"$error":"#DIV/0!"},{"$nulls":3},{"$error":"#DIV/0!"},{"$nulls":3},{"$error":"#DIV/0!"},{"$nulls":3},{"$error":"#DIV/0!"},{"$error":"#DIV/0!"}]
[49,{"$nulls":4},"Pasirinkite reikšmę","4.1.1.5. Asmenų, priklausančių tam tikrai tikslinei grupei, kuriems dėl įmonės teikiamų paslaugų / infrastruktūros / vykdomos veiklos tapo labiau prieinama informacija apie švietimo įstaigas / kompetencijas ir jie šią informaciją vertina kaip naudingą, dalis nuo įmonės veikloje dalyvavusių asmenų (proc.).","Papildomas","N/A","Pasirinkite reikšmę","Aprašykite rodiklį","a/b*100%>0, čia\na – tam tikros tikslinės grupės asmenų, dalyvavusių įmonės veikloje ir pripažinusių, kad jiems tapo labiau prieinama informacija apie švietimą / kompetencijas ir jie šią informaciją vertina kaip naudingą, skaičius, vnt.\nb – bendras tam tikros tikslinės grupės asmenų, dalyvavusių įmonės veikloje, skaičius, vnt.","Vertinimo pradžioje (duomenys apie esamą padėtį) ir kiekvieno periodo pabaigoje",{"$nulls":4},{"$error":"#DIV/0!"},{"$nulls":3},{"$error":"#DIV/0!"},{"$nulls":3},{"$error":"#DIV/0!"},{"$nulls":3},{"$error":"#DIV/0!"},{"$nulls":3},{"$error":"#DIV/0!"},{"$nulls":3},{"$error":"#DIV/0!"},{"$nulls":3},{"$error":"#DIV/0!"},{"$nulls":3},{"$error":"#DIV/0!"},{"$error":"#DIV/0!"}]
[50,{"$nulls":4},"Pasirinkite reikšmę","4.1.1.6. Asmenų, priklausančių tam tikrai tikslinei grupei, kurių tikslų planavimo ir prioretizavimo gebėjimai dėl įmonės teikiamų paslaugų / vykdomos veiklos pagerėjo, dalis nuo įmonės veikloje dalyvavusių asmenų (proc.). ","Papildomas","N/A","Pasirinkite reikšmę","Aprašykite rodiklį","a/b*100%>0, čia\na – tam tikros tikslinės grupės asmenų, dalyvavusių įmonės veikloje ir pripažinusių, kad jie gali geriau susiplanuoti savo tikslus ir planus, skaičius, vnt.\nb – bendras tam tikros tikslinės grupės asmenų, dalyvavusių įmonės veikloje, skaičius, vnt.","Vertinimo pradžioje (duomenys apie esamą padėtį) ir kiekvieno periodo pabaigoje",{"$nulls":4},{"$error":"#DIV/0!"},{"$nulls":3},{"$error":"#DIV/0!"},{"$nulls":3},{"$error":"#DIV/0!"},{"$nulls":3},{"$error":"#DIV/0!"},{"$nulls":3},{"$error":"#DIV/0!"},{"$nulls":3},{"$error":"#DIV/0!"},{"$nulls":3},{"$error":"#DIV/0!"},{"$nulls":3},{"$error":"#DIV/0!"},{"$error":"#DIV/0!"}]
[51,{"$nulls":3},"4.1.2. Didinti užsiėmimų ir pamokų lankomumą, skatinti / vykdyti neformalųjį ugdymą.","Pasirinkite reikšmę","4.1.2.1. Asmenų, priklausančių tam tikrai tikslinei grupei, kurių užsiėmimų / pamokų lankomumas dėl įmonės teikiamų paslaugų / vykdomos neformaliojo ugdymo veiklos pagerėjo, dalis nuo įmonės veikloje dalyvavusių asmenų (proc.). ","Pagrindinis","N/A","Pasirinkite reikšmę","N/A","a/b*100%>0, čia\na – tam tikros tikslinės grupės asmenų, dalyvavusių įmonės veikloje, ir kurių užsiėmimų lankomumas pagerėjo, skaičius, vnt.\nb – bendras tam tikros tikslinės grupės asmenų, dalyvavusių įmonės veikloje, skaičius, vnt.","Vertinimo pradžioje (duomenys apie esamą padėtį) ir kiekvieno periodo pabaigoje",{"$nulls":4},{"$error":"#DIV/0!"},{"$nulls":3},{"$error":"#DIV/0!"},{"$nulls":3},{"$error":"#DIV/0!"},{"$nulls":3},{"$error":"#DIV/0!"},{"$nulls":3},{"$error":"#DIV/0!"},{"$nulls":3},{"$error":"#DIV/0!"},{"$nulls":3},{"$error":"#DIV/0!"},{"$nulls":3},{"$error":"#DIV/0!"},{"$error":"#DIV/0!"}]
[52,{"$nulls":4},"Pasirinkite reikšmę","4.1.2.2. Asmenų, priklausančių tam tikrai tikslinei grupei, kurių pasitikėjimas savimi dėl įmonės teikiamų paslaugų / vykdomos neformaliojo ugdymo veiklos padidėjo, dalis nuo įmonės veikloje dalyvavusių asmenų (proc.). ","Papildomas","N/A","Pasirinkite reikšmę","Aprašykite rodiklį","a/b*100%>0, čia\na – tam tikros tikslinės grupės asmenų, dalyvavusių įmonės veikloje ir pripažinusių, kad jų pasitikėjimas savimi pagerėjo, skaičius, vnt.\nb – bendras tam tikros tikslinės grupės asmenų, dalyvavusių įmonės veikloje, skaičius, vnt.","Vertinimo pradžioje (duomenys apie esamą padėtį) ir kiekvieno periodo pabaigoje",{"$nulls":4},{"$error":"#DIV/0!"},{"$nulls":3},{"$error":"#DIV/0!"},{"$nulls":3},{"$error":"#DIV/0!"},{"$nulls":3},{"$error":"#DIV/0!"},{"$nulls":3},{"$error":"#DIV/0!"},{"$nulls":3},{"$error":"#DIV/0!"},{"$nulls":3},{"$error":"#DIV/0!"},{"$nulls":3},{"$error":"#DIV/0!"},{"$error":"#DIV/0!"}]
[53,{"$nulls":4},"Pasirinkite reikšmę","4.1.2.3. Asmenų, priklausančių tam tikrai tikslinei grupei, kurie dėl įmonės teikiamų paslaugų / vykdomos veiklos pagerino savo emocinį intelektą / stabilumą, dalis nuo įmonės veikloje dalyvavusių asmenų (proc.). ","Papildomas","N/A","Pasirinkite reikšmę","Aprašykite rodiklį","a/b*100%>0, čia\na – tam tikros tikslinės grupės asmenų, dalyvavusių įmonės veikloje ir pripažinusių, kad jų emocinis intelektas pagerėjo, skaičius, vnt.\nb – bendras tam tikros tikslinės grupės asmenų, dalyvavusių įmonės veikloje, skaičius, vnt.","Vertinimo pradžioje (duomenys apie esamą padėtį) ir kiekvieno periodo pabaigoje",{"$nulls":4},{"$error":"#DIV/0!"},{"$nulls":3},{"$error":"#DIV/0!"},{"$nulls":3},{"$error":"#DIV/0!"},{"$nulls":3},{"$error":"#DIV/0!"},{"$nulls":3},{"$error":"#DIV/0!"},{"$nulls":3},{"$error":"#DIV/0!"},{"$nulls":3},{"$error":"#DIV/0!"},{"$nulls":3},{"$error":"#DIV/0!"},{"$error":"#DIV/0!"}]
[54,{"$nulls":4},"Pasirinkite reikšmę","4.1.2.4. Asmenų, priklausančių tam tikrai tikslinei grupei, kuriems dėl įmonės teikiamų paslaugų / infrastruktūros / vykdomos veiklos tapo labiau prieinama informacija apie švietimo įstaigas / kompetencijas ir jie šią informaciją vertina kaip naudingą, dalis nuo įmonės veikloje dalyvavusių asmenų (proc.).","Papildomas","N/A","Pasirinkite reikšmę","Aprašykite rodiklį","a/b*100%>0, čia\na – tam tikros tikslinės grupės asmenų, dalyvavusių įmonės veikloje ir pripažinusių, kad jiems tapo labiau prieinama informacija apie švietimą / kompetencijas ir jie šią informaciją vertina kaip naudingą, skaičius, vnt.\nb – bendras tam tikros tikslinės grupės asmenų, dalyvavusių įmonės veikloje, skaičius, vnt.","Vertinimo pradžioje (duomenys apie esamą padėtį) ir kiekvieno periodo pabaigoje",{"$nulls":4},{"$error":"#DIV/0!"},{"$nulls":3},{"$error":"#DIV/0!"},{"$nulls":3},{"$error":"#DIV/0!"},{"$nulls":3},{"$error":"#DIV/0!"},{"$nulls":3},{"$error":"#DIV/0!"},{"$nulls":3},{"$error":"#DIV/0!"},{"$nulls":3},{"$error":"#DIV/0!"},{"$nulls":3},{"$error":"#DIV/0!"},{"$error":"#DIV/0!"}]
[55,{"$nulls":4},"Pasirinkite reikšmę","4.1.2.5. Asmenų, priklausančių tam tikrai tikslinei grupei, kurių tikslų planavimo ir prioretizavimo gebėjimai dėl įmonės teikiamų paslaugų / vykdomos veiklos pagerėjo, dalis nuo įmonės veikloje dalyvavusių asmenų (proc.). ","Papildomas","N/A","Pasirinkite reikšmę","Aprašykite rodiklį","a/b*100%>0, čia\na – tam tikros tikslinės grupės asmenų, dalyvavusių įmonės veikloje ir pripažinusių, kad jie gali geriau susiplanuoti savo tikslus ir planus, skaičius vnt.\nb – bendras tam tikros tikslinės grupės asmenų, dalyvavusių įmonės veikloje, skaičius, vnt.","Vertinimo pradžioje (duomenys apie esamą padėtį) ir kiekvieno periodo pabaigoje",{"$nulls":4},{"$error":"#DIV/0!"},{"$nulls":3},{"$error":"#DIV/0!"},{"$nulls":3},{"$error":"#DIV/0!"},{"$nulls":3},{"$error":"#DIV/0!"},{"$nulls":3},{"$error":"#DIV/0!"},{"$nulls":3},{"$error":"#DIV/0!"},{"$nulls":3},{"$error":"#DIV/0!"},{"$nulls":3},{"$error":"#DIV/0!"},{"$error":"#DIV/0!"}]
[56,null,null,"4.2.Gerinti mokymosi infrastruktūrą.","4.2.1. Gerinti mokymosi infrastruktūrą, sudarant palankias sąlygas (pvz., sukuriant paskatų sistemą) / suteikiant galimybę ja pasinaudoti.","Pasirinkite reikšmę","4.2.1.1. Asmenų, priklausančių tam tikrai tikslinei grupei, kurių mokymosi rezultatai (pažymiai) dėl įmonės teikiamų paslaugų / mokymosi infrastruktūros / vykdomos veiklos pagerėjo, dalis nuo įmonės veikloje dalyvavusių asmenų (proc.).","Pagrindinis","N/A","Pasirinkite reikšmę","N/A","a/b*100%>0, čia\na – tam tikros tikslinės grupės asmenų, dalyvavusių įmonės veikloje ir pripažinusių, kad jų profesiniai / akademiniai rezultatai pagerėjo, skaičius, vnt.\nb – bendras tam tikros tikslinės grupės asmenų, dalyvavusių įmonės veikloje, skaičius, vnt.","Vertinimo pradžioje (duomenys apie esamą padėtį) ir kiekvieno periodo pabaigoje",{"$nulls":4},{"$error":"#DIV/0!"},{"$nulls":3},{"$error":"#DIV/0!"},{"$nulls":3},{"$error":"#DIV/0!"},{"$nulls":3},{"$error":"#DIV/0!"},{"$nulls":3},{"$error":"#DIV/0!"},{"$nulls":3},{"$error":"#DIV/0!"},{"$nulls":3},{"$error":"#DIV/0!"},{"$nulls":3},{"$error":"#DIV/0!"},{"$error":"#DIV/0!"}]
[57,{"$nulls":4},"Pasirinkite reikšmę","4.2.1.2. Asmenų, priklausančių tam tikrai tikslinei grupei, kuriems dėl įmonės teikiamų paslaugų / infrastruktūros / vykdomos veiklos tapo labiau prieinama informacija apie švietimo įstaigas / kompetencijas ir jie šią informaciją vertina kaip naudingą, dalis nuo įmonės veikloje dalyvavusių asmenų (proc.).","Papildomas","N/A","Pasirinkite reikšmę","Aprašykite rodiklį","a/b*100%>0, čia\na – tam tikros tikslinės grupės asmenų, dalyvavusių įmonės veikloje ir pripažinusių, kad jiems tapo labiau prieinama informacija apie švietimą / kompetencijas ir jie šią informaciją vertina kaip naudingą, skaičius, vnt.\nb – bendras tam tikros tikslinės grupės asmenų, dalyvavusių įmonės veikloje, skaičius, vnt.","Vertinimo pradžioje (duomenys apie esamą padėtį) ir kiekvieno periodo pabaigoje",{"$nulls":4},{"$error":"#DIV/0!"},{"$nulls":3},{"$error":"#DIV/0!"},{"$nulls":3},{"$error":"#DIV/0!"},{"$nulls":3},{"$error":"#DIV/0!"},{"$nulls":3},{"$error":"#DIV/0!"},{"$nulls":3},{"$error":"#DIV/0!"},{"$nulls":3},{"$error":"#DIV/0!"},{"$nulls":3},{"$error":"#DIV/0!"},{"$error":"#DIV/0!"}]
[58,{"$nulls":4},"Pasirinkite reikšmę","4.2.1.3. Asmenų, priklausančių tam tikrai tikslinei grupei, kurių pasitikėjimas savimi dėl įmonės teikiamų paslaugų / vykdomos veiklos padidėjo, dalis nuo įmonės veikloje dalyvavusių asmenų (proc.). ","Papildomas","N/A","Pasirinkite reikšmę","Aprašykite rodiklį","a/b*100%>0, čia\na – tam tikros tikslinės grupės asmenų, dalyvavusių įmonės veikloje ir pripažinusių, kad jų pasitikėjimas savimi pagerėjo, skaičius, vnt.\nb – bendras tam tikros tikslinės grupės asmenų, dalyvavusių įmonės veikloje, skaičius, vnt.","Vertinimo pradžioje (duomenys apie esamą padėtį) ir kiekvieno periodo pabaigoje",{"$nulls":4},{"$error":"#DIV/0!"},{"$nulls":3},{"$error":"#DIV/0!"},{"$nulls":3},{"$error":"#DIV/0!"},{"$nulls":3},{"$error":"#DIV/0!"},{"$nulls":3},{"$error":"#DIV/0!"},{"$nulls":3},{"$error":"#DIV/0!"},{"$nulls":3},{"$error":"#DIV/0!"},{"$nulls":3},{"$error":"#DIV/0!"},{"$error":"#DIV/0!"}]
[59,{"$nulls":4},"Pasirinkite reikšmę","4.2.1.4. Asmenų, priklausančių tam tikrai tikslinei grupei, kurie dėl įmonės teikiamų paslaugų / vykdomos veiklos pagerino savo emocinį intelektą / stabilumą, dalis nuo įmonės veikloje dalyvavusių asmenų (proc.). ","Papildomas","N/A","Pasirinkite reikšmę","Aprašykite rodiklį","a/b*100%>0, čia\na – tam tikros tikslinės grupės asmenų, dalyvavusių įmonės veikloje ir pripažinusių, kad jų emocinis intelektas pagerėjo, skaičius, vnt.\nb – bendras tam tikros tikslinės grupės asmenų, dalyvavusių įmonės veikloje, skaičius, vnt.","Vertinimo pradžioje (duomenys apie esamą padėtį) ir kiekvieno periodo pabaigoje",{"$nulls":4},{"$error":"#DIV/0!"},{"$nulls":3},{"$error":"#DIV/0!"},{"$nulls":3},{"$error":"#DIV/0!"},{"$nulls":3},{"$error":"#DIV/0!"},{"$nulls":3},{"$error":"#DIV/0!"},{"$nulls":3},{"$error":"#DIV/0!"},{"$nulls":3},{"$error":"#DIV/0!"},{"$nulls":3},{"$error":"#DIV/0!"},{"$error":"#DIV/0!"}]
[60,{"$nulls":4},"Pasirinkite reikšmę","4.2.1.5. Asmenų, priklausančių tam tikrai tikslinei grupei, kurių tikslų planavimo ir prioretizavimo gebėjimai dėl įmonės teikiamų paslaugų / vykdomos veiklos pagerėjo, dalis nuo įmonės veikloje dalyvavusių asmenų (proc.). ","Papildomas","N/A","Pasirinkite reikšmę","Aprašykite rodiklį","a/b*100%>0, čia\na – tam tikros tikslinės grupės asmenų, dalyvavusių įmonės veikloje ir pripažinusių, kad jie gali geriau susiplanuoti savo tikslus ir planus, skaičius, vnt.\nb – bendras tam tikros tikslinės grupės asmenų, dalyvavusių įmonės veikloje, skaičius, vnt.","Vertinimo pradžioje (duomenys apie esamą padėtį) ir kiekvieno periodo pabaigoje",{"$nulls":4},{"$error":"#DIV/0!"},{"$nulls":3},{"$error":"#DIV/0!"},{"$nulls":3},{"$error":"#DIV/0!"},{"$nulls":3},{"$error":"#DIV/0!"},{"$nulls":3},{"$error":"#DIV/0!"},{"$nulls":3},{"$error":"#DIV/0!"},{"$nulls":3},{"$error":"#DIV/0!"},{"$nulls":3},{"$error":"#DIV/0!"},{"$error":"#DIV/0!"}]
[61,null,null,"4.3. Skatinti tolerantiškumą ir  gyventojų pilietiškumą.","4.3.1. Skatinti asmenų tolerantiškumą ir pilietiškumą.\n","Pasirinkite reikšmę","4.3.1.1. Asmenų, priklausančių tam tikrai tikslinei grupei, kurių darbo užmokestis ar pajamos dėl įmonės teikiamų paslaugų / vykdomos veiklos, susijusios su lygiomis teisėmis, padidėjo, dalis nuo įmonės veikloje dalyvavusių asmenų (proc.).","Pagrindinis","N/A","Pasirinkite reikšmę","N/A","a/b*100%>0, čia\na – tam tikros tikslinės grupės asmenų, dalyvavusių įmonės veikloje, ir kurių darbo užmokestis padidėjo, skaičius vnt.\nb – bendras tam tikros tikslinės grupės asmenų, dalyvavusių įmonės veikloje, skaičius, vnt.","Vertinimo pradžioje (duomenys apie esamą padėtį) ir kiekvieno periodo pabaigoje",{"$nulls":4},{"$error":"#DIV/0!"},{"$nulls":3},{"$error":"#DIV/0!"},{"$nulls":3},{"$error":"#DIV/0!"},{"$nulls":3},{"$error":"#DIV/0!"},{"$nulls":3},{"$error":"#DIV/0!"},{"$nulls":3},{"$error":"#DIV/0!"},{"$nulls":3},{"$error":"#DIV/0!"},{"$nulls":3},{"$error":"#DIV/0!"},{"$error":"#DIV/0!"}]
[62,{"$nulls":4},"Pasirinkite reikšmę","4.3.1.2. Asmenų, priklausančių tam tikrai tikslinei grupei, kurių darbo pasiūlymų skaičius dėl įmonės teikiamų paslaugų / vykdomos veiklos, susijusios su lygiomis teisėmis, padidėjo, dalis nuo įmonės veikloje dalyvavusių asmenų (proc.).","Papildomas","N/A","Pasirinkite reikšmę","Aprašykite rodiklį","a/b*100%>0, čia\na – tam tikros tikslinės grupės asmenų, dalyvavusių įmonės veikloje, ir kurie gavo daugiau darbo pasiūlymų, skaičius vnt.\nb – bendras tam tikros tikslinės grupės asmenų, dalyvavusių įmonės veikloje, skaičius, vnt.","Vertinimo pradžioje (duomenys apie esamą padėtį) ir kiekvieno periodo pabaigoje",{"$nulls":4},{"$error":"#DIV/0!"},{"$nulls":3},{"$error":"#DIV/0!"},{"$nulls":3},{"$error":"#DIV/0!"},{"$nulls":3},{"$error":"#DIV/0!"},{"$nulls":3},{"$error":"#DIV/0!"},{"$nulls":3},{"$error":"#DIV/0!"},{"$nulls":3},{"$error":"#DIV/0!"},{"$nulls":3},{"$error":"#DIV/0!"},{"$error":"#DIV/0!"}]
[63,{"$nulls":4},"Pasirinkite reikšmę","4.3.1.3. Asmenų, priklausančių tam tikrai tikslinei grupei, kurie dėl įmonės teikiamų paslaugų / vykdomos veiklos pripažino, kad patyčių jų aplinkoje sumažėjo, dalis nuo įmonės veikloje dalyvavusių asmenų (proc.). ","Papildomas","N/A","Pasirinkite reikšmę","Aprašykite rodiklį","a/b*100%>0, čia\na – tam tikros tikslinės grupės asmenų, dalyvavusių įmonės veikloje, pripažinusių, kad patyčių jų aplinkoje sumažėjo, vnt.\nb – bendras tam tikros tikslinės grupės asmenų, dalyvavusių įmonės veikloje, skaičius, vnt.","Vertinimo pradžioje (duomenys apie esamą padėtį) ir kiekvieno periodo pabaigoje",{"$nulls":4},{"$error":"#DIV/0!"},{"$nulls":3},{"$error":"#DIV/0!"},{"$nulls":3},{"$error":"#DIV/0!"},{"$nulls":3},{"$error":"#DIV/0!"},{"$nulls":3},{"$error":"#DIV/0!"},{"$nulls":3},{"$error":"#DIV/0!"},{"$nulls":3},{"$error":"#DIV/0!"},{"$nulls":3},{"$error":"#DIV/0!"},{"$error":"#DIV/0!"}]
[64,{"$nulls":4},"Pasirinkite reikšmę","4.3.1.4. Asmenų, priklausančių tam tikrai tikslinei grupei, kurie dėl įmonės teikiamų paslaugų / vykdomos edukacinės veiklos pripažino, kad įgijo naudingos informacijos apie patyčių pasekmes / žalą, dalis nuo įmonės veikloje dalyvavusių asmenų (proc.). ","Papildomas","N/A","Pasirinkite reikšmę","Aprašykite rodiklį","a/b*100%>0, čia\na – tam tikros tikslinės grupės asmenų, dalyvavusių įmonės veikloje ir pripažinusių, kad įgijo naudingos informacijos apie patyčių žalą, skaičius, vnt.\nb – bendras tam tikros tikslinės grupės asmenų, dalyvavusių įmonės veikloje, skaičius, vnt.","Vertinimo pradžioje (duomenys apie esamą padėtį) ir kiekvieno periodo pabaigoje",{"$nulls":4},{"$error":"#DIV/0!"},{"$nulls":3},{"$error":"#DIV/0!"},{"$nulls":3},{"$error":"#DIV/0!"},{"$nulls":3},{"$error":"#DIV/0!"},{"$nulls":3},{"$error":"#DIV/0!"},{"$nulls":3},{"$error":"#DIV/0!"},{"$nulls":3},{"$error":"#DIV/0!"},{"$nulls":3},{"$error":"#DIV/0!"},{"$error":"#DIV/0!"}]
[65,{"$nulls":4},"Pasirinkite reikšmę","4.3.1.5. Asmenų, priklausančių tam tikrai tikslinei grupei, kurie dėl įmonės teikiamų paslaugų / vykdomos veiklos tapo patriotiškesni (labiau vertina savo gimtinę ir jos istoriją) ir pradėjo lankyti patriotines organizacijas / akcijas, dalis nuo įmonės veikloje dalyvavusių asmenų (proc.).","Pagrindinis","N/A","Pasirinkite reikšmę",{"$f":"IF(H68=\"Pagrindinis\",\"N/A\",\"Aprašykite rodiklį\")","v":"N/A"},"a/b*100%>0, čia\na – tam tikros tikslinės grupės asmenų, dalyvavusių įmonės veikloje ir pripažinusių, kad tapo patriotiškesni (labiau vertina savo gimtinę ir jos istoriją), skaičius, vnt.\nb – bendras tam tikros tikslinės grupės asmenų, dalyvavusių įmonės veikloje, skaičius, vnt.","Vertinimo pradžioje (duomenys apie esamą padėtį) ir kiekvieno periodo pabaigoje",{"$nulls":4},{"$error":"#DIV/0!"},{"$nulls":3},{"$error":"#DIV/0!"},{"$nulls":3},{"$error":"#DIV/0!"},{"$nulls":3},{"$error":"#DIV/0!"},{"$nulls":3},{"$error":"#DIV/0!"},{"$nulls":3},{"$error":"#DIV/0!"},{"$nulls":3},{"$error":"#DIV/0!"},{"$nulls":3},{"$error":"#DIV/0!"},{"$error":"#DIV/0!"}]
[66,{"$nulls":4},"Pasirinkite reikšmę","4.3.1.6. Asmenų, priklausančių tam tikrai tikslinei grupei, kurie dėl įmonės teikiamų paslaugų / vykdomos veiklos pripažino, kad labiau sieja savo profesinę ir asmeninę ateitį su Lietuva (pvz., mažiau svarsto galimybę emigruoti), dalis nuo įmonės veikloje dalyvavusių asmenų (proc.).","Papildomas","N/A","Pasirinkite reikšmę","Aprašykite rodiklį","a/b*100%>0, čia\na – tam tikros tikslinės grupės asmenų, dalyvavusių įmonės veikloje ir pripažinusių, kad labiau sieja savo profesinę ir asmeninę ateitį su Lietuva, skaičius, vnt.\nb – bendras tam tikros tikslinės grupės asmenų, dalyvavusių įmonės veikloje, skaičius, vnt.","Vertinimo pradžioje (duomenys apie esamą padėtį) ir kiekvieno periodo pabaigoje",{"$nulls":4},{"$error":"#DIV/0!"},{"$nulls":3},{"$error":"#DIV/0!"},{"$nulls":3},{"$error":"#DIV/0!"},{"$nulls":3},{"$error":"#DIV/0!"},{"$nulls":3},{"$error":"#DIV/0!"},{"$nulls":3},{"$error":"#DIV/0!"},{"$nulls":3},{"$error":"#DIV/0!"},{"$nulls":3},{"$error":"#DIV/0!"},{"$error":"#DIV/0!"}]
[67,{"$nulls":4},"Pasirinkite reikšmę","4.3.1.7. Asmenų, priklausančių tam tikrai tikslinei grupei, kuriems žmogaus teisių apsauga dėl įmonės teikiamų paslaugų / vykdomos veiklos tapo labiau prieinama, dalis nuo įmonės veikloje dalyvavusių asmenų (proc.).","Papildomas","N/A","Pasirinkite reikšmę","Aprašykite rodiklį","a/b*100%>0, čia\na – tam tikros tikslinės grupės asmenų, dalyvavusių įmonės veikloje, kurių žmogaus teisių apsauga tapo labiau prieinama, skaičius, vnt.\nb – bendras tam tikros tikslinės grupės asmenų, dalyvavusių įmonės veikloje, skaičius, vnt.","Vertinimo pradžioje (duomenys apie esamą padėtį) ir kiekvieno periodo pabaigoje",{"$nulls":4},{"$error":"#DIV/0!"},{"$nulls":3},{"$error":"#DIV/0!"},{"$nulls":3},{"$error":"#DIV/0!"},{"$nulls":3},{"$error":"#DIV/0!"},{"$nulls":3},{"$error":"#DIV/0!"},{"$nulls":3},{"$f":"AI70/AJ70*100","v":{"$error":"#DIV/0!"}},{"$nulls":3},{"$error":"#DIV/0!"},{"$nulls":3},{"$f":"AQ70/AR70*100","v":{"$error":"#DIV/0!"}},{"$error":"#DIV/0!"}]
["Pasirinktų rodiklių poveikio suma, %:",{"$nulls":13},{"$f":"SUM(R4:R70)","v":{"$error":"#DIV/0!"}},{"$nulls":3},{"$f":"SUM(V4:V70)","v":{"$error":"#DIV/0!"}},{"$nulls":3},{"$f":"SUM(Z4:Z70)","v":{"$error":"#DIV/0!"}},{"$nulls":3},{"$f":"SUM(AD4:AD70)","v":{"$error":"#DIV/0!"}},{"$nulls":3},{"$f":"SUM(AH4:AH70)","v":{"$error":"#DIV/0!"}},{"$nulls":3},{"$f":"SUM(AL4:AL70)","v":{"$error":"#DIV/0!"}},{"$nulls":3},{"$f":"SUM(AP4:AP70)","v":{"$error":"#DIV/0!"}},{"$nulls":3},{"$f":"SUM(AT4:AT70)","v":{"$error":"#DIV/0!"}},{"$nulls":3},{"$f":"SUM(AU4:AU70)","v":{"$error":"#DIV/0!"}}]

{"sheet":"Papildomas_klasifikatoriai","index":7,"n_rows":70,"n_cols":46,"rows_kept":70,"hidden":true,"merged":[[1,1,1,6],[1,8,1,40],[1,42,1,45]]}
[]
[null,"Klasifikatoriai",{"$nulls":6},"Žemesnio lygio klasifikatoriai",{"$nulls":33},"Automatinis skaičiavimas"]
[null,"Socialinės rizikos / sergančių asmenų grupės "," Veiklos sritis","2. Veiklos pagrindinis tikslas / sritis","Rodiklio tipas","Papildomos klasifikatorius (Gebėjimai/ kompetencijos)","Papildomos klasifikatorius",null,"Užimtumas","1.1. Mažinti skurdo lygį.","1.1.1. Mažinti skurdo lygį."," 1.1.2. Mažinti tam tikros tikslinės grupės šeimų ar asmenų pajamų priklausomybę nuo socialinių pašalpų.","1.2. Skatinti užimtumą.","1.2.1. Didinti asmenų, priklausančių tam tikrai tikslinei grupei, užimtumą.","1.2.2. Skatinti gyventojų ar asmenų priklausančių rizikos grupei verslumą.","1.2.3. Didinti darbo jėgos kvalifikacijos atitiktį darbo rinkos reikmėms.","1.2.4. Didinti labiausiai nuo darbo rinkos nutolusių asmenų paskatas įsitvirtinti darbo rinkoje."," 1.3. Mažinti socialinę atskirtį ir skatinti socialinę integraciją.","1.3.1. Mažinti socialinę atskirtį.","Sveikata","2.1. Skatinti domėjimąsi sveika gyvensena.","2.1.1. Didinti žinomumą ar sąmoningumą apie sveiką gyvenseną, higieną.","2.2. Skatinti fizinį aktyvumą.","2.2.1. Didinti asmenų fizinį aktyvumą.","2.3. Gerinti fizinę ir psichinę sveikatos būklę.","2.3.1. Gerinti fizinę ir psichinę sveikatos būklę.","Prevencija","3.1. Skatinti nusikalstamumo prevenciją.","3.1.1. Vykdyti nusikaltimų prevenciją ir didinti aplinkos saugumą.","3.2. Mažinti psichotropinių medžiagų, alkoholio suvartojimą.","3.2.1. Mažinti gyventojų ar tam tikros tikslinės grupės asmenų priklausomybę nuo psichotropinių medžiagų, alkoholio ir vykdyti prevencinę veiklą.","3.3. Skatinti ligų prevenciją.","3.3.1. Mažinti asmenų sergamumą ligomis ir didinti jo prevenciją.","Švietimas","4.1. Skatinti ar prisidėti prie kvalifikacijos tobulinimo, kompetencijų įgijimo.","4.1.1. Didinti galimybes ar sudaryti sąlygas įgyti kompetencijas ar išugdyti kompetencijas.","4.1.2. Didinti užsiėmimų ir pamokų lankomumą, skatinti ar vykdyti neformalųjį ugdymą.","4.2. Gerinti mokymosi infrastruktūrą.","4.2.1. Gerinti mokymosi infrastruktūrą, sudarant palankias sąlygas, pvz., sukuriant paskatų sistemą, ar suteikiant galimybę ja pasinaudoti.","4.3. Skatinti tolerantiškumą ir gyventojų pilietiškumą.","4.3.1. Skatinti asmenų tolerantiškumą ir pilietiškumą.",null,"4. Rodiklis tikslo pasiekimui įvertinti","4.1. Rodiklio tipas ","5. Skaičiavimo metodas\n(Gerai, kai rodiklio reikšmė didėja pamečiui ir >0)","5.1.Skaičiavimo periodiškumas"]
[null,"Lietuvos gyventojai (pagal rajonus)",{"$nulls":4},"Paslaugos: Sveika tinimo priemonės ar paslaugos",null," 1.1. Mažinti skurdo lygį."," 1.1.1. Mažinti skurdo lygį.","1.1.1.1.  Įdarbintų asmenų, priklausančių tam tikrai tikslinei grupei, dalis nuo įmonės veikloje dalyvavusių asmenų (proc.).","1.1.2.1. Įdarbintų asmenų, priklausančių tam tikrai tikslinei grupei, dalis nuo įmonės veikloje dalyvavusių asmenų (proc.)."," 1.2.1. Didinti asmenų, priklausančių tam tikrai tikslinei grupei, užimtumą.","1.2.1.1. Apmokytų ir įdarbintų asmenų, priklausančių tam tikrai tikslinei grupei, dalis nuo įmonės veikloje dalyvavusių asmenų (proc.).","1.2.2.1. Asmenų, priklausančių tam tikrai tikslinei grupei, kurie dėl įmonės teikiamų paslaugų / vykdomos veiklos dalyvavo verslumo skatinimo renginyje ir pradėjo verslą, dalis nuo įmonės veikloje dalyvavusių asmenų (proc.).","1.2.3.1. Apmokytų ir projekto veiklą vykdančioje įmonėje įdarbintų asmenų, priklausančių tam tikrai tikslinei grupei, dalis nuo įmonės veikloje dalyvavusių asmenų (proc.).","1.2.4.1.  Asmenų, priklausančių tam tikrai tikslinei grupei, kurie dėl įmonės teikiamų paslaugų / vykdomos veiklos / suteiktos infrastruktūros pasinaudojo paskatų sistema, kuri padėjo įsitvirtinti darbo rinkoje, dalis nuo įmonės veikloje dalyvavusių asmenų (proc.).\n\nPvz., lanksčios darbo sąlygos, lengvatinis nuvykimas į darbo vietą / parvykimas iš darbo vietos, vaikų priežiūros kambario sukūrimas ir t.t."," 1.3.1. Mažinti socialinę atskirtį.","1.3.1.1. Išaugusi tam tikros tikslinės grupės asmenų, dalyvaujančių bent vienos grupės/ organizacijos /bendrijos veikloje, dalis nuo įmonės veikloje dalyvavusių asmenų (proc.)."," 2.1. Skatinti domėjimąsi sveika gyvensena."," 2.1.1. Didinti žinomumą ar sąmoningumą apie sveiką gyvenseną, higieną.","2.1.1.1. Asmenų, priklausančių tam tikrai tikslinei grupei, kurių sveikata / savijauta dėl įmonės teikiamų paslaugų / vykdomos veiklos / suteiktos infrastruktūros pagerėjo, dalis nuo įmonės veikloje dalyvavusių asmenų (proc.)."," 2.2.1. Didinti asmenų fizinį aktyvumą.","2.2.1.1. Asmenų, priklausančių tam tikrai tikslinei grupei, kurie dėl įmonės teikiamų paslaugų / vykdomos veiklos / suteiktos infrastruktūros gali aktyviau / saugiau / įdomiau leisti laisvalaikį, dalis nuo įmonės veikloje dalyvavusių asmenų (proc.)."," 2.3.1. Gerinti fizinę ir psichinę sveikatos būklę.","2.3.1.1. Asmenų, priklausančių tam tikrai tikslinei grupei, kurių fizinis aktyvumas dėl įmonės teikiamų paslaugų / vykdomos veiklos / suteiktos/ sukurtos infrastruktūros pagerėjo, sveikata / savijauta pagerėjo, dalis nuo įmonės veikloje dalyvavusių asmenų (proc.)."," 3.1. Skatinti nusikalstamumo prevenciją."," 3.1.1. Vykdyti nusikaltimų prevenciją ir didinti aplinkos saugumą.","3.1.1.1. Asmenų, priklausančių tam tikrai tikslinei grupei / nukentėjusių asmenų, kurie dėl įmonės teikiamų paslaugų / vykdomos veiklos, susijusios su nusikalstamumo mažinimu, pripažino, kad aplinka tapo saugesnė, dalis nuo įmonės veikloje dalyvavusių asmenų (proc.)."," 3.2.1. Mažinti gyventojų ar tam tikros tikslinės grupės asmenų priklausomybę nuo psichotropinių medžiagų, alkoholio ir vykdyti prevencinę veiklą.","3.2.1.1. Asmenų, priklausančių tam tikrai tikslinei grupei / susijusių su nusikalstama veika, kurie dėl įmonės teikiamų paslaugų / vykdomos veiklos nustojo vartoti kenksmingus produktus / nustojo elgtis netinkamai, dalis nuo įmonės veikloje dalyvavusių asmenų (proc.)."," 3.3.1. Mažinti asmenų sergamumą ligomis ir didinti jo prevenciją.","3.3.1.1. Asmenų, priklausančių tam tikrai tikslinei grupei, kurių higienos sąlygos dėl įmonės teikiamų paslaugų / vykdomos veiklos / suteiktos infrastruktūros (pvz., atsirado galimybė reguliariai naudotis higienos palaikymo priemonėmis ar paslaugomis) pagerėjo, dalis nuo įmonės veikloje dalyvavusių asmenų (proc.)."," 4.1. Skatinti ar prisidėti prie kvalifikacijos tobulinimo, kompetencijų įgijimo."," 4.1.1. Didinti galimybes ar sudaryti sąlygas įgyti kompetencijas ar išugdyti kompetencijas.","4.1.1.1. Asmenų, priklausančių tam tikrai tikslinei grupei, kurių kompetencijos ir gebėjimai (pasirenkama iš papildomo klasifikatoriaus) dėl įmonės teikiamų paslaugų / vykdomos veiklos pagerėjo (lyginant su prieš tai buvusiu statusu), dalis nuo įmonės veikloje dalyvavusių asmenų (proc.). ","4.1.2.1. Asmenų, priklausančių tam tikrai tikslinei grupei, kurių užsiėmimų / pamokų lankomumas dėl įmonės teikiamų paslaugų / vykdomos neformaliojo ugdymo veiklos pagerėjo, dalis nuo įmonės veikloje dalyvavusių asmenų (proc.). "," 4.2.1. Gerinti mokymosi infrastruktūrą, sudarant palankias sąlygas, pvz., sukuriant paskatų sistemą, ar suteikiant galimybę ja pasinaudoti.","4.2.1.1. Asmenų, priklausančių tam tikrai tikslinei grupei, kurių mokymosi rezultatai (pažymiai) dėl įmonės teikiamų paslaugų / mokymosi infrastruktūros / vykdomos veiklos pagerėjo, dalis nuo įmonės veikloje dalyvavusių asmenų (proc.)."," 4.3.1. Skatinti asmenų tolerantiškumą ir pilietiškumą.","4.3.1.1. Asmenų, priklausančių tam tikrai tikslinei grupei, kurių darbo užmokestis ar pajamos dėl įmonės teikiamų paslaugų / vykdomos veiklos, susijusios su lygiomis teisėmis, padidėjo, dalis nuo įmonės veikloje dalyvavusių asmenų (proc.).",null,{"$f":"_1.1.1._Mažinti_skurdo_lygį.[[#This Row],[1.1.1. Mažinti skurdo lygį.]]","v":"1.1.1.1.  Įdarbintų asmenų, priklausančių tam tikrai tikslinei grupei, dalis nuo įmonės veikloje dalyvavusių asmenų (proc.)."},"Pagrindinis","a/b*100%, čia\na – ataskaitiniu laikotarpiu darbintų tam tikros tikslinės grupės žmonių skaičius, vnt.\nb – iš viso tam tikros tikslinės grupės žmonių, dalyvavusių įmonės veikloje, skaičius, vnt. ","Kartą per metus"]
[null,"Mokyklinio amžiaus vaikai","Užimtumas","Socialinės atskirties ir skurdo mažinimas bei socialinės integracijos ir užimtumo skatinimas.","Pagrindinis","Meniniai gebėjimai","Paslaugos: Sveikatos priemonės ar paslaugos",null," 1.2. Skatinti užimtumą."," 1.1.2. Mažinti tam tikros tikslinės grupės šeimų ar asmenų pajamų priklausomybę nuo socialinių pašalpų.","1.1.1.2. Asmenų, priklausančių tam tikrai tikslinei grupei, kurių minimalios (skurdo ribą siekiančios) mėnesinės pajamos dėl įdarbinimo įmonėje padidėjo, dalis nuo įmonės veikloje dalyvavusių asmenų (proc.).","1.1.2.2. Asmenų, priklausančių tam tikrai tikslinei grupei ir gaunančių pašalpas, kurių skaičius dėl įdarbinimo įmonėje sumažėjo, dalis nuo įmonės veikloje dalyvavusių asmenų (proc.)."," 1.2.2. Skatinti gyventojų ar asmenų priklausančių rizikos grupei verslumą.","1.2.1.2. Asmenų, priklausančių tam tikrai tikslinei grupei, kurie dėl įmonės teikiamų paslaugų / vykdomos veiklos, įsidarbino po surengtų verslumo/ užimtumo skatinimo renginių, dalis nuo įmonės veikloje dalyvavusių asmenų (proc.).","1.2.2.2. Tam tikros tikslinės grupės asmenų, kurie dėl įmonės teikiamų paslaugų / vykdomos veiklos dalyvavo gerosios patirties pasidalijimo renginiuose, ir teigia, kad įgyta informacija paskatino imtis veiksmų, susijusių su padėties keitimu, dalis nuo renginiuose dalyvavusių asmenų (proc.).","1.2.3.2. Apmokytų ir kitose įmonėse / įstaigose (ne veiklą organizuojančioje įmonėje) įsidarbinusių asmenų, priklausančių tam tikrai tikslinei grupei, dalis nuo įmonės veikloje dalyvavusių asmenų (proc.).","1.2.4.2. Tam tikros tikslinės grupės asmenų, kurie dėl įmonės teikiamų paslaugų / vykdomos veiklos dalyvavo gerosios patirties pasidalijimo renginiuose ir pripažino, kad jie įgijo naudingų žinių / patirties, padėsiančių jiems įsidarbinti /užsiimti pajamas generuojančia veikla, dalis nuo renginiuose dalyvavusių asmenų (proc.).",null,"1.3.1.2. Išaugusi tam tikros tikslinės grupės asmenų, pasinaudojusių fizine ir (ar) informacine aplinka, kuriems ji buvo naudinga, dalis nuo įmonės veikloje dalyvavusių asmenų (proc.)."," 2.2. Skatinti fizinį aktyvumą.",null,"2.1.1.2. Asmenų, priklausančių tam tikrai tikslinei grupei, kuriems dėl įmonės teikiamų paslaugų / vykdomos veiklos tapo labiau prieinama informacija apie tam tikrą temą (pasirinkite reikšmę papildomame klasifikatoriuje) ir jie tą informaciją vertina kaip naudingą, dalis nuo įmonės veikloje dalyvavusių asmenų (proc.).",null,"2.2.1.2. Asmenų, priklausančių tam tikrai tikslinei grupei, kurių fizinis aktyvumas dėl įmonės teikiamų paslaugų / vykdomos veiklos / suteiktos/ sukurtos infrastruktūros padidėjo, dalis nuo įmonės veikloje dalyvavusių asmenų (proc.).",null,"2.3.1.2. Asmenų, priklausančių tam tikrai tikslinei grupei, kuriems dėl įmonės teikiamų paslaugų / vykdomos veiklos / suteiktos infrastruktūros yra sudarytos geresnės ir nuolatinės sąlygos turėti prieigą prie tam tikrų priemonių ar paslaugų (pasirinkite iš papildomo klasifikatoriaus), dalis nuo įmonės veikloje dalyvavusių asmenų (proc.)."," 3.2. Mažinti psichotropinių medžiagų, alkoholio suvartojimą.",null,"3.1.1.2. Asmenų, priklausančių tam tikrai tikslinei grupei / susijusių su nusikalstama veika, kurie dėl įmonės teikiamų paslaugų / vykdomos veiklos patvirtino, kad pagerėjo jų emocinis stabilumas ir dėl to jie nebevykdo nusikalstamos veiklos, dalis nuo įmonės veikloje dalyvavusių asmenų (proc.).",null,"3.2.1.2. Asmenų, priklausančių tam tikrai tikslinei grupei / sergančių ar turinčių sutrikimą, kurie dėl įmonės teikiamų paslaugų / vykdomos prevencinės veiklos pradėjo kovoti su liga (pvz., nustoję vartoti ligą sukeliančius komponentus / pradėję gydytis nuo tos ligos / pripažino turintys ligą ir ėmėsi veiksmų dėl jos pašalinimo), dalis nuo įmonės veikloje dalyvavusių asmenų (proc.).",null,"3.3.1.2. Asmenų, priklausančių tam tikrai tikslinei grupei, kurių buities / pragyvenimo sąlygos dėl reguliariai įmonės teikiamų paslaugų / vykdomos veiklos / suteiktos infrastruktūros / techninės įrangos (pvz., pasikeitė buitinės sąlygos į geresnes) pagerėjo, dalis nuo įmonės veikloje dalyvavusių asmenų (proc.)."," 4.2. Gerinti mokymosi infrastruktūrą."," 4.1.2. Didinti užsiėmimų ir pamokų lankomumą, skatinti ar vykdyti neformalųjį ugdymą.","4.1.1.2. Asmenų, priklausančių tam tikrai tikslinei grupei, kurių mokymosi rezultatai (pažymiai) dėl įmonės teikiamų paslaugų / vykdomos veiklos pagerėjo, dalis nuo įmonės veikloje dalyvavusių asmenų (proc.). ","4.1.2.2. Asmenų, priklausančių tam tikrai tikslinei grupei, kurių pasitikėjimas savimi dėl įmonės teikiamų paslaugų / vykdomos neformaliojo ugdymo veiklos padidėjo, dalis nuo įmonės veikloje dalyvavusių asmenų (proc.). ",null,"4.2.1.2. Asmenų, priklausančių tam tikrai tikslinei grupei, kuriems dėl įmonės teikiamų paslaugų / infrastruktūros / vykdomos veiklos tapo labiau prieinama informacija apie švietimo įstaigas / kompetencijas ir jie šią informaciją vertina kaip naudingą, dalis nuo įmonės veikloje dalyvavusių asmenų (proc.).",null,"4.3.1.2. Asmenų, priklausančių tam tikrai tikslinei grupei, kurių darbo pasiūlymų skaičius dėl įmonės teikiamų paslaugų / vykdomos veiklos, susijusios su lygiomis teisėmis, padidėjo, dalis nuo įmonės veikloje dalyvavusių asmenų (proc.).",null,{"$f":"_1.1.1._Mažinti_skurdo_lygį.[[#This Row],[1.1.1. Mažinti skurdo lygį.]]","v":"1.1.1.2. Asmenų, priklausančių tam tikrai tikslinei grupei, kurių minimalios (skurdo ribą siekiančios) mėnesinės pajamos dėl įdarbinimo įmonėje padidėjo, dalis nuo įmonės veikloje dalyvavusių asmenų (proc.)."},"Pagrindinis","a/b*100%, čia\na – ataskaitiniu laikotarpiu tam tikros tikslinės grupės asmenų skaičius, kurių pajamos padidėjo dėl įmonės teikiamų paslaugų / vykdomos veiklos / įdarbinimo įmonėje, vnt.\nb – iš viso tam tikros tikslinės grupės žmonių, dalyvavusių įmonės veikloje, skaičius, vnt. ","Kartą per metus"]
[null,"Jaunimas","Sveikata","Gyventojų fizinės ir psichinės sveikatos gerinimas ir su sveikata susijusių probleminių sričių sprendimas.","Papildomas","Sportiniai gebėjimai","Paslaugos: Higienos priemonės ar paslaugos",null," 1.3. Mažinti socialinę atskirtį ir skatinti socialinę integraciją.",null,"1.1.1.3. Tam tikros tikslinės grupės asmenų, kurie dėl įmonės teikiamų paslaugų / vykdomos veiklos periodiškai gavo materialinę paramą (pvz., šilto maisto) ir pripažino, kad dėl to pagerėjo jų materialinės gyvenimo sąlygos, dalis nuo įmonės veikloje dalyvavusių asmenų (proc.).","1.1.2.3. Tam tikros tikslinės grupės asmenų, kurie dėl įmonės teikiamų paslaugų / vykdomos veiklos dalyvavo gerosios patirties pasidalijimo renginiuose ir pripažino, kad jie įgijo naudingų žinių / patirties, padėsiančių jiems įsidarbinti /užsiimti pajamas generuojančia veikla, dalis nuo renginiuose dalyvavusių asmenų (proc.)."," 1.2.3. Didinti darbo jėgos kvalifikacijos atitiktį darbo rinkos reikmėms.","1.2.1.3. Tam tikros tikslinės grupės asmenų, kurie dėl įmonės teikiamų paslaugų / vykdomos veiklos dalyvavo gerosios patirties pasidalijimo renginiuose ir pripažino, kad jie įgijo naudingų žinių / patirties, padėsiančių jiems įsidarbinti /užsiimti pajamas generuojančia veikla, dalis nuo renginiuose dalyvavusių asmenų (proc.).",null,"1.2.3.3. Tam tikros tikslinės grupės asmenų, kurie dėl įmonės teikiamų paslaugų / vykdomos veiklos dalyvavo gerosios patirties pasidalijimo renginiuose ir pripažino, kad jie įgijo naudingų žinių / patirties, padėsiančių jiems įsidarbinti /užsiimti pajamas generuojančia veikla, dalis nuo renginiuose dalyvavusių asmenų (proc.).","1.2.4.3. Surengtuose verslumo skatinimo renginiuose dalyvavusių ir įgytas žinias teigiamai įvertinusių asmenų, priklausančių tam tikrai tikslinei grupei, dalis nuo įmonės veikloje dalyvavusių asmenų (proc.).",null,"1.3.1.3. Tam tikros tikslinės grupės asmenų, kurie dėl įmonės teikiamų paslaugų / vykdomos veiklos dalyvavo gerosios patirties pasidalijimo renginiuose ir pripažino, kad jie įgijo naudingų žinių / patirties, padėsiančių mažinti socialinę atskirtį, dalis nuo renginiuose dalyvavusių asmenų (proc.)."," 2.3. Gerinti fizinę ir psichinę sveikatos būklę.",{"$nulls":3},"2.2.1.3. Tam tikros tikslinės grupės asmenų, kurie dėl įmonės teikiamų paslaugų / vykdomos veiklos dalyvavo gerosios patirties pasidalijimo renginiuose ir pripažino, kad jie įgijo naudingų žinių / patirties, padėsiančios didinti fizinį aktyvumą, dalis nuo renginiuose dalyvavusių asmenų (proc.).",null,"2.3.1.3 Tam tikros tikslinės grupės asmenų / sergančių asmenų, dėl įmonės teikiamų paslaugų / vykdomos veiklos / suteiktos infrastruktūros, periodiškai gavusių materialinę paramą (pvz., šilto maisto) ir pripažinusių, kad dėl to pagerėjo jų sveikata / savijauta, dalis nuo įmonės veikloje dalyvavusių asmenų (proc.)."," 3.3. Skatinti ligų prevenciją.",null,"3.1.1.3. Tam tikros tikslinės grupės asmenų / asmenų, kurie dėl įmonės teikiamų paslaugų / vykdomos veiklos dalyvavo gerosios patirties pasidalijimo / prevenciniuose renginiuose ir pripažino, kad jie įgijo naudingų žinių / patirties, susijusios su nusikaltimų prevencija, dalis nuo renginiuose dalyvavusių asmenų (proc.).",null,"3.2.1.3. Asmenų, priklausančių tam tikrai tikslinei grupei, kuriems dėl įmonės teikiamų paslaugų / vykdomos veiklos / suteiktos infrastruktūros tapo labiau prieinama informacija apie ligas / susižalojimus ir jų prevenciją ir jie šią informaciją vertina kaip naudingą, dalis nuo įmonės veikloje dalyvavusių asmenų (proc.).",null,"3.3.1.3. Tam tikros tikslinės grupės asmenų / asmenų, sergančių ar turinčių sutrikimų, kurie dėl įmonės teikiamų paslaugų / vykdomos veiklos dalyvavo gerosios patirties pasidalijimo / prevenciniuose (su sveikata susijusiuose) renginiuose ir pripažino, kad jie įgijo naudingų žinių / patirties, dalis nuo renginiuose dalyvavusių asmenų (proc.)."," 4.3. Skatinti tolerantiškumą ir gyventojų pilietiškumą.",null,"4.1.1.3. Asmenų, priklausančių tam tikrai tikslinei grupei, kurių pasitikėjimas savimi dėl įmonės teikiamų paslaugų / vykdomos neformaliojo ugdymo veiklos, padidėjo, dalis nuo įmonės veikloje dalyvavusių asmenų (proc.). ","4.1.2.3. Asmenų, priklausančių tam tikrai tikslinei grupei, kurie dėl įmonės teikiamų paslaugų / vykdomos veiklos pagerino savo emocinį intelektą / stabilumą, dalis nuo įmonės veikloje dalyvavusių asmenų (proc.). ",null,"4.2.1.3. Asmenų, priklausančių tam tikrai tikslinei grupei, kurių pasitikėjimas savimi dėl įmonės teikiamų paslaugų / vykdomos veiklos padidėjo, dalis nuo įmonės veikloje dalyvavusių asmenų (proc.). ",null,"4.3.1.3. Asmenų, priklausančių tam tikrai tikslinei grupei, kurie dėl įmonės teikiamų paslaugų / vykdomos veiklos pripažino, kad patyčių jų aplinkoje sumažėjo, dalis nuo įmonės veikloje dalyvavusių asmenų (proc.). ",null,{"$f":"_1.1.1._Mažinti_skurdo_lygį.[[#This Row],[1.1.1. Mažinti skurdo lygį.]]","v":"1.1.1.3. Tam tikros tikslinės grupės asmenų, kurie dėl įmonės teikiamų paslaugų / vykdomos veiklos periodiškai gavo materialinę paramą (pvz., šilto maisto) ir pripažino, kad dėl to pagerėjo jų materialinės gyvenimo sąlygos, dalis nuo įmonės veikloje dalyvavusių asmenų (proc.)."},"Papildomas","a/b*100%>0, čia\na – tam tikros tikslinės grupės asmenų, dalyvavusių įmonių veikloje ir dėl to pasijutusių geriau, skaičius, vnt.\nb – bendras tam tikros tikslinės grupės asmenų, dalyvavusių įmonės veikloje, skaičius, vnt.","Vertinimo pradžioje (duomenys apie esamą padėtį) ir kiekvieno periodo pabaigoje"]
[null,"Darbingo amžiaus gyventojai","Prevencija","Prevencinių priemonių (susijusių su nusikalstamumu, ligomis ir priklausomybėmis) veiksmingumo didinimas ir visuomenės saugumo užtikrinimas.",null,"Kompiuteriniai gebėjimai","Temos: šeimos planavimas",{"$nulls":3},"1.1.1.4. Tam tikros tikslinės grupės asmenų, kurie dėl įmonės teikiamų paslaugų / vykdomos veiklos dalyvavo gerosios patirties pasidalijimo renginiuose ir pripažino, kad jie įgijo naudingų žinių / patirties, padėsiančių jiems įsidarbinti /užsiimti pajamas generuojančia veikla, dalis nuo renginiuose dalyvavusių asmenų (proc.).",null," 1.2.4. Didinti labiausiai nuo darbo rinkos nutolusių asmenų paskatas įsitvirtinti darbo rinkoje.",{"$nulls":5},"1.3.1.4. Tam tikros tikslinės grupės asmenų, kurie dėl įmonės teikiamų paslaugų / vykdomos veiklos dalyvavo gerosios patirties pasidalijimo renginiuose, ir teigia, kad įgyta informacija paskatino imtis veiksmų, susijusių su padėties keitimu, dalis nuo renginiuose dalyvavusių asmenų (proc.).",{"$nulls":6},"2.3.1.4. Asmenų, priklausančių tam tikrai tikslinei grupei, kuriems dėl įmonės teikiamų paslaugų / vykdomos veiklos / suteiktos infrastruktūros tapo labiau prieinama informacija apie ligas / susižalojimus ir jie šią informaciją vertina kaip naudingą, dalis nuo įmonės veikloje dalyvavusių asmenų (proc.).",{"$nulls":6},"3.3.1.4. Asmenų, priklausančių tam tikrai tikslinei grupei, kuriems dėl įmonės teikiamų paslaugų / vykdomos veiklos tapo labiau prieinama informacija apie ligas ir jie šią informaciją vertina kaip naudingą, dalis nuo įmonės veikloje dalyvavusių asmenų (proc.).",null,null,"4.1.1.4. Asmenų, priklausančių tam tikrai tikslinei grupei, kurie dėl įmonės teikiamų paslaugų / vykdomos veiklos pagerino savo emocinį intelektą / stabilumą, dalis nuo įmonės veikloje dalyvavusių asmenų (proc.). ","4.1.2.4. Asmenų, priklausančių tam tikrai tikslinei grupei, kuriems dėl įmonės teikiamų paslaugų / infrastruktūros / vykdomos veiklos tapo labiau prieinama informacija apie švietimo įstaigas / kompetencijas ir jie šią informaciją vertina kaip naudingą, dalis nuo įmonės veikloje dalyvavusių asmenų (proc.).",null,"4.2.1.4. Asmenų, priklausančių tam tikrai tikslinei grupei, kurie dėl įmonės teikiamų paslaugų / vykdomos veiklos pagerino savo emocinį intelektą / stabilumą, dalis nuo įmonės veikloje dalyvavusių asmenų (proc.). ",null,"4.3.1.4. Asmenų, priklausančių tam tikrai tikslinei grupei, kurie dėl įmonės teikiamų paslaugų / vykdomos edukacinės veiklos pripažino, kad įgijo naudingos informacijos apie patyčių pasekmes / žalą, dalis nuo įmonės veikloje dalyvavusių asmenų (proc.). ",null,{"$f":"_1.1.1._Mažinti_skurdo_lygį.[[#This Row],[1.1.1. Mažinti skurdo lygį.]]","v":"1.1.1.4. Tam tikros tikslinės grupės asmenų, kurie dėl įmonės teikiamų paslaugų / vykdomos veiklos dalyvavo gerosios patirties pasidalijimo renginiuose ir pripažino, kad jie įgijo naudingų žinių / patirties, padėsiančių jiems įsidarbinti /užsiimti pajamas generuojančia veikla, dalis nuo renginiuose dalyvavusių asmenų (proc.)."},"Papildomas","a/b*100%>0, čia\na – tam tikros tikslinės grupės asmenų, dalyvavusių renginyje ir įgijusių žinių, skaičius, vnt.\nb – bendras tam tikros tikslinės grupės asmenų, dalyvavusių įmonės veikloje, skaičius, vnt.","Vertinimo pradžioje (duomenys apie esamą padėtį) ir kiekvieno periodo pabaigoje"]
[null,"Pensijinio amžiaus gyventojai","Švietimas","Gerinti švietimo ir mokymo kokybę bei veiksmingumą, skatinant ir įgyvendinant mokymąsi visą gyvenimą, socialinę sanglaudą ir aktyvų pilietiškumą.",null,"Kalbiniai gebėjimai","Temos: Ligos ir sužalojimai",{"$nulls":18},"2.3.1.5. Asmenų, priklausančių tam tikrai tikslinei grupei, kurie dėl įmonės teikiamų paslaugų / vykdomos veiklos / suteiktos infrastruktūros pripažino, kad jų sveikata / savijauta pagerėjo, dalis nuo įmonės veikloje dalyvavusių asmenų (proc.).",{"$nulls":9},"4.1.1.5. Asmenų, priklausančių tam tikrai tikslinei grupei, kuriems dėl įmonės teikiamų paslaugų / infrastruktūros / vykdomos veiklos tapo labiau prieinama informacija apie švietimo įstaigas / kompetencijas ir jie šią informaciją vertina kaip naudingą, dalis nuo įmonės veikloje dalyvavusių asmenų (proc.).","4.1.2.5. Asmenų, priklausančių tam tikrai tikslinei grupei, kurių tikslų planavimo ir prioretizavimo gebėjimai dėl įmonės teikiamų paslaugų / vykdomos veiklos pagerėjo, dalis nuo įmonės veikloje dalyvavusių asmenų (proc.). ",null,"4.2.1.5. Asmenų, priklausančių tam tikrai tikslinei grupei, kurių tikslų planavimo ir prioretizavimo gebėjimai dėl įmonės teikiamų paslaugų / vykdomos veiklos pagerėjo, dalis nuo įmonės veikloje dalyvavusių asmenų (proc.). ",null,"4.3.1.5. Asmenų, priklausančių tam tikrai tikslinei grupei, kurie dėl įmonės teikiamų paslaugų / vykdomos veiklos tapo patriotiškesni (labiau vertina savo gimtinę ir jos istoriją) ir pradėjo lankyti patriotines organizacijas / akcijas, dalis nuo įmonės veikloje dalyvavusių asmenų (proc.).",null,{"$f":"L4","v":"1.1.2.1. Įdarbintų asmenų, priklausančių tam tikrai tikslinei grupei, dalis nuo įmonės veikloje dalyvavusių asmenų (proc.)."},"Pagrindinis","a/b*100%, čia\na – ataskaitiniu laikotarpiu įdarbintų tam tikros tikslinės grupės žmonių skaičius, vnt. \nb – bendras tam tikros tikslinės grupės asmenų, dalyvavusių įmonės veikloje, skaičius, vnt.","Kartą per metus"]
[null,"Neįgalieji","N/A","N/A",null,"Socialiniai gebėjimai","Temos: Sveika gyvensena",{"$nulls":18},"2.3.1.6. Asmenų, priklausančių tam tikrai tikslinei grupei, kurie dėl įmonės teikiamų paslaugų / vykdomos veiklos / suteiktos infrastruktūros pripažino, kad jų mitybos įpročiai pagerėjo, dalis nuo įmonės veikloje dalyvavusių asmenų (proc.).",{"$nulls":9},"4.1.1.6. Asmenų, priklausančių tam tikrai tikslinei grupei, kurių tikslų planavimo ir prioretizavimo gebėjimai dėl įmonės teikiamų paslaugų / vykdomos veiklos pagerėjo, dalis nuo įmonės veikloje dalyvavusių asmenų (proc.). ",{"$nulls":4},"4.3.1.6. Asmenų, priklausančių tam tikrai tikslinei grupei, kurie dėl įmonės teikiamų paslaugų / vykdomos veiklos pripažino, kad labiau sieja savo profesinę ir asmeninę ateitį su Lietuva (pvz., mažiau svarsto galimybę emigruoti), dalis nuo įmonės veikloje dalyvavusių asmenų (proc.).",null,{"$f":"L5","v":"1.1.2.2. Asmenų, priklausančių tam tikrai tikslinei grupei ir gaunančių pašalpas, kurių skaičius dėl įdarbinimo įmonėje sumažėjo, dalis nuo įmonės veikloje dalyvavusių asmenų (proc.)."},"Papildomas","a/b*100%, čia\na – tam tikros tikslinės grupės asmenų, kurie nebegauna pašalpos dėl įmonės vykdomos veiklos / įdarbinimo, skaičius, vnt.\nb – bendras tam tikros tikslinės grupės asmenų, dalyvavusių įmonės veikloje, skaičius, vnt.","Kartą per metus"]
[null,"Vienišos motinos ar tėvai",{"$nulls":3},"N/A","Temos: Sveika mityba",{"$nulls":18},"2.3.1.7. Tam tikros tikslinės grupės asmenų, kurie dėl įmonės teikiamų paslaugų / vykdomos veiklos dalyvavo gerosios patirties pasidalijimo renginiuose ir pripažino, kad jie įgijo naudingų žinių / patirties, padėsiančios gerinti sveikatos būklę, dalis nuo renginiuose dalyvavusių asmenų (proc.).",{"$nulls":14},"4.3.1.7. Asmenų, priklausančių tam tikrai tikslinei grupei, kuriems žmogaus teisių apsauga dėl įmonės teikiamų paslaugų / vykdomos veiklos tapo labiau prieinama, dalis nuo įmonės veikloje dalyvavusių asmenų (proc.).",null,{"$f":"L6","v":"1.1.2.3. Tam tikros tikslinės grupės asmenų, kurie dėl įmonės teikiamų paslaugų / vykdomos veiklos dalyvavo gerosios patirties pasidalijimo renginiuose ir pripažino, kad jie įgijo naudingų žinių / patirties, padėsiančių jiems įsidarbinti /užsiimti pajamas generuojančia veikla, dalis nuo renginiuose dalyvavusių asmenų (proc.)."},"Papildomas","a/b*100%>0, čia\na – tam tikros tikslinės grupės asmenų, dalyvavusių renginyje ir įgijusių žinių, skaičius, vnt.\nb – bendras tam tikros tikslinės grupės asmenų, dalyvavusių įmonės renginyje, skaičius, vnt.","Vertinimo pradžioje (duomenys apie esamą padėtį) ir kiekvieno periodo pabaigoje"]
[null,"Daugiavaikės šeimos",{"$nulls":4},"Temos: Higiena",{"$nulls":35},{"$f":"N4","v":"1.2.1.1. Apmokytų ir įdarbintų asmenų, priklausančių tam tikrai tikslinei grupei, dalis nuo įmonės veikloje dalyvavusių asmenų (proc.)."},"Pagrindinis","a/b*100%, čia\na – ataskaitiniu laikotarpiu apmokytų ir įdarbintų tam tikros tikslinės grupės žmonių skaičius, vnt.\nb – iš viso tam tikros tikslinės grupės žmonių, dalyvavusių įmonės veikloje, skaičius, vnt.","Kartą per metus"]
[null,"Socialinės rizikos šeimų skaičius 1000-iui gyventojų",{"$nulls":40},{"$f":"N5","v":"1.2.1.2. Asmenų, priklausančių tam tikrai tikslinei grupei, kurie dėl įmonės teikiamų paslaugų / vykdomos veiklos, įsidarbino po surengtų verslumo/ užimtumo skatinimo renginių, dalis nuo įmonės veikloje dalyvavusių asmenų (proc.)."},"Pagrindinis","a/b*100%>0, čia\na – tam tikros tikslinės grupės asmenų, dalyvavusių renginyje ir įsidarbinusių, skaičius, vnt.\nb – bendras tam tikros tikslinės grupės asmenų, dalyvavusių renginyje, skaičius, vnt.","Vertinimo pradžioje (duomenys apie esamą padėtį) ir kiekvieno periodo pabaigoje"]
[null,"Pabėgėliai",{"$nulls":40},{"$f":"N6","v":"1.2.1.3. Tam tikros tikslinės grupės asmenų, kurie dėl įmonės teikiamų paslaugų / vykdomos veiklos dalyvavo gerosios patirties pasidalijimo renginiuose ir pripažino, kad jie įgijo naudingų žinių / patirties, padėsiančių jiems įsidarbinti /užsiimti pajamas generuojančia veikla, dalis nuo renginiuose dalyvavusių asmenų (proc.)."},"Papildomas","a/b*100%>0, čia\na – tam tikros tikslinės grupės asmenų, dalyvavusių renginyje ir įgijusių žinių, skaičius, vnt.\nb – bendras tam tikros tikslinės grupės asmenų, dalyvavusių renginyje, skaičius, vnt.","Vertinimo pradžioje (duomenys apie esamą padėtį) ir kiekvieno periodo pabaigoje"]
[null,"Nedirbantys (bedarbiai)",{"$nulls":40},{"$f":"O4","v":"1.2.2.1. Asmenų, priklausančių tam tikrai tikslinei grupei, kurie dėl įmonės teikiamų paslaugų / vykdomos veiklos dalyvavo verslumo skatinimo renginyje ir pradėjo verslą, dalis nuo įmonės veikloje dalyvavusių asmenų (proc.)."},"Pagrindinis","a/b*100%>0, čia\na – tam tikros tikslinės grupės asmenų, dalyvavusių renginyje ir pradėjusių verslą, skaičius, vnt.\nb – bendras tam tikros tikslinės grupės asmenų, dalyvavusių renginyje, skaičius, vnt.","Kartą per metus"]
[null,"18–24 metų jaunimo, neįgijusio vidutinio išsilavinimo ir nesimokančio, dalis",{"$nulls":40},{"$f":"O5","v":"1.2.2.2. Tam tikros tikslinės grupės asmenų, kurie dėl įmonės teikiamų paslaugų / vykdomos veiklos dalyvavo gerosios patirties pasidalijimo renginiuose, ir teigia, kad įgyta informacija paskatino imtis veiksmų, susijusių su padėties keitimu, dalis nuo renginiuose dalyvavusių asmenų (proc.)."},"Papildomas","a/b*100%>0, čia\na – tam tikros tikslinės grupės asmenų, dalyvavusių renginyje, ir kurie ėmėsi su padėties keitimu susijusių veiksmų, skaičius, vnt.\nb – bendras tam tikros tikslinės grupės asmenų, dalyvavusių renginyje, skaičius, vnt.","Kartą per metus"]
[null,"15–29 metų jaunimas pagal išsilavinimo grupes",{"$nulls":40},{"$f":"P4","v":"1.2.3.1. Apmokytų ir projekto veiklą vykdančioje įmonėje įdarbintų asmenų, priklausančių tam tikrai tikslinei grupei, dalis nuo įmonės veikloje dalyvavusių asmenų (proc.)."},"Pagrindinis","a/b*100%, čia\na – ataskaitiniu laikotarpiu apmokytų ir įdarbintų tam tikros tikslinės grupės žmonių skaičius, vnt.\nb – iš viso tam tikros tikslinės grupės žmonių, dalyvavusių įmonės veikloje, skaičius, vnt.","Kartą per metus"]
[null,"Mokyklinio amžiaus vaikai, nesimokantys mokykloje",{"$nulls":40},{"$f":"P5","v":"1.2.3.2. Apmokytų ir kitose įmonėse / įstaigose (ne veiklą organizuojančioje įmonėje) įsidarbinusių asmenų, priklausančių tam tikrai tikslinei grupei, dalis nuo įmonės veikloje dalyvavusių asmenų (proc.)."},"Pagrindinis","a/b*100%, čia\na – ataskaitiniu laikotarpiu apmokytų ir kitur įsidarbinusių (ne veiklą organizuojančioje įmonėje) tam tikros tikslinės grupės žmonių skaičius, vnt.\nb – iš viso tam tikros tikslinės grupės žmonių, dalyvavusių įmonės veikloje, skaičius, vnt.","Kartą per metus"]
[null,"Nedirbantis, nesimokantis ir mokymuose nedalyvaujantis jaunimas",{"$nulls":40},{"$f":"P6","v":"1.2.3.3. Tam tikros tikslinės grupės asmenų, kurie dėl įmonės teikiamų paslaugų / vykdomos veiklos dalyvavo gerosios patirties pasidalijimo renginiuose ir pripažino, kad jie įgijo naudingų žinių / patirties, padėsiančių jiems įsidarbinti /užsiimti pajamas generuojančia veikla, dalis nuo renginiuose dalyvavusių asmenų (proc.)."},"Papildomas","a/b*100%>0, čia\na – tam tikros tikslinės grupės asmenų, dalyvavusių renginyje ir įgijusių žinių, skaičius, vnt.\nb – bendras tam tikros tikslinės grupės asmenų, dalyvavusių renginyje, skaičius, vnt.","Vertinimo pradžioje (duomenys apie esamą padėtį) ir kiekvieno periodo pabaigoje"]
[null,"Nutraukusių mokymąsi bendrojo lavinimo mokyklose 16-mečių jaunuolių skaičius.",{"$nulls":40},{"$f":"Q4","v":"1.2.4.1.  Asmenų, priklausančių tam tikrai tikslinei grupei, kurie dėl įmonės teikiamų paslaugų / vykdomos veiklos / suteiktos infrastruktūros pasinaudojo paskatų sistema, kuri padėjo įsitvirtinti darbo rinkoje, dalis nuo įmonės veikloje dalyvavusių asmenų (proc.).\n\nPvz., lanksčios darbo sąlygos, lengvatinis nuvykimas į darbo vietą / parvykimas iš darbo vietos, vaikų priežiūros kambario sukūrimas ir t.t."},"Pagrindinis","a/b*100%>0, čia\na – asmenys, dalyvavę įmonės veikloje, kurių paskatos įsitvirtinti darbo rinkoje, padidėjo, skaičius, vnt.\nb – bendras asmenų, dalyvavusių įmonės veikloje, skaičius, vnt.","Kartą per metus"]
[null,"Asmenų, įtariamų (kaltinamų) padarius nusikalstamas veikas, skaičius",{"$nulls":40},{"$f":"Q5","v":"1.2.4.2. Tam tikros tikslinės grupės asmenų, kurie dėl įmonės teikiamų paslaugų / vykdomos veiklos dalyvavo gerosios patirties pasidalijimo renginiuose ir pripažino, kad jie įgijo naudingų žinių / patirties, padėsiančių jiems įsidarbinti /užsiimti pajamas generuojančia veikla, dalis nuo renginiuose dalyvavusių asmenų (proc.)."},"Papildomas","a/b*100%>0, čia\na – tam tikros tikslinės grupės asmenų, dalyvavusių renginyje, ir kurie ėmėsi su padėties keitimu susijusių veiksmų, skaičius, vnt.\nb – bendras tam tikros tikslinės grupės asmenų, dalyvavusių renginyje, skaičius, vnt.","Kartą per metus"]
[null,"Asmenys, susiję su nusikalstama veikla (disponavimu narkotinėmis medžiagomis ir jų kontrabanda)",{"$nulls":40},{"$f":"Q6","v":"1.2.4.3. Surengtuose verslumo skatinimo renginiuose dalyvavusių ir įgytas žinias teigiamai įvertinusių asmenų, priklausančių tam tikrai tikslinei grupei, dalis nuo įmonės veikloje dalyvavusių asmenų (proc.)."},"Papildomas","a/b*100%, čia\na – ataskaitiniu laikotarpiu dalyvavusių asmenų ir teigiamai įvertinusių mokymus, skaičius, vnt. \nb – iš viso dalyvavusių asmenų skaičius skaičius, vnt. ","Kartą per metus"]
[null,"Asmenų, įtariamų (kaltinamų) padarius nusikalstamas veikas, skaičius",{"$nulls":40},{"$f":"S4","v":"1.3.1.1. Išaugusi tam tikros tikslinės grupės asmenų, dalyvaujančių bent vienos grupės/ organizacijos /bendrijos veikloje, dalis nuo įmonės veikloje dalyvavusių asmenų (proc.)."},"Pagrindinis","(a(t)-a(t-1))/b>0, čia\na(t) – tam tikros tikslinės grupės asmenų, besinaudojančių įmonės paslaugomis/ dalyvaujančių įmonės veikloje ir pradėjusių dalyvauti bent vienos grupės/ organizacijos /bendrijos veikloje, skaičius (einamuoju periodu), vnt.\na(t-1) – tam tikros tikslinės grupės asmenų, pasinaudojusių įmonės paslaugomis/ dalyvavusių įmonės veikloje ir pradėjusių dalyvauti bent vienos grupės/ organizacijos /bendrijos veikloje, skaičius (prieš 1 metus buvusiu periodu), vnt.\nb – bendras tam tikros tikslinės grupės asmenų, besinaudojančių įmonės paslaugomis/ dalyvaujančių įmonės veikloje, skaičius, vnt.","Kartą per metus"]
[null,"Nepilnamečiai, įtariami (kaltinami ) padarę nusikalstamas veikas",{"$nulls":40},{"$f":"S5","v":"1.3.1.2. Išaugusi tam tikros tikslinės grupės asmenų, pasinaudojusių fizine ir (ar) informacine aplinka, kuriems ji buvo naudinga, dalis nuo įmonės veikloje dalyvavusių asmenų (proc.)."},"Pagrindinis","(a(t)-a(t-1))/b>0, čia\na(t) – tam tikros tikslinės grupės asmenų, besinaudojančių įmonės paslaugomis/ dalyvaujančių įmonės veikloje ir pasinaudojusių fizine ir/ ar informacine aplinka, skaičius (einamuoju periodu), vnt.\na(t-1) – tam tikros tikslinės grupės asmenų, pasinaudojusių įmonės paslaugomis/ dalyvavusių įmonės veikloje ir pasinaudojusių fizine ir/ ar informacine aplinka, skaičius (prieš 1 metus buvusiu periodu), vnt.\nb – bendras tam tikros tikslinės grupės asmenų, besinaudojančių įmonės paslaugomis/ dalyvaujančių įmonės veikloje, skaičius, vnt.","Kartą per metus"]
[null,"Asmenų, nukentėjusių nuo nusikalstamų veikų, skaičius",{"$nulls":40},{"$f":"S6","v":"1.3.1.3. Tam tikros tikslinės grupės asmenų, kurie dėl įmonės teikiamų paslaugų / vykdomos veiklos dalyvavo gerosios patirties pasidalijimo renginiuose ir pripažino, kad jie įgijo naudingų žinių / patirties, padėsiančių mažinti socialinę atskirtį, dalis nuo renginiuose dalyvavusių asmenų (proc.)."},"Papildomas","a/b*100%>0, čia\na – tam tikros tikslinės grupės asmenų, dalyvavusių renginyje ir įgijusių žinių, skaičius, vnt.\nb – bendras tam tikros tikslinės grupės asmenų, dalyvavusių renginyje, skaičius, vnt.","Vertinimo pradžioje (duomenys apie esamą padėtį) ir kiekvieno periodo pabaigoje"]
[null,"Asmenys, nukentėję dėl smurto artimoje aplinkoje \n(policijoje užregistruoti pranešimai dėl smurto artimoje aplinkoje)",{"$nulls":40},{"$f":"S7","v":"1.3.1.4. Tam tikros tikslinės grupės asmenų, kurie dėl įmonės teikiamų paslaugų / vykdomos veiklos dalyvavo gerosios patirties pasidalijimo renginiuose, ir teigia, kad įgyta informacija paskatino imtis veiksmų, susijusių su padėties keitimu, dalis nuo renginiuose dalyvavusių asmenų (proc.)."},"Papildomas","a/b*100%>0, čia\na – tam tikros tikslinės grupės asmenų, dalyvavusių renginyje, ir kurie ėmėsi su padėties keitimu susijusių veiksmų, skaičius, vnt.\nb – bendras tam tikros tikslinės grupės asmenų, dalyvavusių renginyje, skaičius, vnt.","Kartą per metus"]
[null,"Narkomanija sergantys asmenys",{"$nulls":40},{"$f":"V4","v":"2.1.1.1. Asmenų, priklausančių tam tikrai tikslinei grupei, kurių sveikata / savijauta dėl įmonės teikiamų paslaugų / vykdomos veiklos / suteiktos infrastruktūros pagerėjo, dalis nuo įmonės veikloje dalyvavusių asmenų (proc.)."},"Pagrindinis","a/b*100%>0, čia\na – tam tikros tikslinės grupės asmenų, dalyvavusių įmonės veikloje ir pradėjusių jaustis geriau, skaičius, vnt.\nb – bendras tam tikros tikslinės grupės asmenų, dalyvavusių įmonės veikloje, skaičius, vnt.","Vertinimo pradžioje (duomenys apie esamą padėtį) ir kiekvieno periodo pabaigoje"]
[null,"Alkoholizmu sergantys asmenys",{"$nulls":40},{"$f":"V5","v":"2.1.1.2. Asmenų, priklausančių tam tikrai tikslinei grupei, kuriems dėl įmonės teikiamų paslaugų / vykdomos veiklos tapo labiau prieinama informacija apie tam tikrą temą (pasirinkite reikšmę papildomame klasifikatoriuje) ir jie tą informaciją vertina kaip naudingą, dalis nuo įmonės veikloje dalyvavusių asmenų (proc.)."},"Papildomas","a/b*100%>0, čia\na – tam tikros tikslinės grupės asmenų, dalyvavusių įmonės veikloje, kuriems tapo labiau prieinama informacija apie šeimos planavimą ir jie vertina ją kaip naudingą, skaičius, vnt.\nb – bendras tam tikros tikslinės grupės asmenų, dalyvavusių renginyje, skaičius, vnt.","Vertinimo pradžioje (duomenys apie esamą padėtį) ir kiekvieno periodo pabaigoje"]
[null,"Pedikulioze ir ftiriaze (utėlėtumu) sergantys asmenys",{"$nulls":40},{"$f":"X4","v":"2.2.1.1. Asmenų, priklausančių tam tikrai tikslinei grupei, kurie dėl įmonės teikiamų paslaugų / vykdomos veiklos / suteiktos infrastruktūros gali aktyviau / saugiau / įdomiau leisti laisvalaikį, dalis nuo įmonės veikloje dalyvavusių asmenų (proc.)."},"Pagrindinis","a/b*100%>0, čia\na – tam tikros tikslinės grupės asmenų, dalyvavusių įmonės veikloje ir pradėjusių saugiau ir įdomiau leisti laisvalaikį, skaičius, vnt.\nb – bendras tam tikros tikslinės grupės asmenų, dalyvavusių įmonės veikloje, skaičius, vnt.","Vertinimo pradžioje (duomenys apie esamą padėtį) ir kiekvieno periodo pabaigoje"]
[null,"Infekcinėmis ir parazitų ligomis sergantys asmenys",{"$nulls":40},{"$f":"X5","v":"2.2.1.2. Asmenų, priklausančių tam tikrai tikslinei grupei, kurių fizinis aktyvumas dėl įmonės teikiamų paslaugų / vykdomos veiklos / suteiktos/ sukurtos infrastruktūros padidėjo, dalis nuo įmonės veikloje dalyvavusių asmenų (proc.)."},"Pagrindinis","a/b*100%>0, čia\na – tam tikros tikslinės grupės asmenų, dalyvavusių įmonės veikloje, ir kurių fizinis aktyvumas padidėjo, skaičius, vnt.\nb – bendras tam tikros tikslinės grupės asmenų, dalyvavusių įmonės veikloje, skaičius, vnt.","Vertinimo pradžioje (duomenys apie esamą padėtį) ir kiekvieno periodo pabaigoje"]
[null,"Virusiniais hepatitais sergantys asmenys",{"$nulls":40},{"$f":"X6","v":"2.2.1.3. Tam tikros tikslinės grupės asmenų, kurie dėl įmonės teikiamų paslaugų / vykdomos veiklos dalyvavo gerosios patirties pasidalijimo renginiuose ir pripažino, kad jie įgijo naudingų žinių / patirties, padėsiančios didinti fizinį aktyvumą, dalis nuo renginiuose dalyvavusių asmenų (proc.)."},"Papildomas","a/b*100%>0, čia\na – asmenų, dalyvavusių įmonės renginyje ir dėl to įgijusių žinių, skaičius, vnt.\nb – bendras asmenų, dalyvavusių įmonės renginyje, skaičius, vnt.","Vertinimo pradžioje (duomenys apie esamą padėtį) ir kiekvieno periodo pabaigoje"]
[null,"Navikų ligomis sergantys asmenys",{"$nulls":40},{"$f":"Z4","v":"2.3.1.1. Asmenų, priklausančių tam tikrai tikslinei grupei, kurių fizinis aktyvumas dėl įmonės teikiamų paslaugų / vykdomos veiklos / suteiktos/ sukurtos infrastruktūros pagerėjo, sveikata / savijauta pagerėjo, dalis nuo įmonės veikloje dalyvavusių asmenų (proc.)."},"Pagrindinis","a/b*100%>0, čia\na – tam tikros tikslinės grupės asmenų, dalyvavusių įmonės veikloje, ir kurių fizinis aktyvumas padidėjo, skaičius, vnt.\nb – bendras tam tikros tikslinės grupės asmenų, dalyvavusių įmonės veikloje, skaičius, vnt.","Vertinimo pradžioje (duomenys apie esamą padėtį) ir kiekvieno periodo pabaigoje"]
[null,"Kraujo ir kraujodaros organų ligomis sergantys asmenys",{"$nulls":40},"2.3.1.2. Asmenų, priklausančių tam tikrai tikslinei grupei, kuriems dėl įmonės teikiamų paslaugų / vykdomos veiklos / suteiktos infrastruktūros yra sudarytos geresnės ir nuolatinės sąlygos turėti prieigą prie tam tikrų priemonių ar paslaugų (pasirinkite iš papildomo klasifikatoriaus), dalis nuo įmonės veikloje dalyvavusių asmenų (proc.).","Pagrindinis","a/b*100%>0, čia\na – tam tikros tikslinės grupės asmenų, dalyvavusių įmonės veikloje, kurie pripažino, kad jiems yra sudarytos geresnės ir nuolatinės sąlygos turėti prieigą prie sveikatinimo priemonių ar paslaugų, skaičius, vnt.\nb – bendras tam tikros tikslinės grupės asmenų, dalyvavusių įmonių veikloje, skaičius, vnt.","Vertinimo pradžioje (duomenys apie esamą padėtį) ir kiekvieno periodo pabaigoje"]
[null,"Mitybos ir medžiagų apykaitos ligomis sergantys asmenys",{"$nulls":40},"2.3.1.3 Tam tikros tikslinės grupės asmenų / sergančių asmenų, dėl įmonės teikiamų paslaugų / vykdomos veiklos / suteiktos infrastruktūros, periodiškai gavusių materialinę paramą (pvz., šilto maisto) ir pripažinusių, kad dėl to pagerėjo jų sveikata / savijauta, dalis nuo įmonės veikloje dalyvavusių asmenų (proc.).","Pagrindinis","a/b*100%>0, čia\na – asmenų, dalyvavusių įmonių veikloje ir pasijutusių geriau, skaičius, vnt.\nb – bendras asmenų, dalyvavusių įmonės veikloje, skaičius, vnt.","Vertinimo pradžioje (duomenys apie esamą padėtį) ir kiekvieno periodo pabaigoje"]
[null,"Psichikos ir elgesio sutrikimais sergantys asmenys",{"$nulls":40},"2.3.1.4. Asmenų, priklausančių tam tikrai tikslinei grupei, kuriems dėl įmonės teikiamų paslaugų / vykdomos veiklos / suteiktos infrastruktūros tapo labiau prieinama informacija apie ligas / susižalojimus ir jie šią informaciją vertina kaip naudingą, dalis nuo įmonės veikloje dalyvavusių asmenų (proc.).","Papildomas","a/b*100%>0, čia\na – tam tikros tikslinės grupės asmenų, dalyvavusių įmonės veikloje, kuriems tapo labiau prieinama informacija apie ligas / sužalojimus ir jų prevenciją ir jie vertina ją kaip naudingą, skaičius, vnt.\nb – bendras tam tikros tikslinės grupės asmenų, dalyvavusių įmonės veikloje, skaičius, vnt.","Vertinimo pradžioje (duomenys apie esamą padėtį) ir kiekvieno periodo pabaigoje"]
[null,"Akies ir jos organų ligomis sergantys asmenys",{"$nulls":40},"2.3.1.5. Asmenų, priklausančių tam tikrai tikslinei grupei, kurie dėl įmonės teikiamų paslaugų / vykdomos veiklos / suteiktos infrastruktūros pripažino, kad jų sveikata / savijauta pagerėjo, dalis nuo įmonės veikloje dalyvavusių asmenų (proc.).","Papildomas","a/b*100%>0, čia\na – tam tikros tikslinės grupės asmenų, dalyvavusių įmonės veikloje ir pradėjusių jaustis geriau, vnt.\nb – bendras tam tikros tikslinės grupės asmenų, dalyvavusių įmonės veikloje, skaičius, vnt.","Vertinimo pradžioje (duomenys apie esamą padėtį) ir kiekvieno periodo pabaigoje"]
[null,"Su klausa susijusiomis (ausų) ligomis sergantys asmenys",{"$nulls":40},"2.3.1.6. Asmenų, priklausančių tam tikrai tikslinei grupei, kurie dėl įmonės teikiamų paslaugų / vykdomos veiklos / suteiktos infrastruktūros pripažino, kad jų mitybos įpročiai pagerėjo, dalis nuo įmonės veikloje dalyvavusių asmenų (proc.).","Papildomas","a/b*100%>0, čia\na – tam tikros tikslinės grupės asmenų, dalyvavusių įmonės veikloje, ir kurių mitybos įpročiai pagerėjo, skaičius, vnt.\nb – bendras tam tikros tikslinės grupės asmenų, dalyvavusių įmonės veikloje, skaičius, vnt.","Vertinimo pradžioje (duomenys apie esamą padėtį) ir kiekvieno periodo pabaigoje"]
[null,"Kraujotakos sistemos ligomis sergantys asmenys",{"$nulls":40},"2.3.1.7. Tam tikros tikslinės grupės asmenų, kurie dėl įmonės teikiamų paslaugų / vykdomos veiklos dalyvavo gerosios patirties pasidalijimo renginiuose ir pripažino, kad jie įgijo naudingų žinių / patirties, padėsiančios gerinti sveikatos būklę, dalis nuo renginiuose dalyvavusių asmenų (proc.).","Papildomas","a/b*100%>0, čia\na – asmenų, dalyvavusių renginyje ir įgijusių žinių, skaičius, vnt.\nb – bendras asmenų, dalyvavusių įmonės renginyje, skaičius, vnt.","Vertinimo pradžioje (duomenys apie esamą padėtį) ir kiekvieno periodo pabaigoje"]
[null,"Kvėpavimo sistemos ligomis sergantys asmenys",{"$nulls":40},{"$f":"AC4","v":"3.1.1.1. Asmenų, priklausančių tam tikrai tikslinei grupei / nukentėjusių asmenų, kurie dėl įmonės teikiamų paslaugų / vykdomos veiklos, susijusios su nusikalstamumo mažinimu, pripažino, kad aplinka tapo saugesnė, dalis nuo įmonės veikloje dalyvavusių asmenų (proc.)."},"Pagrindinis","a/b*100%>0, čia\na – tam tikros tikslinės grupės asmenų, dalyvavusių įmonės veikloje ir pradėjusių jaustis saugiau, skaičius, vnt.\nb – bendras tam tikros grupės/ nukentėjusių asmenų, dalyvavusių įmonės veikloje, skaičius, vnt.","Vertinimo pradžioje (duomenys apie esamą padėtį) ir kiekvieno periodo pabaigoje"]
[null,"Virškinimo sistemos ligomis sergantys asmenys",{"$nulls":40},{"$f":"AC5","v":"3.1.1.2. Asmenų, priklausančių tam tikrai tikslinei grupei / susijusių su nusikalstama veika, kurie dėl įmonės teikiamų paslaugų / vykdomos veiklos patvirtino, kad pagerėjo jų emocinis stabilumas ir dėl to jie nebevykdo nusikalstamos veiklos, dalis nuo įmonės veikloje dalyvavusių asmenų (proc.)."},"Papildomas","(a-c)/b*100%>0, čia\na – tam tikros tikslinės grupės asmenų, dalyvavusių įmonės veikloje ir pradėjusių jaustis emociškai stabiliau, skaičius, vnt.\nb – bendras tam tikros tikslinės grupės asmenų, dalyvavusių įmonės veikloje, skaičius, vnt.\nc – tam tikros tikslinės grupės asmenų, kurie dėl įmonės vykdomos veiklos buvo pradėję nebevykdyti nusikalstamos veiklos, tačiau po tam tikro laiko vėl pradėjo vykdyti nusikalstamą veiklą, skaičius, vnt.","Vertinimo pradžioje (duomenys apie esamą padėtį) ir kiekvieno periodo pabaigoje"]
[null,"Odos ir poodžio ligomis sergantys asmenys",{"$nulls":40},{"$f":"AC6","v":"3.1.1.3. Tam tikros tikslinės grupės asmenų / asmenų, kurie dėl įmonės teikiamų paslaugų / vykdomos veiklos dalyvavo gerosios patirties pasidalijimo / prevenciniuose renginiuose ir pripažino, kad jie įgijo naudingų žinių / patirties, susijusios su nusikaltimų prevencija, dalis nuo renginiuose dalyvavusių asmenų (proc.)."},"Papildomas","a/b*100%>0, čia\na – asmenų, dalyvavusių įmonės renginyje ir įgijusių žinių, skaičius, vnt.\nb – bendras asmenų, dalyvavusių įmonės renginyje, skaičius, vnt.","Vertinimo pradžioje (duomenys apie esamą padėtį) ir kiekvieno periodo pabaigoje"]
[null,"Raumenų ar skeleto ligomis sergantys asmenys",{"$nulls":40},{"$f":"AE4","v":"3.2.1.1. Asmenų, priklausančių tam tikrai tikslinei grupei / susijusių su nusikalstama veika, kurie dėl įmonės teikiamų paslaugų / vykdomos veiklos nustojo vartoti kenksmingus produktus / nustojo elgtis netinkamai, dalis nuo įmonės veikloje dalyvavusių asmenų (proc.)."},"Pagrindinis","(a-c)/b*100%>0, čia\na – tam tikros grupės/ su nusikalstama veikla susijusių asmenų, dalyvavusių įmonės veikloje ir nustojusių vartoti kenksmingus produktus / nustojusių elgtis netinkamai, skaičius, vnt.\nb – bendras tam tikros grupės/ su nusikalstama veikla susijusių asmenų, dalyvavusių įmonės veikloje, skaičius, vnt.\nc – tam tikros tikslinės grupės asmenų, kurie dėl įmonės vykdomos veiklos buvo nustoję vartoti kenksmingus produktus / nustojo elgtis netinkamai, tačiau po tam tikro laiko vėl pradėjo vartoti kenksmingus produktus / pradėjo elgtis netinkamai, skaičius, vnt.\n\n","Vertinimo pradžioje (duomenys apie esamą padėtį) ir kiekvieno periodo pabaigoje"]
[null,"Lytinėmis ar šlapimo sistemos ligomis sergantys asmenys",{"$nulls":40},{"$f":"AE5","v":"3.2.1.2. Asmenų, priklausančių tam tikrai tikslinei grupei / sergančių ar turinčių sutrikimą, kurie dėl įmonės teikiamų paslaugų / vykdomos prevencinės veiklos pradėjo kovoti su liga (pvz., nustoję vartoti ligą sukeliančius komponentus / pradėję gydytis nuo tos ligos / pripažino turintys ligą ir ėmėsi veiksmų dėl jos pašalinimo), dalis nuo įmonės veikloje dalyvavusių asmenų (proc.)."},"Pagrindinis","(a-c)/b*100%>0, čia\na – tam tikros tikslinės grupės asmenų, dalyvavusių įmonės veikloje ir dėl to pradėjusių kovoti su liga, skaičius, vnt.\nb – bendras, tam tikros tikslinės grupės asmenų, dalyvavusių įmonės veikloje, skaičius, vnt.\nc – tam tikros tikslinės grupės asmenų, kurie dėl įmonės vykdomos veiklos buvo pradėję kovoti su liga (nustoję vartoti ligą sukeliančius komponentus), tačiau po tam tikro laiko vėl pradėjo vartoti ligą sukeliančius komponentus, skaičius, vnt.","Vertinimo pradžioje (duomenys apie esamą padėtį) ir kiekvieno periodo pabaigoje"]
[null,"Su nėštumu, gimdymu ar pogimdyviniu laikotarpiu susijusių ligų turintys asmenys",{"$nulls":40},{"$f":"AE6","v":"3.2.1.3. Asmenų, priklausančių tam tikrai tikslinei grupei, kuriems dėl įmonės teikiamų paslaugų / vykdomos veiklos / suteiktos infrastruktūros tapo labiau prieinama informacija apie ligas / susižalojimus ir jų prevenciją ir jie šią informaciją vertina kaip naudingą, dalis nuo įmonės veikloje dalyvavusių asmenų (proc.)."},"Papildomas","a/b*100%>0, čia\na – tam tikros tikslinės grupės asmenų, dalyvavusių įmonės veikloje, kuriems tapo labiau prieinama informacija apie ligas / sužalojimus ir jų prevenciją ir jie vertina ją kaip naudingą, skaičius vnt.\nb – bendras tam tikros tikslinės grupės asmenų, dalyvavusių įmonės veikloje, skaičius, vnt.","Vertinimo pradžioje (duomenys apie esamą padėtį) ir kiekvieno periodo pabaigoje"]
[null,"Įgimtas formavimosi ydas turintys asmenys",{"$nulls":40},{"$f":"AG4","v":"3.3.1.1. Asmenų, priklausančių tam tikrai tikslinei grupei, kurių higienos sąlygos dėl įmonės teikiamų paslaugų / vykdomos veiklos / suteiktos infrastruktūros (pvz., atsirado galimybė reguliariai naudotis higienos palaikymo priemonėmis ar paslaugomis) pagerėjo, dalis nuo įmonės veikloje dalyvavusių asmenų (proc.)."},"Pagrindinis","a/b*100%>0, čia\na – tam tikros tikslinės grupės asmenų, dalyvavusių įmonės veikloje, ir kurių higienos sąlygos pagerėjo, skaičius, vnt.\nb – bendras tam tikros tikslinės grupės asmenų, dalyvavusių įmonės veikloje, skaičius, vnt.","Vertinimo pradžioje (duomenys apie esamą padėtį) ir kiekvieno periodo pabaigoje"]
[null,"Susižalojimus, apsinuodijimus patyrę asmenys",{"$nulls":40},{"$f":"AG5","v":"3.3.1.2. Asmenų, priklausančių tam tikrai tikslinei grupei, kurių buities / pragyvenimo sąlygos dėl reguliariai įmonės teikiamų paslaugų / vykdomos veiklos / suteiktos infrastruktūros / techninės įrangos (pvz., pasikeitė buitinės sąlygos į geresnes) pagerėjo, dalis nuo įmonės veikloje dalyvavusių asmenų (proc.)."},"Papildomas","a/b*100%>0, čia\na – tam tikros tikslinės grupės asmenų, dalyvavusių įmonės veikloje, ir kurių buities sąlygos pagerėjo, skaičius, vnt.\nb – bendras tam tikros tikslinės grupės asmenų, dalyvavusių įmonės veikloje, skaičius, vnt.","Vertinimo pradžioje (duomenys apie esamą padėtį) ir kiekvieno periodo pabaigoje"]
[null,"Dantų ligomis sergantys asmenys",{"$nulls":40},{"$f":"AG6","v":"3.3.1.3. Tam tikros tikslinės grupės asmenų / asmenų, sergančių ar turinčių sutrikimų, kurie dėl įmonės teikiamų paslaugų / vykdomos veiklos dalyvavo gerosios patirties pasidalijimo / prevenciniuose (su sveikata susijusiuose) renginiuose ir pripažino, kad jie įgijo naudingų žinių / patirties, dalis nuo renginiuose dalyvavusių asmenų (proc.)."},"Papildomas","a/b*100%>0, čia\na – asmenų, dalyvavusių įmonės renginyje ir įgijusių žinių, skaičius, vnt.\nb – bendras asmenų, dalyvavusių įmonės renginyje, skaičius, vnt.","Vertinimo pradžioje (duomenys apie esamą padėtį) ir kiekvieno periodo pabaigoje"]
[null,"Savižudybių skaičius",{"$nulls":40},{"$f":"AG7","v":"3.3.1.4. Asmenų, priklausančių tam tikrai tikslinei grupei, kuriems dėl įmonės teikiamų paslaugų / vykdomos veiklos tapo labiau prieinama informacija apie ligas ir jie šią informaciją vertina kaip naudingą, dalis nuo įmonės veikloje dalyvavusių asmenų (proc.)."},"Papildomas","a/b*100%>0, čia\na – tam tikros tikslinės grupės asmenų, dalyvavusių įmonės veikloje, kuriems tapo labiau prieinama informacija apie ligas / jie vertina ją kaip naudingą, skaičius, vnt.\nb – bendras tam tikros tikslinės grupės asmenų, dalyvavusių renginyje, skaičius, vnt.","Vertinimo pradžioje (duomenys apie esamą padėtį) ir kiekvieno periodo pabaigoje"]
[{"$nulls":42},{"$f":"AJ4","v":"4.1.1.1. Asmenų, priklausančių tam tikrai tikslinei grupei, kurių kompetencijos ir gebėjimai (pasirenkama iš papildomo klasifikatoriaus) dėl įmonės teikiamų paslaugų / vykdomos veiklos pagerėjo (lyginant su prieš tai buvusiu statusu), dalis nuo įmonės veikloje dalyvavusių asmenų (proc.). "},"Pagrindinis","a/b*100%>0, čia\na – tam tikros tikslinės grupės asmenų, dalyvavusių įmonės veikloje ir dėl to pagerinusių / įgijusių gebėjimus, skaičius, vnt.\nb – bendras tam tikros tikslinės grupės asmenų, dalyvavusių įmonės veikloje, skaičius, vnt.","Vertinimo pradžioje (duomenys apie esamą padėtį) ir kiekvieno periodo pabaigoje"]
[{"$nulls":42},"4.1.1.2. Asmenų, priklausančių tam tikrai tikslinei grupei, kurių mokymosi rezultatai (pažymiai) dėl įmonės teikiamų paslaugų / vykdomos veiklos pagerėjo, dalis nuo įmonės veikloje dalyvavusių asmenų (proc.). ","Pagrindinis","a/b*100%>0, čia\na – tam tikros tikslinės grupės asmenų, dalyvavusių įmonės veikloje ir pripažinusių, kad jų profesiniai / akademiniai rezultatai dėl to pagerėjo, skaičius vnt.\nb – bendras tam tikros tikslinės grupės asmenų, dalyvavusių įmonės veikloje, skaičius, vnt.","Vertinimo pradžioje (duomenys apie esamą padėtį) ir kiekvieno periodo pabaigoje"]
[{"$nulls":42},"4.1.1.3. Asmenų, priklausančių tam tikrai tikslinei grupei, kurių pasitikėjimas savimi dėl įmonės teikiamų paslaugų / vykdomos neformaliojo ugdymo veiklos, padidėjo, dalis nuo įmonės veikloje dalyvavusių asmenų (proc.). ","Papildomas","a/b*100%>0, čia\na – tam tikros tikslinės grupės asmenų, dalyvavusių įmonės veikloje ir pripažinusių, kad jų pasitikėjimas savimi padidėjo, skaičius vnt.\nb – bendras tam tikros tikslinės grupės asmenų, dalyvavusių įmonės veikloje, skaičius, vnt.","Vertinimo pradžioje (duomenys apie esamą padėtį) ir kiekvieno periodo pabaigoje"]
[{"$nulls":42},"4.1.1.4. Asmenų, priklausančių tam tikrai tikslinei grupei, kurie dėl įmonės teikiamų paslaugų / vykdomos veiklos pagerino savo emocinį intelektą / stabilumą, dalis nuo įmonės veikloje dalyvavusių asmenų (proc.). ","Papildomas","a/b*100%>0, čia\na – tam tikros tikslinės grupės asmenų, dalyvavusių įmonės veikloje ir pripažinusių, kad jų emocinis intelektas pagerėjo, skaičius vnt.\nb – bendras tam tikros tikslinės grupės asmenų, dalyvavusių įmonės veikloje, skaičius, vnt.","Vertinimo pradžioje (duomenys apie esamą padėtį) ir kiekvieno periodo pabaigoje"]
[{"$nulls":42},"4.1.1.5. Asmenų, priklausančių tam tikrai tikslinei grupei, kuriems dėl įmonės teikiamų paslaugų / infrastruktūros / vykdomos veiklos tapo labiau prieinama informacija apie švietimo įstaigas / kompetencijas ir jie šią informaciją vertina kaip naudingą, dalis nuo įmonės veikloje dalyvavusių asmenų (proc.).","Papildomas","a/b*100%>0, čia\na – tam tikros tikslinės grupės asmenų, dalyvavusių įmonės veikloje ir pripažinusių, kad jiems tapo labiau prieinama informacija apie švietimą / kompetencijas ir jie šią informaciją vertina kaip naudingą, skaičius, vnt.\nb – bendras tam tikros tikslinės grupės asmenų, dalyvavusių įmonės veikloje, skaičius, vnt.","Vertinimo pradžioje (duomenys apie esamą padėtį) ir kiekvieno periodo pabaigoje"]
[{"$nulls":42},"4.1.1.6. Asmenų, priklausančių tam tikrai tikslinei grupei, kurių tikslų planavimo ir prioretizavimo gebėjimai dėl įmonės teikiamų paslaugų / vykdomos veiklos pagerėjo, dalis nuo įmonės veikloje dalyvavusių asmenų (proc.). ","Papildomas","a/b*100%>0, čia\na – tam tikros tikslinės grupės asmenų, dalyvavusių įmonės veikloje ir pripažinusių, kad jie gali geriau susiplanuoti savo tikslus ir planus, skaičius, vnt.\nb – bendras tam tikros tikslinės grupės asmenų, dalyvavusių įmonės veikloje, skaičius, vnt.","Vertinimo pradžioje (duomenys apie esamą padėtį) ir kiekvieno periodo pabaigoje"]
[{"$nulls":42},{"$f":"AK4","v":"4.1.2.1. Asmenų, priklausančių tam tikrai tikslinei grupei, kurių užsiėmimų / pamokų lankomumas dėl įmonės teikiamų paslaugų / vykdomos neformaliojo ugdymo veiklos pagerėjo, dalis nuo įmonės veikloje dalyvavusių asmenų (proc.). "},"Pagrindinis","a/b*100%>0, čia\na – tam tikros tikslinės grupės asmenų, dalyvavusių įmonės veikloje, ir kurių užsiėmimų lankomumas pagerėjo, skaičius, vnt.\nb – bendras tam tikros tikslinės grupės asmenų, dalyvavusių įmonės veikloje, skaičius, vnt.","Vertinimo pradžioje (duomenys apie esamą padėtį) ir kiekvieno periodo pabaigoje"]
[{"$nulls":42},{"$f":"AK5","v":"4.1.2.2. Asmenų, priklausančių tam tikrai tikslinei grupei, kurių pasitikėjimas savimi dėl įmonės teikiamų paslaugų / vykdomos neformaliojo ugdymo veiklos padidėjo, dalis nuo įmonės veikloje dalyvavusių asmenų (proc.). "},"Papildomas","a/b*100%>0, čia\na – tam tikros tikslinės grupės asmenų, dalyvavusių įmonės veikloje ir pripažinusių, kad jų pasitikėjimas savimi pagerėjo, skaičius, vnt.\nb – bendras tam tikros tikslinės grupės asmenų, dalyvavusių įmonės veikloje, skaičius, vnt.","Vertinimo pradžioje (duomenys apie esamą padėtį) ir kiekvieno periodo pabaigoje"]
[{"$nulls":42},{"$f":"AK6","v":"4.1.2.3. Asmenų, priklausančių tam tikrai tikslinei grupei, kurie dėl įmonės teikiamų paslaugų / vykdomos veiklos pagerino savo emocinį intelektą / stabilumą, dalis nuo įmonės veikloje dalyvavusių asmenų (proc.). "},"Papildomas","a/b*100%>0, čia\na – tam tikros tikslinės grupės asmenų, dalyvavusių įmonės veikloje ir pripažinusių, kad jų emocinis intelektas pagerėjo, skaičius, vnt.\nb – bendras tam tikros tikslinės grupės asmenų, dalyvavusių įmonės veikloje, skaičius, vnt.","Vertinimo pradžioje (duomenys apie esamą padėtį) ir kiekvieno periodo pabaigoje"]
[{"$nulls":42},{"$f":"AK7","v":"4.1.2.4. Asmenų, priklausančių tam tikrai tikslinei grupei, kuriems dėl įmonės teikiamų paslaugų / infrastruktūros / vykdomos veiklos tapo labiau prieinama informacija apie švietimo įstaigas / kompetencijas ir jie šią informaciją vertina kaip naudingą, dalis nuo įmonės veikloje dalyvavusių asmenų (proc.)."},"Papildomas","a/b*100%>0, čia\na – tam tikros tikslinės grupės asmenų, dalyvavusių įmonės veikloje ir pripažinusių, kad jiems tapo labiau prieinama informacija apie švietimą / kompetencijas ir jie šią informaciją vertina kaip naudingą, skaičius, vnt.\nb – bendras tam tikros tikslinės grupės asmenų, dalyvavusių įmonės veikloje, skaičius, vnt.","Vertinimo pradžioje (duomenys apie esamą padėtį) ir kiekvieno periodo pabaigoje"]
[{"$nulls":42},{"$f":"AK8","v":"4.1.2.5. Asmenų, priklausančių tam tikrai tikslinei grupei, kurių tikslų planavimo ir prioretizavimo gebėjimai dėl įmonės teikiamų paslaugų / vykdomos veiklos pagerėjo, dalis nuo įmonės veikloje dalyvavusių asmenų (proc.). "},"Papildomas","a/b*100%>0, čia\na – tam tikros tikslinės grupės asmenų, dalyvavusių įmonės veikloje ir pripažinusių, kad jie gali geriau susiplanuoti savo tikslus ir planus, skaičius vnt.\nb – bendras tam tikros tikslinės grupės asmenų, dalyvavusių įmonės veikloje, skaičius, vnt.","Vertinimo pradžioje (duomenys apie esamą padėtį) ir kiekvieno periodo pabaigoje"]
[{"$nulls":42},{"$f":"AM4","v":"4.2.1.1. Asmenų, priklausančių tam tikrai tikslinei grupei, kurių mokymosi rezultatai (pažymiai) dėl įmonės teikiamų paslaugų / mokymosi infrastruktūros / vykdomos veiklos pagerėjo, dalis nuo įmonės veikloje dalyvavusių asmenų (proc.)."},"Pagrindinis","a/b*100%>0, čia\na – tam tikros tikslinės grupės asmenų, dalyvavusių įmonės veikloje ir pripažinusių, kad jų profesiniai / akademiniai rezultatai pagerėjo, skaičius, vnt.\nb – bendras tam tikros tikslinės grupės asmenų, dalyvavusių įmonės veikloje, skaičius, vnt.","Vertinimo pradžioje (duomenys apie esamą padėtį) ir kiekvieno periodo pabaigoje"]
[{"$nulls":42},{"$f":"AM5","v":"4.2.1.2. Asmenų, priklausančių tam tikrai tikslinei grupei, kuriems dėl įmonės teikiamų paslaugų / infrastruktūros / vykdomos veiklos tapo labiau prieinama informacija apie švietimo įstaigas / kompetencijas ir jie šią informaciją vertina kaip naudingą, dalis nuo įmonės veikloje dalyvavusių asmenų (proc.)."},"Papildomas","a/b*100%>0, čia\na – tam tikros tikslinės grupės asmenų, dalyvavusių įmonės veikloje ir pripažinusių, kad jiems tapo labiau prieinama informacija apie švietimą / kompetencijas ir jie šią informaciją vertina kaip naudingą, skaičius, vnt.\nb – bendras tam tikros tikslinės grupės asmenų, dalyvavusių įmonės veikloje, skaičius, vnt.","Vertinimo pradžioje (duomenys apie esamą padėtį) ir kiekvieno periodo pabaigoje"]
[{"$nulls":42},{"$f":"AM6","v":"4.2.1.3. Asmenų, priklausančių tam tikrai tikslinei grupei, kurių pasitikėjimas savimi dėl įmonės teikiamų paslaugų / vykdomos veiklos padidėjo, dalis nuo įmonės veikloje dalyvavusių asmenų (proc.). "},"Papildomas","a/b*100%>0, čia\na – tam tikros tikslinės grupės asmenų, dalyvavusių įmonės veikloje ir pripažinusių, kad jų pasitikėjimas savimi pagerėjo, skaičius, vnt.\nb – bendras tam tikros tikslinės grupės asmenų, dalyvavusių įmonės veikloje, skaičius, vnt.","Vertinimo pradžioje (duomenys apie esamą padėtį) ir kiekvieno periodo pabaigoje"]
[{"$nulls":42},{"$f":"AM7","v":"4.2.1.4. Asmenų, priklausančių tam tikrai tikslinei grupei, kurie dėl įmonės teikiamų paslaugų / vykdomos veiklos pagerino savo emocinį intelektą / stabilumą, dalis nuo įmonės veikloje dalyvavusių asmenų (proc.). "},"Papildomas","a/b*100%>0, čia\na – tam tikros tikslinės grupės asmenų, dalyvavusių įmonės veikloje ir pripažinusių, kad jų emocinis intelektas pagerėjo, skaičius, vnt.\nb – bendras tam tikros tikslinės grupės asmenų, dalyvavusių įmonės veikloje, skaičius, vnt.","Vertinimo pradžioje (duomenys apie esamą padėtį) ir kiekvieno periodo pabaigoje"]
[{"$nulls":42},{"$f":"AM8","v":"4.2.1.5. Asmenų, priklausančių tam tikrai tikslinei grupei, kurių tikslų planavimo ir prioretizavimo gebėjimai dėl įmonės teikiamų paslaugų / vykdomos veiklos pagerėjo, dalis nuo įmonės veikloje dalyvavusių asmenų (proc.). "},"Papildomas","a/b*100%>0, čia\na – tam tikros tikslinės grupės asmenų, dalyvavusių įmonės veikloje ir pripažinusių, kad jie gali geriau susiplanuoti savo tikslus ir planus, skaičius, vnt.\nb – bendras tam tikros tikslinės grupės asmenų, dalyvavusių įmonės veikloje, skaičius, vnt.","Vertinimo pradžioje (duomenys apie esamą padėtį) ir kiekvieno periodo pabaigoje"]
[{"$nulls":42},{"$f":"AO4","v":"4.3.1.1. Asmenų, priklausančių tam tikrai tikslinei grupei, kurių darbo užmokestis ar pajamos dėl įmonės teikiamų paslaugų / vykdomos veiklos, susijusios su lygiomis teisėmis, padidėjo, dalis nuo įmonės veikloje dalyvavusių asmenų (proc.)."},"Pagrindinis","a/b*100%>0, čia\na – tam tikros tikslinės grupės asmenų, dalyvavusių įmonės veikloje, ir kurių darbo užmokestis padidėjo, skaičius vnt.\nb – bendras tam tikros tikslinės grupės asmenų, dalyvavusių įmonės veikloje, skaičius, vnt.","Vertinimo pradžioje (duomenys apie esamą padėtį) ir kiekvieno periodo pabaigoje"]
[{"$nulls":42},"4.3.1.2. Asmenų, priklausančių tam tikrai tikslinei grupei, kurių darbo pasiūlymų skaičius dėl įmonės teikiamų paslaugų / vykdomos veiklos, susijusios su lygiomis teisėmis, padidėjo, dalis nuo įmonės veikloje dalyvavusių asmenų (proc.).","Papildomas","a/b*100%>0, čia\na – tam tikros tikslinės grupės asmenų, dalyvavusių įmonės veikloje, ir kurie gavo daugiau darbo pasiūlymų, skaičius vnt.\nb – bendras tam tikros tikslinės grupės asmenų, dalyvavusių įmonės veikloje, skaičius, vnt.","Vertinimo pradžioje (duomenys apie esamą padėtį) ir kiekvieno periodo pabaigoje"]
[{"$nulls":42},"4.3.1.3. Asmenų, priklausančių tam tikrai tikslinei grupei, kurie dėl įmonės teikiamų paslaugų / vykdomos veiklos pripažino, kad patyčių jų aplinkoje sumažėjo, dalis nuo įmonės veikloje dalyvavusių asmenų (proc.). ","Papildomas","a/b*100%>0, čia\na – tam tikros tikslinės grupės asmenų, dalyvavusių įmonės veikloje, pripažinusių, kad patyčių jų aplinkoje sumažėjo, vnt.\nb – bendras tam tikros tikslinės grupės asmenų, dalyvavusių įmonės veikloje, skaičius, vnt.","Vertinimo pradžioje (duomenys apie esamą padėtį) ir kiekvieno periodo pabaigoje"]
[{"$nulls":42},"4.3.1.4. Asmenų, priklausančių tam tikrai tikslinei grupei, kurie dėl įmonės teikiamų paslaugų / vykdomos edukacinės veiklos pripažino, kad įgijo naudingos informacijos apie patyčių pasekmes / žalą, dalis nuo įmonės veikloje dalyvavusių asmenų (proc.). ","Papildomas","a/b*100%>0, čia\na – tam tikros tikslinės grupės asmenų, dalyvavusių įmonės veikloje ir pripažinusių, kad įgijo naudingos informacijos apie patyčių žalą, skaičius, vnt.\nb – bendras tam tikros tikslinės grupės asmenų, dalyvavusių įmonės veikloje, skaičius, vnt.","Vertinimo pradžioje (duomenys apie esamą padėtį) ir kiekvieno periodo pabaigoje"]
[{"$nulls":42},"4.3.1.5. Asmenų, priklausančių tam tikrai tikslinei grupei, kurie dėl įmonės teikiamų paslaugų / vykdomos veiklos tapo patriotiškesni (labiau vertina savo gimtinę ir jos istoriją) ir pradėjo lankyti patriotines organizacijas / akcijas, dalis nuo įmonės veikloje dalyvavusių asmenų (proc.).","Pagrindinis","a/b*100%>0, čia\na – tam tikros tikslinės grupės asmenų, dalyvavusių įmonės veikloje ir pripažinusių, kad tapo patriotiškesni (labiau vertina savo gimtinę ir jos istoriją), skaičius, vnt.\nb – bendras tam tikros tikslinės grupės asmenų, dalyvavusių įmonės veikloje, skaičius, vnt.","Vertinimo pradžioje (duomenys apie esamą padėtį) ir kiekvieno periodo pabaigoje"]
[{"$nulls":42},"4.3.1.6. Asmenų, priklausančių tam tikrai tikslinei grupei, kurie dėl įmonės teikiamų paslaugų / vykdomos veiklos pripažino, kad labiau sieja savo profesinę ir asmeninę ateitį su Lietuva (pvz., mažiau svarsto galimybę emigruoti), dalis nuo įmonės veikloje dalyvavusių asmenų (proc.).","Papildomas","a/b*100%>0, čia\na – tam tikros tikslinės grupės asmenų, dalyvavusių įmonės veikloje ir pripažinusių, kad labiau sieja savo profesinę ir asmeninę ateitį su Lietuva, skaičius, vnt.\nb – bendras tam tikros tikslinės grupės asmenų, dalyvavusių įmonės veikloje, skaičius, vnt.","Vertinimo pradžioje (duomenys apie esamą padėtį) ir kiekvieno periodo pabaigoje"]
[{"$nulls":42},"4.3.1.7. Asmenų, priklausančių tam tikrai tikslinei grupei, kuriems žmogaus teisių apsauga dėl įmonės teikiamų paslaugų / vykdomos veiklos tapo labiau prieinama, dalis nuo įmonės veikloje dalyvavusių asmenų (proc.).","Papildomas","a/b*100%>0, čia\na – tam tikros tikslinės grupės asmenų, dalyvavusių įmonės veikloje, kurių žmogaus teisių apsauga tapo labiau prieinama, skaičius, vnt.\nb – bendras tam tikros tikslinės grupės asmenų, dalyvavusių įmonės veikloje, skaičius, vnt.","Vertinimo pradžioje (duomenys apie esamą padėtį) ir kiekvieno periodo pabaigoje"]